{"text_format":"1","workbook":"xlsx","n_sheets":6,"sheets":["Start","Ausgaben","Einnahmen","Auswertung","Listen","Hilfstabelle"],"not_rendered":{"charts":1,"images":0,"macros":1,"external_links":0,"defined_names":3,"comments":2,"pivot_tables":1},"unopened":[],"bounds":{"document_bytes":16777216,"sheet_cells":100000,"rows_first":2000,"rows_last":500,"rows_between":2000,"halvings":0,"cell_chars":16384,"cell_head_chars":4096},"cells_cut":0,"cells_raw":0,"read":"whole","date_system":"1900"}

{"sheet":"Start","index":0,"n_rows":31,"n_cols":3,"rows_kept":31,"cut":false,"hidden":false,"merged":[]}
["Start"]
[]
[null,"Einführung"]
[null,null,"Mit dem Budget-Tool von moneyland.ch können Sie ganz einfach Ihr persönliches Budget aufstellen."]
[null,null,"Das Budget-Tool hilft Ihnen Ihre persönlichen Ausgaben und Einnahmen zu ermitteln."]
[null,null,"Im Tab \"Auswertung\" können Sie Ihre Ausgaben interaktiv analysieren und erhalten eine Übersicht über die gesamten Ausgaben, Einnahmen sowie Ihren Überschuss bzw. Ihr Defizit."]
[]
[null,"Ausgaben"]
[null,null,"Tragen Sie die geplanten Ausgaben im Tab \"Ausgaben\" ein. Wählen Sie zusätzlich die Häufigkeit aus (z.B. monatlich oder jährlich) mit der die einzelnen Ausgaben anfallen."]
[null,null,"Unter der Kategorie \"Rückstellungen\" können Sie regelmässige Sparraten für geplante ausserordentliche Ausgaben eintragen. Dazu gehören Sparaten für grosse und nicht regelmässig anfallende Ausgaben wie beispielsweise der Kauf eines Hauses oder eines Autos."]
[]
[]
[]
[]
[null,"Einnahmen"]
[null,null,"Tragen Sie die geplanten Einnahmen im Tab \"Einnahmen\" ein. Wählen Sie zusätzlich die Häufigkeit aus (z.B. monatlich oder jährlich) mit der die einzelnen Einnahmen anfallen."]
[]
[]
[]
[]
[null,"Auswertung"]
[null,null,"Im Tab \"Auswertung\" werden die Ausgaben und Einnahmen zusammengefasst und einander gegenübergestellt. Falls Sie ein Defizit ausweisen, sollten Sie Ihre Ausgaben bzw. Rückstellungen reduzieren. Im Falle eines Überschusses können Sie letztere erhöhen."]
[null,null,"Zusätzlich finden Sie in diesem Tab eine Pivot-Tabelle und einen Pivot-Chart, mit dem Sie Ihre Ausgaben analysieren können. Achtung: Pivot-Tabelle und Chart im Tab \"Auswertung\" sollten automatisch aktualisiert, also automatisch an Ihre Eingaben angepasst werden. Wenn Sie Makros aktiviert haben, sollte die Aktualisierung jeweils unmittelbar nach jeder Änderung im Ausgaben-Tab stattfinden. Auch ohne Makros sollten Pivot-Tabelle und Chart jeweils beim Öffnen des Dokuments und danach einmal pro Minute automatisch aktualisiert werden. Je nach Betriebssystem, Excel-Version und Einstellungen kann es jedoch zu Problemen bei der automatischen Aktualisierung kommen. In diesem Fall müssen Sie die Pivot-Tabelle nach Änderungen im Tab \"Ausgaben\" manuell aktualisieren."]
[]
[]
[]
[]
[null,"Hinweise"]
[null,null,"Eingabefelder, die ausgefüllt werden müssen, sind grün umrandet und weiss hinterlegt."]
[null,null,"Ausgaben, die für Ihr individuelles Profil nicht anfallen, sind grau schraffiert und müssen nicht ausgefüllt werden. Beispiel: Wenn Sie kein Auto besitzen, müssen Sie keine Auto-spezifischen Ausgaben beispielsweise für Benzin oder Diesel angeben."]
[null,null,"Bei einzelnen Eingabefelder finden Sie Erklärungen und Beispiele mittels der Kommentar-Funktion."]

{"sheet":"Ausgaben","index":1,"n_rows":140,"n_cols":6,"rows_kept":140,"cut":false,"hidden":false,"merged":[]}
["Ausgaben"]
[]
[null,"Allgemeine Fragen"]
[null,null,"Wie wohnen Sie?","Bitte wählen"]
[null,null,"Haben Sie ein Auto oder ein Motorrad?","Bitte wählen"]
[]
[null,"Wohnen",null,"Geldbetrag","Häufigkeit","Betrag pro Monat"]
[null,null,"Miete",null,"Monatlich",{"$f":"IF(AND(ISNUMBER(Tabelle1[[#This Row],[Spalte2]]),Tabelle1[[#This Row],[Spalte3]]<>\"Bitte wählen\"),\nIF(Tabelle1[[#This Row],[Spalte3]]=Listen!$A$13,Tabelle1[[#This Row],[Spalte2]]/Listen!$B$13,IF(Tabelle1[[#This Row],[Spalte3]]=Listen!$A$14,Tabelle1[[#This Row],[Spalte2]]/Listen!$B$14,IF(Tabelle1[[#This Row],[Spalte3]]=Listen!$A$15,Tabelle1[[#This Row],[Spalte2]]/Listen!$B$15,IF(Tabelle1[[#This Row],[Spalte3]]=Listen!$A$16,Tabelle1[[#This Row],[Spalte2]]/Listen!$B$16,IF(Tabelle1[[#This Row],[Spalte3]]=Listen!$A$17,Tabelle1[[#This Row],[Spalte2]]/Listen!$B$17,\"Nicht definiert\"))))),IF(AND(ISNUMBER(Tabelle1[[#This Row],[Spalte2]]),Tabelle1[[#This Row],[Spalte2]]<>0,Tabelle1[[#This Row],[Spalte3]]=\"Bitte wählen\"),\"Nicht definiert\",0))","v":0}]
[null,null,"Nebenkosten Akonto",null,"Monatlich",{"$f":"IF(AND(ISNUMBER(Tabelle1[[#This Row],[Spalte2]]),Tabelle1[[#This Row],[Spalte3]]<>\"Bitte wählen\"),\nIF(Tabelle1[[#This Row],[Spalte3]]=Listen!$A$13,Tabelle1[[#This Row],[Spalte2]]/Listen!$B$13,IF(Tabelle1[[#This Row],[Spalte3]]=Listen!$A$14,Tabelle1[[#This Row],[Spalte2]]/Listen!$B$14,IF(Tabelle1[[#This Row],[Spalte3]]=Listen!$A$15,Tabelle1[[#This Row],[Spalte2]]/Listen!$B$15,IF(Tabelle1[[#This Row],[Spalte3]]=Listen!$A$16,Tabelle1[[#This Row],[Spalte2]]/Listen!$B$16,IF(Tabelle1[[#This Row],[Spalte3]]=Listen!$A$17,Tabelle1[[#This Row],[Spalte2]]/Listen!$B$17,\"Nicht definiert\"))))),IF(AND(ISNUMBER(Tabelle1[[#This Row],[Spalte2]]),Tabelle1[[#This Row],[Spalte2]]<>0,Tabelle1[[#This Row],[Spalte3]]=\"Bitte wählen\"),\"Nicht definiert\",0))","v":0}]
[null,null,"Nebenkosten-Schlussabrechnung",null,"Jährlich",{"$f":"IF(AND(ISNUMBER(Tabelle1[[#This Row],[Spalte2]]),Tabelle1[[#This Row],[Spalte3]]<>\"Bitte wählen\"),\nIF(Tabelle1[[#This Row],[Spalte3]]=Listen!$A$13,Tabelle1[[#This Row],[Spalte2]]/Listen!$B$13,IF(Tabelle1[[#This Row],[Spalte3]]=Listen!$A$14,Tabelle1[[#This Row],[Spalte2]]/Listen!$B$14,IF(Tabelle1[[#This Row],[Spalte3]]=Listen!$A$15,Tabelle1[[#This Row],[Spalte2]]/Listen!$B$15,IF(Tabelle1[[#This Row],[Spalte3]]=Listen!$A$16,Tabelle1[[#This Row],[Spalte2]]/Listen!$B$16,IF(Tabelle1[[#This Row],[Spalte3]]=Listen!$A$17,Tabelle1[[#This Row],[Spalte2]]/Listen!$B$17,\"Nicht definiert\"))))),IF(AND(ISNUMBER(Tabelle1[[#This Row],[Spalte2]]),Tabelle1[[#This Row],[Spalte2]]<>0,Tabelle1[[#This Row],[Spalte3]]=\"Bitte wählen\"),\"Nicht definiert\",0))","v":0}]
[null,null,"Strom",null,"Vierteljährlich",{"$f":"IF(AND(ISNUMBER(Tabelle1[[#This Row],[Spalte2]]),Tabelle1[[#This Row],[Spalte3]]<>\"Bitte wählen\"),\nIF(Tabelle1[[#This Row],[Spalte3]]=Listen!$A$13,Tabelle1[[#This Row],[Spalte2]]/Listen!$B$13,IF(Tabelle1[[#This Row],[Spalte3]]=Listen!$A$14,Tabelle1[[#This Row],[Spalte2]]/Listen!$B$14,IF(Tabelle1[[#This Row],[Spalte3]]=Listen!$A$15,Tabelle1[[#This Row],[Spalte2]]/Listen!$B$15,IF(Tabelle1[[#This Row],[Spalte3]]=Listen!$A$16,Tabelle1[[#This Row],[Spalte2]]/Listen!$B$16,IF(Tabelle1[[#This Row],[Spalte3]]=Listen!$A$17,Tabelle1[[#This Row],[Spalte2]]/Listen!$B$17,\"Nicht definiert\"))))),IF(AND(ISNUMBER(Tabelle1[[#This Row],[Spalte2]]),Tabelle1[[#This Row],[Spalte2]]<>0,Tabelle1[[#This Row],[Spalte3]]=\"Bitte wählen\"),\"Nicht definiert\",0))","v":0}]
[null,null,"Hausratversicherung",null,"Jährlich",{"$f":"IF(AND(ISNUMBER(Tabelle1[[#This Row],[Spalte2]]),Tabelle1[[#This Row],[Spalte3]]<>\"Bitte wählen\"),\nIF(Tabelle1[[#This Row],[Spalte3]]=Listen!$A$13,Tabelle1[[#This Row],[Spalte2]]/Listen!$B$13,IF(Tabelle1[[#This Row],[Spalte3]]=Listen!$A$14,Tabelle1[[#This Row],[Spalte2]]/Listen!$B$14,IF(Tabelle1[[#This Row],[Spalte3]]=Listen!$A$15,Tabelle1[[#This Row],[Spalte2]]/Listen!$B$15,IF(Tabelle1[[#This Row],[Spalte3]]=Listen!$A$16,Tabelle1[[#This Row],[Spalte2]]/Listen!$B$16,IF(Tabelle1[[#This Row],[Spalte3]]=Listen!$A$17,Tabelle1[[#This Row],[Spalte2]]/Listen!$B$17,\"Nicht definiert\"))))),IF(AND(ISNUMBER(Tabelle1[[#This Row],[Spalte2]]),Tabelle1[[#This Row],[Spalte2]]<>0,Tabelle1[[#This Row],[Spalte3]]=\"Bitte wählen\"),\"Nicht definiert\",0))","v":0}]
[null,null,"Mietkautionsversicherung",null,"Jährlich",{"$f":"IF(AND(ISNUMBER(Tabelle1[[#This Row],[Spalte2]]),Tabelle1[[#This Row],[Spalte3]]<>\"Bitte wählen\"),\nIF(Tabelle1[[#This Row],[Spalte3]]=Listen!$A$13,Tabelle1[[#This Row],[Spalte2]]/Listen!$B$13,IF(Tabelle1[[#This Row],[Spalte3]]=Listen!$A$14,Tabelle1[[#This Row],[Spalte2]]/Listen!$B$14,IF(Tabelle1[[#This Row],[Spalte3]]=Listen!$A$15,Tabelle1[[#This Row],[Spalte2]]/Listen!$B$15,IF(Tabelle1[[#This Row],[Spalte3]]=Listen!$A$16,Tabelle1[[#This Row],[Spalte2]]/Listen!$B$16,IF(Tabelle1[[#This Row],[Spalte3]]=Listen!$A$17,Tabelle1[[#This Row],[Spalte2]]/Listen!$B$17,\"Nicht definiert\"))))),IF(AND(ISNUMBER(Tabelle1[[#This Row],[Spalte2]]),Tabelle1[[#This Row],[Spalte2]]<>0,Tabelle1[[#This Row],[Spalte3]]=\"Bitte wählen\"),\"Nicht definiert\",0))","v":0}]
[null,null,"Weiteres",null,"Bitte wählen",{"$f":"IF(AND(ISNUMBER(Tabelle1[[#This Row],[Spalte2]]),Tabelle1[[#This Row],[Spalte3]]<>\"Bitte wählen\"),\nIF(Tabelle1[[#This Row],[Spalte3]]=Listen!$A$13,Tabelle1[[#This Row],[Spalte2]]/Listen!$B$13,IF(Tabelle1[[#This Row],[Spalte3]]=Listen!$A$14,Tabelle1[[#This Row],[Spalte2]]/Listen!$B$14,IF(Tabelle1[[#This Row],[Spalte3]]=Listen!$A$15,Tabelle1[[#This Row],[Spalte2]]/Listen!$B$15,IF(Tabelle1[[#This Row],[Spalte3]]=Listen!$A$16,Tabelle1[[#This Row],[Spalte2]]/Listen!$B$16,IF(Tabelle1[[#This Row],[Spalte3]]=Listen!$A$17,Tabelle1[[#This Row],[Spalte2]]/Listen!$B$17,\"Nicht definiert\"))))),IF(AND(ISNUMBER(Tabelle1[[#This Row],[Spalte2]]),Tabelle1[[#This Row],[Spalte2]]<>0,Tabelle1[[#This Row],[Spalte3]]=\"Bitte wählen\"),\"Nicht definiert\",0))","v":0}]
[null,null,"Hypothekarzins",null,"Vierteljährlich",{"$f":"IF(AND(ISNUMBER(Tabelle1[[#This Row],[Spalte2]]),Tabelle1[[#This Row],[Spalte3]]<>\"Bitte wählen\"),\nIF(Tabelle1[[#This Row],[Spalte3]]=Listen!$A$13,Tabelle1[[#This Row],[Spalte2]]/Listen!$B$13,IF(Tabelle1[[#This Row],[Spalte3]]=Listen!$A$14,Tabelle1[[#This Row],[Spalte2]]/Listen!$B$14,IF(Tabelle1[[#This Row],[Spalte3]]=Listen!$A$15,Tabelle1[[#This Row],[Spalte2]]/Listen!$B$15,IF(Tabelle1[[#This Row],[Spalte3]]=Listen!$A$16,Tabelle1[[#This Row],[Spalte2]]/Listen!$B$16,IF(Tabelle1[[#This Row],[Spalte3]]=Listen!$A$17,Tabelle1[[#This Row],[Spalte2]]/Listen!$B$17,\"Nicht definiert\"))))),IF(AND(ISNUMBER(Tabelle1[[#This Row],[Spalte2]]),Tabelle1[[#This Row],[Spalte2]]<>0,Tabelle1[[#This Row],[Spalte3]]=\"Bitte wählen\"),\"Nicht definiert\",0))","v":0}]
[null,null,"Nebenkosten / Betriebskosten",null,"Jährlich",{"$f":"IF(AND(ISNUMBER(Tabelle1[[#This Row],[Spalte2]]),Tabelle1[[#This Row],[Spalte3]]<>\"Bitte wählen\"),\nIF(Tabelle1[[#This Row],[Spalte3]]=Listen!$A$13,Tabelle1[[#This Row],[Spalte2]]/Listen!$B$13,IF(Tabelle1[[#This Row],[Spalte3]]=Listen!$A$14,Tabelle1[[#This Row],[Spalte2]]/Listen!$B$14,IF(Tabelle1[[#This Row],[Spalte3]]=Listen!$A$15,Tabelle1[[#This Row],[Spalte2]]/Listen!$B$15,IF(Tabelle1[[#This Row],[Spalte3]]=Listen!$A$16,Tabelle1[[#This Row],[Spalte2]]/Listen!$B$16,IF(Tabelle1[[#This Row],[Spalte3]]=Listen!$A$17,Tabelle1[[#This Row],[Spalte2]]/Listen!$B$17,\"Nicht definiert\"))))),IF(AND(ISNUMBER(Tabelle1[[#This Row],[Spalte2]]),Tabelle1[[#This Row],[Spalte2]]<>0,Tabelle1[[#This Row],[Spalte3]]=\"Bitte wählen\"),\"Nicht definiert\",0))","v":0}]
[null,null,"Unterhalt und kleinere Reparaturen",null,"Jährlich",{"$f":"IF(AND(ISNUMBER(Tabelle1[[#This Row],[Spalte2]]),Tabelle1[[#This Row],[Spalte3]]<>\"Bitte wählen\"),\nIF(Tabelle1[[#This Row],[Spalte3]]=Listen!$A$13,Tabelle1[[#This Row],[Spalte2]]/Listen!$B$13,IF(Tabelle1[[#This Row],[Spalte3]]=Listen!$A$14,Tabelle1[[#This Row],[Spalte2]]/Listen!$B$14,IF(Tabelle1[[#This Row],[Spalte3]]=Listen!$A$15,Tabelle1[[#This Row],[Spalte2]]/Listen!$B$15,IF(Tabelle1[[#This Row],[Spalte3]]=Listen!$A$16,Tabelle1[[#This Row],[Spalte2]]/Listen!$B$16,IF(Tabelle1[[#This Row],[Spalte3]]=Listen!$A$17,Tabelle1[[#This Row],[Spalte2]]/Listen!$B$17,\"Nicht definiert\"))))),IF(AND(ISNUMBER(Tabelle1[[#This Row],[Spalte2]]),Tabelle1[[#This Row],[Spalte2]]<>0,Tabelle1[[#This Row],[Spalte3]]=\"Bitte wählen\"),\"Nicht definiert\",0))","v":0}]
[null,null,"Gebäudeversicherung",null,"Jährlich",{"$f":"IF(AND(ISNUMBER(Tabelle1[[#This Row],[Spalte2]]),Tabelle1[[#This Row],[Spalte3]]<>\"Bitte wählen\"),\nIF(Tabelle1[[#This Row],[Spalte3]]=Listen!$A$13,Tabelle1[[#This Row],[Spalte2]]/Listen!$B$13,IF(Tabelle1[[#This Row],[Spalte3]]=Listen!$A$14,Tabelle1[[#This Row],[Spalte2]]/Listen!$B$14,IF(Tabelle1[[#This Row],[Spalte3]]=Listen!$A$15,Tabelle1[[#This Row],[Spalte2]]/Listen!$B$15,IF(Tabelle1[[#This Row],[Spalte3]]=Listen!$A$16,Tabelle1[[#This Row],[Spalte2]]/Listen!$B$16,IF(Tabelle1[[#This Row],[Spalte3]]=Listen!$A$17,Tabelle1[[#This Row],[Spalte2]]/Listen!$B$17,\"Nicht definiert\"))))),IF(AND(ISNUMBER(Tabelle1[[#This Row],[Spalte2]]),Tabelle1[[#This Row],[Spalte2]]<>0,Tabelle1[[#This Row],[Spalte3]]=\"Bitte wählen\"),\"Nicht definiert\",0))","v":0}]
[null,null,"Amortisation",null,"Jährlich",{"$f":"IF(AND(ISNUMBER(Tabelle1[[#This Row],[Spalte2]]),Tabelle1[[#This Row],[Spalte3]]<>\"Bitte wählen\"),\nIF(Tabelle1[[#This Row],[Spalte3]]=Listen!$A$13,Tabelle1[[#This Row],[Spalte2]]/Listen!$B$13,IF(Tabelle1[[#This Row],[Spalte3]]=Listen!$A$14,Tabelle1[[#This Row],[Spalte2]]/Listen!$B$14,IF(Tabelle1[[#This Row],[Spalte3]]=Listen!$A$15,Tabelle1[[#This Row],[Spalte2]]/Listen!$B$15,IF(Tabelle1[[#This Row],[Spalte3]]=Listen!$A$16,Tabelle1[[#This Row],[Spalte2]]/Listen!$B$16,IF(Tabelle1[[#This Row],[Spalte3]]=Listen!$A$17,Tabelle1[[#This Row],[Spalte2]]/Listen!$B$17,\"Nicht definiert\"))))),IF(AND(ISNUMBER(Tabelle1[[#This Row],[Spalte2]]),Tabelle1[[#This Row],[Spalte2]]<>0,Tabelle1[[#This Row],[Spalte3]]=\"Bitte wählen\"),\"Nicht definiert\",0))","v":0}]
[null,null,"Weiteres",null,"Bitte wählen",{"$f":"IF(AND(ISNUMBER(Tabelle1[[#This Row],[Spalte2]]),Tabelle1[[#This Row],[Spalte3]]<>\"Bitte wählen\"),\nIF(Tabelle1[[#This Row],[Spalte3]]=Listen!$A$13,Tabelle1[[#This Row],[Spalte2]]/Listen!$B$13,IF(Tabelle1[[#This Row],[Spalte3]]=Listen!$A$14,Tabelle1[[#This Row],[Spalte2]]/Listen!$B$14,IF(Tabelle1[[#This Row],[Spalte3]]=Listen!$A$15,Tabelle1[[#This Row],[Spalte2]]/Listen!$B$15,IF(Tabelle1[[#This Row],[Spalte3]]=Listen!$A$16,Tabelle1[[#This Row],[Spalte2]]/Listen!$B$16,IF(Tabelle1[[#This Row],[Spalte3]]=Listen!$A$17,Tabelle1[[#This Row],[Spalte2]]/Listen!$B$17,\"Nicht definiert\"))))),IF(AND(ISNUMBER(Tabelle1[[#This Row],[Spalte2]]),Tabelle1[[#This Row],[Spalte2]]<>0,Tabelle1[[#This Row],[Spalte3]]=\"Bitte wählen\"),\"Nicht definiert\",0))","v":0}]
[null,null,"Total",null,null,{"$f":"SUM(Tabelle1[[#All],[Spalte4]])","v":0}]
[]
[null,"Gesundheit und Körperpflege",null,"Geldbetrag","Häufigkeit","Betrag pro Monat"]
[null,null,"Krankenkasse Grundversicherung",null,"Monatlich",{"$f":"IF(AND(ISNUMBER(Tabelle2[[#This Row],[Spalte2]]),Tabelle2[[#This Row],[Spalte3]]<>\"Bitte wählen\"),\nIF(Tabelle2[[#This Row],[Spalte3]]=Listen!$A$13,Tabelle2[[#This Row],[Spalte2]]/Listen!$B$13,IF(Tabelle2[[#This Row],[Spalte3]]=Listen!$A$14,Tabelle2[[#This Row],[Spalte2]]/Listen!$B$14,IF(Tabelle2[[#This Row],[Spalte3]]=Listen!$A$15,Tabelle2[[#This Row],[Spalte2]]/Listen!$B$15,IF(Tabelle2[[#This Row],[Spalte3]]=Listen!$A$16,Tabelle2[[#This Row],[Spalte2]]/Listen!$B$16,IF(Tabelle2[[#This Row],[Spalte3]]=Listen!$A$17,Tabelle2[[#This Row],[Spalte2]]/Listen!$B$17,\"Nicht definiert\"))))),IF(AND(ISNUMBER(Tabelle2[[#This Row],[Spalte2]]),Tabelle2[[#This Row],[Spalte2]]<>0,Tabelle2[[#This Row],[Spalte3]]=\"Bitte wählen\"),\"Nicht definiert\",0))","v":0}]
[null,null,"Krankenkassen Zusatzversicherungen",null,"Monatlich",{"$f":"IF(AND(ISNUMBER(Tabelle2[[#This Row],[Spalte2]]),Tabelle2[[#This Row],[Spalte3]]<>\"Bitte wählen\"),\nIF(Tabelle2[[#This Row],[Spalte3]]=Listen!$A$13,Tabelle2[[#This Row],[Spalte2]]/Listen!$B$13,IF(Tabelle2[[#This Row],[Spalte3]]=Listen!$A$14,Tabelle2[[#This Row],[Spalte2]]/Listen!$B$14,IF(Tabelle2[[#This Row],[Spalte3]]=Listen!$A$15,Tabelle2[[#This Row],[Spalte2]]/Listen!$B$15,IF(Tabelle2[[#This Row],[Spalte3]]=Listen!$A$16,Tabelle2[[#This Row],[Spalte2]]/Listen!$B$16,IF(Tabelle2[[#This Row],[Spalte3]]=Listen!$A$17,Tabelle2[[#This Row],[Spalte2]]/Listen!$B$17,\"Nicht definiert\"))))),IF(AND(ISNUMBER(Tabelle2[[#This Row],[Spalte2]]),Tabelle2[[#This Row],[Spalte2]]<>0,Tabelle2[[#This Row],[Spalte3]]=\"Bitte wählen\"),\"Nicht definiert\",0))","v":0}]
[null,null,"Dentalhygiene",null,"Jährlich",{"$f":"IF(AND(ISNUMBER(Tabelle2[[#This Row],[Spalte2]]),Tabelle2[[#This Row],[Spalte3]]<>\"Bitte wählen\"),\nIF(Tabelle2[[#This Row],[Spalte3]]=Listen!$A$13,Tabelle2[[#This Row],[Spalte2]]/Listen!$B$13,IF(Tabelle2[[#This Row],[Spalte3]]=Listen!$A$14,Tabelle2[[#This Row],[Spalte2]]/Listen!$B$14,IF(Tabelle2[[#This Row],[Spalte3]]=Listen!$A$15,Tabelle2[[#This Row],[Spalte2]]/Listen!$B$15,IF(Tabelle2[[#This Row],[Spalte3]]=Listen!$A$16,Tabelle2[[#This Row],[Spalte2]]/Listen!$B$16,IF(Tabelle2[[#This Row],[Spalte3]]=Listen!$A$17,Tabelle2[[#This Row],[Spalte2]]/Listen!$B$17,\"Nicht definiert\"))))),IF(AND(ISNUMBER(Tabelle2[[#This Row],[Spalte2]]),Tabelle2[[#This Row],[Spalte2]]<>0,Tabelle2[[#This Row],[Spalte3]]=\"Bitte wählen\"),\"Nicht definiert\",0))","v":0}]
[null,null,"Hygieneartikel",null,"Monatlich",{"$f":"IF(AND(ISNUMBER(Tabelle2[[#This Row],[Spalte2]]),Tabelle2[[#This Row],[Spalte3]]<>\"Bitte wählen\"),\nIF(Tabelle2[[#This Row],[Spalte3]]=Listen!$A$13,Tabelle2[[#This Row],[Spalte2]]/Listen!$B$13,IF(Tabelle2[[#This Row],[Spalte3]]=Listen!$A$14,Tabelle2[[#This Row],[Spalte2]]/Listen!$B$14,IF(Tabelle2[[#This Row],[Spalte3]]=Listen!$A$15,Tabelle2[[#This Row],[Spalte2]]/Listen!$B$15,IF(Tabelle2[[#This Row],[Spalte3]]=Listen!$A$16,Tabelle2[[#This Row],[Spalte2]]/Listen!$B$16,IF(Tabelle2[[#This Row],[Spalte3]]=Listen!$A$17,Tabelle2[[#This Row],[Spalte2]]/Listen!$B$17,\"Nicht definiert\"))))),IF(AND(ISNUMBER(Tabelle2[[#This Row],[Spalte2]]),Tabelle2[[#This Row],[Spalte2]]<>0,Tabelle2[[#This Row],[Spalte3]]=\"Bitte wählen\"),\"Nicht definiert\",0))","v":0}]
[null,null,"Friseur",null,"Monatlich",{"$f":"IF(AND(ISNUMBER(Tabelle2[[#This Row],[Spalte2]]),Tabelle2[[#This Row],[Spalte3]]<>\"Bitte wählen\"),\nIF(Tabelle2[[#This Row],[Spalte3]]=Listen!$A$13,Tabelle2[[#This Row],[Spalte2]]/Listen!$B$13,IF(Tabelle2[[#This Row],[Spalte3]]=Listen!$A$14,Tabelle2[[#This Row],[Spalte2]]/Listen!$B$14,IF(Tabelle2[[#This Row],[Spalte3]]=Listen!$A$15,Tabelle2[[#This Row],[Spalte2]]/Listen!$B$15,IF(Tabelle2[[#This Row],[Spalte3]]=Listen!$A$16,Tabelle2[[#This Row],[Spalte2]]/Listen!$B$16,IF(Tabelle2[[#This Row],[Spalte3]]=Listen!$A$17,Tabelle2[[#This Row],[Spalte2]]/Listen!$B$17,\"Nicht definiert\"))))),IF(AND(ISNUMBER(Tabelle2[[#This Row],[Spalte2]]),Tabelle2[[#This Row],[Spalte2]]<>0,Tabelle2[[#This Row],[Spalte3]]=\"Bitte wählen\"),\"Nicht definiert\",0))","v":0}]
[null,null,"Kontaktlinsen",null,"Bitte wählen",{"$f":"IF(AND(ISNUMBER(Tabelle2[[#This Row],[Spalte2]]),Tabelle2[[#This Row],[Spalte3]]<>\"Bitte wählen\"),\nIF(Tabelle2[[#This Row],[Spalte3]]=Listen!$A$13,Tabelle2[[#This Row],[Spalte2]]/Listen!$B$13,IF(Tabelle2[[#This Row],[Spalte3]]=Listen!$A$14,Tabelle2[[#This Row],[Spalte2]]/Listen!$B$14,IF(Tabelle2[[#This Row],[Spalte3]]=Listen!$A$15,Tabelle2[[#This Row],[Spalte2]]/Listen!$B$15,IF(Tabelle2[[#This Row],[Spalte3]]=Listen!$A$16,Tabelle2[[#This Row],[Spalte2]]/Listen!$B$16,IF(Tabelle2[[#This Row],[Spalte3]]=Listen!$A$17,Tabelle2[[#This Row],[Spalte2]]/Listen!$B$17,\"Nicht definiert\"))))),IF(AND(ISNUMBER(Tabelle2[[#This Row],[Spalte2]]),Tabelle2[[#This Row],[Spalte2]]<>0,Tabelle2[[#This Row],[Spalte3]]=\"Bitte wählen\"),\"Nicht definiert\",0))","v":0}]
[null,null,"Kosmetik, Maniküre, Pediküre, …",null,"Bitte wählen",{"$f":"IF(AND(ISNUMBER(Tabelle2[[#This Row],[Spalte2]]),Tabelle2[[#This Row],[Spalte3]]<>\"Bitte wählen\"),\nIF(Tabelle2[[#This Row],[Spalte3]]=Listen!$A$13,Tabelle2[[#This Row],[Spalte2]]/Listen!$B$13,IF(Tabelle2[[#This Row],[Spalte3]]=Listen!$A$14,Tabelle2[[#This Row],[Spalte2]]/Listen!$B$14,IF(Tabelle2[[#This Row],[Spalte3]]=Listen!$A$15,Tabelle2[[#This Row],[Spalte2]]/Listen!$B$15,IF(Tabelle2[[#This Row],[Spalte3]]=Listen!$A$16,Tabelle2[[#This Row],[Spalte2]]/Listen!$B$16,IF(Tabelle2[[#This Row],[Spalte3]]=Listen!$A$17,Tabelle2[[#This Row],[Spalte2]]/Listen!$B$17,\"Nicht definiert\"))))),IF(AND(ISNUMBER(Tabelle2[[#This Row],[Spalte2]]),Tabelle2[[#This Row],[Spalte2]]<>0,Tabelle2[[#This Row],[Spalte3]]=\"Bitte wählen\"),\"Nicht definiert\",0))","v":0}]
[null,null,"Weiteres",null,"Bitte wählen",{"$f":"IF(AND(ISNUMBER(Tabelle2[[#This Row],[Spalte2]]),Tabelle2[[#This Row],[Spalte3]]<>\"Bitte wählen\"),\nIF(Tabelle2[[#This Row],[Spalte3]]=Listen!$A$13,Tabelle2[[#This Row],[Spalte2]]/Listen!$B$13,IF(Tabelle2[[#This Row],[Spalte3]]=Listen!$A$14,Tabelle2[[#This Row],[Spalte2]]/Listen!$B$14,IF(Tabelle2[[#This Row],[Spalte3]]=Listen!$A$15,Tabelle2[[#This Row],[Spalte2]]/Listen!$B$15,IF(Tabelle2[[#This Row],[Spalte3]]=Listen!$A$16,Tabelle2[[#This Row],[Spalte2]]/Listen!$B$16,IF(Tabelle2[[#This Row],[Spalte3]]=Listen!$A$17,Tabelle2[[#This Row],[Spalte2]]/Listen!$B$17,\"Nicht definiert\"))))),IF(AND(ISNUMBER(Tabelle2[[#This Row],[Spalte2]]),Tabelle2[[#This Row],[Spalte2]]<>0,Tabelle2[[#This Row],[Spalte3]]=\"Bitte wählen\"),\"Nicht definiert\",0))","v":0}]
[null,null,"Total",null,null,{"$f":"SUM(Tabelle2[[#All],[Spalte4]])","v":0}]
[]
[null,"Mobilität",null,"Geldbetrag","Häufigkeit","Betrag pro Monat"]
[null,null,"ÖV-Abos",null,"Jährlich",{"$f":"IF(AND(ISNUMBER(Tabelle3[[#This Row],[Spalte2]]),Tabelle3[[#This Row],[Spalte3]]<>\"Bitte wählen\"),\nIF(Tabelle3[[#This Row],[Spalte3]]=Listen!$A$13,Tabelle3[[#This Row],[Spalte2]]/Listen!$B$13,IF(Tabelle3[[#This Row],[Spalte3]]=Listen!$A$14,Tabelle3[[#This Row],[Spalte2]]/Listen!$B$14,IF(Tabelle3[[#This Row],[Spalte3]]=Listen!$A$15,Tabelle3[[#This Row],[Spalte2]]/Listen!$B$15,IF(Tabelle3[[#This Row],[Spalte3]]=Listen!$A$16,Tabelle3[[#This Row],[Spalte2]]/Listen!$B$16,IF(Tabelle3[[#This Row],[Spalte3]]=Listen!$A$17,Tabelle3[[#This Row],[Spalte2]]/Listen!$B$17,\"Nicht definiert\"))))),IF(AND(ISNUMBER(Tabelle3[[#This Row],[Spalte2]]),Tabelle3[[#This Row],[Spalte2]]<>0,Tabelle3[[#This Row],[Spalte3]]=\"Bitte wählen\"),\"Nicht definiert\",0))","v":0}]
[null,null,"ÖV Halbtax-Abo",null,"Jährlich",{"$f":"IF(AND(ISNUMBER(Tabelle3[[#This Row],[Spalte2]]),Tabelle3[[#This Row],[Spalte3]]<>\"Bitte wählen\"),\nIF(Tabelle3[[#This Row],[Spalte3]]=Listen!$A$13,Tabelle3[[#This Row],[Spalte2]]/Listen!$B$13,IF(Tabelle3[[#This Row],[Spalte3]]=Listen!$A$14,Tabelle3[[#This Row],[Spalte2]]/Listen!$B$14,IF(Tabelle3[[#This Row],[Spalte3]]=Listen!$A$15,Tabelle3[[#This Row],[Spalte2]]/Listen!$B$15,IF(Tabelle3[[#This Row],[Spalte3]]=Listen!$A$16,Tabelle3[[#This Row],[Spalte2]]/Listen!$B$16,IF(Tabelle3[[#This Row],[Spalte3]]=Listen!$A$17,Tabelle3[[#This Row],[Spalte2]]/Listen!$B$17,\"Nicht definiert\"))))),IF(AND(ISNUMBER(Tabelle3[[#This Row],[Spalte2]]),Tabelle3[[#This Row],[Spalte2]]<>0,Tabelle3[[#This Row],[Spalte3]]=\"Bitte wählen\"),\"Nicht definiert\",0))","v":0}]
[null,null,"ÖV Einzelbillete",null,"Monatlich",{"$f":"IF(AND(ISNUMBER(Tabelle3[[#This Row],[Spalte2]]),Tabelle3[[#This Row],[Spalte3]]<>\"Bitte wählen\"),\nIF(Tabelle3[[#This Row],[Spalte3]]=Listen!$A$13,Tabelle3[[#This Row],[Spalte2]]/Listen!$B$13,IF(Tabelle3[[#This Row],[Spalte3]]=Listen!$A$14,Tabelle3[[#This Row],[Spalte2]]/Listen!$B$14,IF(Tabelle3[[#This Row],[Spalte3]]=Listen!$A$15,Tabelle3[[#This Row],[Spalte2]]/Listen!$B$15,IF(Tabelle3[[#This Row],[Spalte3]]=Listen!$A$16,Tabelle3[[#This Row],[Spalte2]]/Listen!$B$16,IF(Tabelle3[[#This Row],[Spalte3]]=Listen!$A$17,Tabelle3[[#This Row],[Spalte2]]/Listen!$B$17,\"Nicht definiert\"))))),IF(AND(ISNUMBER(Tabelle3[[#This Row],[Spalte2]]),Tabelle3[[#This Row],[Spalte2]]<>0,Tabelle3[[#This Row],[Spalte3]]=\"Bitte wählen\"),\"Nicht definiert\",0))","v":0}]
[null,null,"Taxi, Uber",null,"Monatlich",{"$f":"IF(AND(ISNUMBER(Tabelle3[[#This Row],[Spalte2]]),Tabelle3[[#This Row],[Spalte3]]<>\"Bitte wählen\"),\nIF(Tabelle3[[#This Row],[Spalte3]]=Listen!$A$13,Tabelle3[[#This Row],[Spalte2]]/Listen!$B$13,IF(Tabelle3[[#This Row],[Spalte3]]=Listen!$A$14,Tabelle3[[#This Row],[Spalte2]]/Listen!$B$14,IF(Tabelle3[[#This Row],[Spalte3]]=Listen!$A$15,Tabelle3[[#This Row],[Spalte2]]/Listen!$B$15,IF(Tabelle3[[#This Row],[Spalte3]]=Listen!$A$16,Tabelle3[[#This Row],[Spalte2]]/Listen!$B$16,IF(Tabelle3[[#This Row],[Spalte3]]=Listen!$A$17,Tabelle3[[#This Row],[Spalte2]]/Listen!$B$17,\"Nicht definiert\"))))),IF(AND(ISNUMBER(Tabelle3[[#This Row],[Spalte2]]),Tabelle3[[#This Row],[Spalte2]]<>0,Tabelle3[[#This Row],[Spalte3]]=\"Bitte wählen\"),\"Nicht definiert\",0))","v":0}]
[null,null,"Mofa, E-Bike, Velo",null,"Bitte wählen",{"$f":"IF(AND(ISNUMBER(Tabelle3[[#This Row],[Spalte2]]),Tabelle3[[#This Row],[Spalte3]]<>\"Bitte wählen\"),\nIF(Tabelle3[[#This Row],[Spalte3]]=Listen!$A$13,Tabelle3[[#This Row],[Spalte2]]/Listen!$B$13,IF(Tabelle3[[#This Row],[Spalte3]]=Listen!$A$14,Tabelle3[[#This Row],[Spalte2]]/Listen!$B$14,IF(Tabelle3[[#This Row],[Spalte3]]=Listen!$A$15,Tabelle3[[#This Row],[Spalte2]]/Listen!$B$15,IF(Tabelle3[[#This Row],[Spalte3]]=Listen!$A$16,Tabelle3[[#This Row],[Spalte2]]/Listen!$B$16,IF(Tabelle3[[#This Row],[Spalte3]]=Listen!$A$17,Tabelle3[[#This Row],[Spalte2]]/Listen!$B$17,\"Nicht definiert\"))))),IF(AND(ISNUMBER(Tabelle3[[#This Row],[Spalte2]]),Tabelle3[[#This Row],[Spalte2]]<>0,Tabelle3[[#This Row],[Spalte3]]=\"Bitte wählen\"),\"Nicht definiert\",0))","v":0}]
[null,null,"Weiteres",null,"Bitte wählen",{"$f":"IF(AND(ISNUMBER(Tabelle3[[#This Row],[Spalte2]]),Tabelle3[[#This Row],[Spalte3]]<>\"Bitte wählen\"),\nIF(Tabelle3[[#This Row],[Spalte3]]=Listen!$A$13,Tabelle3[[#This Row],[Spalte2]]/Listen!$B$13,IF(Tabelle3[[#This Row],[Spalte3]]=Listen!$A$14,Tabelle3[[#This Row],[Spalte2]]/Listen!$B$14,IF(Tabelle3[[#This Row],[Spalte3]]=Listen!$A$15,Tabelle3[[#This Row],[Spalte2]]/Listen!$B$15,IF(Tabelle3[[#This Row],[Spalte3]]=Listen!$A$16,Tabelle3[[#This Row],[Spalte2]]/Listen!$B$16,IF(Tabelle3[[#This Row],[Spalte3]]=Listen!$A$17,Tabelle3[[#This Row],[Spalte2]]/Listen!$B$17,\"Nicht definiert\"))))),IF(AND(ISNUMBER(Tabelle3[[#This Row],[Spalte2]]),Tabelle3[[#This Row],[Spalte2]]<>0,Tabelle3[[#This Row],[Spalte3]]=\"Bitte wählen\"),\"Nicht definiert\",0))","v":0}]
[null,null,"Total",null,null,{"$f":"SUM(Tabelle3[[#All],[Spalte4]])","v":0}]
[]
[null,"Auto und Motorrad",null,"Geldbetrag","Häufigkeit","Betrag pro Monat"]
[null,null,"Service",null,"Jährlich",{"$f":"IF(AND(ISNUMBER(Tabelle4[[#This Row],[Spalte2]]),Tabelle4[[#This Row],[Spalte3]]<>\"Bitte wählen\"),\nIF(Tabelle4[[#This Row],[Spalte3]]=Listen!$A$13,Tabelle4[[#This Row],[Spalte2]]/Listen!$B$13,IF(Tabelle4[[#This Row],[Spalte3]]=Listen!$A$14,Tabelle4[[#This Row],[Spalte2]]/Listen!$B$14,IF(Tabelle4[[#This Row],[Spalte3]]=Listen!$A$15,Tabelle4[[#This Row],[Spalte2]]/Listen!$B$15,IF(Tabelle4[[#This Row],[Spalte3]]=Listen!$A$16,Tabelle4[[#This Row],[Spalte2]]/Listen!$B$16,IF(Tabelle4[[#This Row],[Spalte3]]=Listen!$A$17,Tabelle4[[#This Row],[Spalte2]]/Listen!$B$17,\"Nicht definiert\"))))),IF(AND(ISNUMBER(Tabelle4[[#This Row],[Spalte2]]),Tabelle4[[#This Row],[Spalte2]]<>0,Tabelle4[[#This Row],[Spalte3]]=\"Bitte wählen\"),\"Nicht definiert\",0))","v":0}]
[null,null,"Auto-Versicherungen",null,"Jährlich",{"$f":"IF(AND(ISNUMBER(Tabelle4[[#This Row],[Spalte2]]),Tabelle4[[#This Row],[Spalte3]]<>\"Bitte wählen\"),\nIF(Tabelle4[[#This Row],[Spalte3]]=Listen!$A$13,Tabelle4[[#This Row],[Spalte2]]/Listen!$B$13,IF(Tabelle4[[#This Row],[Spalte3]]=Listen!$A$14,Tabelle4[[#This Row],[Spalte2]]/Listen!$B$14,IF(Tabelle4[[#This Row],[Spalte3]]=Listen!$A$15,Tabelle4[[#This Row],[Spalte2]]/Listen!$B$15,IF(Tabelle4[[#This Row],[Spalte3]]=Listen!$A$16,Tabelle4[[#This Row],[Spalte2]]/Listen!$B$16,IF(Tabelle4[[#This Row],[Spalte3]]=Listen!$A$17,Tabelle4[[#This Row],[Spalte2]]/Listen!$B$17,\"Nicht definiert\"))))),IF(AND(ISNUMBER(Tabelle4[[#This Row],[Spalte2]]),Tabelle4[[#This Row],[Spalte2]]<>0,Tabelle4[[#This Row],[Spalte3]]=\"Bitte wählen\"),\"Nicht definiert\",0))","v":0}]
[null,null,"Leasingrate",null,"Monatlich",{"$f":"IF(AND(ISNUMBER(Tabelle4[[#This Row],[Spalte2]]),Tabelle4[[#This Row],[Spalte3]]<>\"Bitte wählen\"),\nIF(Tabelle4[[#This Row],[Spalte3]]=Listen!$A$13,Tabelle4[[#This Row],[Spalte2]]/Listen!$B$13,IF(Tabelle4[[#This Row],[Spalte3]]=Listen!$A$14,Tabelle4[[#This Row],[Spalte2]]/Listen!$B$14,IF(Tabelle4[[#This Row],[Spalte3]]=Listen!$A$15,Tabelle4[[#This Row],[Spalte2]]/Listen!$B$15,IF(Tabelle4[[#This Row],[Spalte3]]=Listen!$A$16,Tabelle4[[#This Row],[Spalte2]]/Listen!$B$16,IF(Tabelle4[[#This Row],[Spalte3]]=Listen!$A$17,Tabelle4[[#This Row],[Spalte2]]/Listen!$B$17,\"Nicht definiert\"))))),IF(AND(ISNUMBER(Tabelle4[[#This Row],[Spalte2]]),Tabelle4[[#This Row],[Spalte2]]<>0,Tabelle4[[#This Row],[Spalte3]]=\"Bitte wählen\"),\"Nicht definiert\",0))","v":0}]
[null,null,"Parkplatz",null,"Monatlich",{"$f":"IF(AND(ISNUMBER(Tabelle4[[#This Row],[Spalte2]]),Tabelle4[[#This Row],[Spalte3]]<>\"Bitte wählen\"),\nIF(Tabelle4[[#This Row],[Spalte3]]=Listen!$A$13,Tabelle4[[#This Row],[Spalte2]]/Listen!$B$13,IF(Tabelle4[[#This Row],[Spalte3]]=Listen!$A$14,Tabelle4[[#This Row],[Spalte2]]/Listen!$B$14,IF(Tabelle4[[#This Row],[Spalte3]]=Listen!$A$15,Tabelle4[[#This Row],[Spalte2]]/Listen!$B$15,IF(Tabelle4[[#This Row],[Spalte3]]=Listen!$A$16,Tabelle4[[#This Row],[Spalte2]]/Listen!$B$16,IF(Tabelle4[[#This Row],[Spalte3]]=Listen!$A$17,Tabelle4[[#This Row],[Spalte2]]/Listen!$B$17,\"Nicht definiert\"))))),IF(AND(ISNUMBER(Tabelle4[[#This Row],[Spalte2]]),Tabelle4[[#This Row],[Spalte2]]<>0,Tabelle4[[#This Row],[Spalte3]]=\"Bitte wählen\"),\"Nicht definiert\",0))","v":0}]
[null,null,"Motorfahrzeugsteuer",null,"Jährlich",{"$f":"IF(AND(ISNUMBER(Tabelle4[[#This Row],[Spalte2]]),Tabelle4[[#This Row],[Spalte3]]<>\"Bitte wählen\"),\nIF(Tabelle4[[#This Row],[Spalte3]]=Listen!$A$13,Tabelle4[[#This Row],[Spalte2]]/Listen!$B$13,IF(Tabelle4[[#This Row],[Spalte3]]=Listen!$A$14,Tabelle4[[#This Row],[Spalte2]]/Listen!$B$14,IF(Tabelle4[[#This Row],[Spalte3]]=Listen!$A$15,Tabelle4[[#This Row],[Spalte2]]/Listen!$B$15,IF(Tabelle4[[#This Row],[Spalte3]]=Listen!$A$16,Tabelle4[[#This Row],[Spalte2]]/Listen!$B$16,IF(Tabelle4[[#This Row],[Spalte3]]=Listen!$A$17,Tabelle4[[#This Row],[Spalte2]]/Listen!$B$17,\"Nicht definiert\"))))),IF(AND(ISNUMBER(Tabelle4[[#This Row],[Spalte2]]),Tabelle4[[#This Row],[Spalte2]]<>0,Tabelle4[[#This Row],[Spalte3]]=\"Bitte wählen\"),\"Nicht definiert\",0))","v":0}]
[null,null,"Weiteres",null,"Bitte wählen",{"$f":"IF(AND(ISNUMBER(Tabelle4[[#This Row],[Spalte2]]),Tabelle4[[#This Row],[Spalte3]]<>\"Bitte wählen\"),\nIF(Tabelle4[[#This Row],[Spalte3]]=Listen!$A$13,Tabelle4[[#This Row],[Spalte2]]/Listen!$B$13,IF(Tabelle4[[#This Row],[Spalte3]]=Listen!$A$14,Tabelle4[[#This Row],[Spalte2]]/Listen!$B$14,IF(Tabelle4[[#This Row],[Spalte3]]=Listen!$A$15,Tabelle4[[#This Row],[Spalte2]]/Listen!$B$15,IF(Tabelle4[[#This Row],[Spalte3]]=Listen!$A$16,Tabelle4[[#This Row],[Spalte2]]/Listen!$B$16,IF(Tabelle4[[#This Row],[Spalte3]]=Listen!$A$17,Tabelle4[[#This Row],[Spalte2]]/Listen!$B$17,\"Nicht definiert\"))))),IF(AND(ISNUMBER(Tabelle4[[#This Row],[Spalte2]]),Tabelle4[[#This Row],[Spalte2]]<>0,Tabelle4[[#This Row],[Spalte3]]=\"Bitte wählen\"),\"Nicht definiert\",0))","v":0}]
[null,null,"Total",null,null,{"$f":"SUM(Tabelle4[[#All],[Spalte4]])","v":0}]
[]
[null,"Lebensmittel",null,"Geldbetrag","Häufigkeit","Betrag pro Monat"]
[null,null,"Lebensmittel und Getränke",null,"Monatlich",{"$f":"IF(AND(ISNUMBER(Tabelle5[[#This Row],[Spalte2]]),Tabelle5[[#This Row],[Spalte3]]<>\"Bitte wählen\"),\nIF(Tabelle5[[#This Row],[Spalte3]]=Listen!$A$13,Tabelle5[[#This Row],[Spalte2]]/Listen!$B$13,IF(Tabelle5[[#This Row],[Spalte3]]=Listen!$A$14,Tabelle5[[#This Row],[Spalte2]]/Listen!$B$14,IF(Tabelle5[[#This Row],[Spalte3]]=Listen!$A$15,Tabelle5[[#This Row],[Spalte2]]/Listen!$B$15,IF(Tabelle5[[#This Row],[Spalte3]]=Listen!$A$16,Tabelle5[[#This Row],[Spalte2]]/Listen!$B$16,IF(Tabelle5[[#This Row],[Spalte3]]=Listen!$A$17,Tabelle5[[#This Row],[Spalte2]]/Listen!$B$17,\"Nicht definiert\"))))),IF(AND(ISNUMBER(Tabelle5[[#This Row],[Spalte2]]),Tabelle5[[#This Row],[Spalte2]]<>0,Tabelle5[[#This Row],[Spalte3]]=\"Bitte wählen\"),\"Nicht definiert\",0))","v":0}]
[null,null,"Restaurant (Kantine, Mensa, ...)",null,"Monatlich",{"$f":"IF(AND(ISNUMBER(Tabelle5[[#This Row],[Spalte2]]),Tabelle5[[#This Row],[Spalte3]]<>\"Bitte wählen\"),\nIF(Tabelle5[[#This Row],[Spalte3]]=Listen!$A$13,Tabelle5[[#This Row],[Spalte2]]/Listen!$B$13,IF(Tabelle5[[#This Row],[Spalte3]]=Listen!$A$14,Tabelle5[[#This Row],[Spalte2]]/Listen!$B$14,IF(Tabelle5[[#This Row],[Spalte3]]=Listen!$A$15,Tabelle5[[#This Row],[Spalte2]]/Listen!$B$15,IF(Tabelle5[[#This Row],[Spalte3]]=Listen!$A$16,Tabelle5[[#This Row],[Spalte2]]/Listen!$B$16,IF(Tabelle5[[#This Row],[Spalte3]]=Listen!$A$17,Tabelle5[[#This Row],[Spalte2]]/Listen!$B$17,\"Nicht definiert\"))))),IF(AND(ISNUMBER(Tabelle5[[#This Row],[Spalte2]]),Tabelle5[[#This Row],[Spalte2]]<>0,Tabelle5[[#This Row],[Spalte3]]=\"Bitte wählen\"),\"Nicht definiert\",0))","v":0}]
[null,null,"Lieferservice",null,"Monatlich",{"$f":"IF(AND(ISNUMBER(Tabelle5[[#This Row],[Spalte2]]),Tabelle5[[#This Row],[Spalte3]]<>\"Bitte wählen\"),\nIF(Tabelle5[[#This Row],[Spalte3]]=Listen!$A$13,Tabelle5[[#This Row],[Spalte2]]/Listen!$B$13,IF(Tabelle5[[#This Row],[Spalte3]]=Listen!$A$14,Tabelle5[[#This Row],[Spalte2]]/Listen!$B$14,IF(Tabelle5[[#This Row],[Spalte3]]=Listen!$A$15,Tabelle5[[#This Row],[Spalte2]]/Listen!$B$15,IF(Tabelle5[[#This Row],[Spalte3]]=Listen!$A$16,Tabelle5[[#This Row],[Spalte2]]/Listen!$B$16,IF(Tabelle5[[#This Row],[Spalte3]]=Listen!$A$17,Tabelle5[[#This Row],[Spalte2]]/Listen!$B$17,\"Nicht definiert\"))))),IF(AND(ISNUMBER(Tabelle5[[#This Row],[Spalte2]]),Tabelle5[[#This Row],[Spalte2]]<>0,Tabelle5[[#This Row],[Spalte3]]=\"Bitte wählen\"),\"Nicht definiert\",0))","v":0}]
[null,null,"Alkohol",null,"Monatlich",{"$f":"IF(AND(ISNUMBER(Tabelle5[[#This Row],[Spalte2]]),Tabelle5[[#This Row],[Spalte3]]<>\"Bitte wählen\"),\nIF(Tabelle5[[#This Row],[Spalte3]]=Listen!$A$13,Tabelle5[[#This Row],[Spalte2]]/Listen!$B$13,IF(Tabelle5[[#This Row],[Spalte3]]=Listen!$A$14,Tabelle5[[#This Row],[Spalte2]]/Listen!$B$14,IF(Tabelle5[[#This Row],[Spalte3]]=Listen!$A$15,Tabelle5[[#This Row],[Spalte2]]/Listen!$B$15,IF(Tabelle5[[#This Row],[Spalte3]]=Listen!$A$16,Tabelle5[[#This Row],[Spalte2]]/Listen!$B$16,IF(Tabelle5[[#This Row],[Spalte3]]=Listen!$A$17,Tabelle5[[#This Row],[Spalte2]]/Listen!$B$17,\"Nicht definiert\"))))),IF(AND(ISNUMBER(Tabelle5[[#This Row],[Spalte2]]),Tabelle5[[#This Row],[Spalte2]]<>0,Tabelle5[[#This Row],[Spalte3]]=\"Bitte wählen\"),\"Nicht definiert\",0))","v":0}]
[null,null,"Weiteres",null,"Bitte wählen",{"$f":"IF(AND(ISNUMBER(Tabelle5[[#This Row],[Spalte2]]),Tabelle5[[#This Row],[Spalte3]]<>\"Bitte wählen\"),\nIF(Tabelle5[[#This Row],[Spalte3]]=Listen!$A$13,Tabelle5[[#This Row],[Spalte2]]/Listen!$B$13,IF(Tabelle5[[#This Row],[Spalte3]]=Listen!$A$14,Tabelle5[[#This Row],[Spalte2]]/Listen!$B$14,IF(Tabelle5[[#This Row],[Spalte3]]=Listen!$A$15,Tabelle5[[#This Row],[Spalte2]]/Listen!$B$15,IF(Tabelle5[[#This Row],[Spalte3]]=Listen!$A$16,Tabelle5[[#This Row],[Spalte2]]/Listen!$B$16,IF(Tabelle5[[#This Row],[Spalte3]]=Listen!$A$17,Tabelle5[[#This Row],[Spalte2]]/Listen!$B$17,\"Nicht definiert\"))))),IF(AND(ISNUMBER(Tabelle5[[#This Row],[Spalte2]]),Tabelle5[[#This Row],[Spalte2]]<>0,Tabelle5[[#This Row],[Spalte3]]=\"Bitte wählen\"),\"Nicht definiert\",0))","v":0}]
[null,null,"Total",null,null,{"$f":"SUM(Tabelle5[[#All],[Spalte4]])","v":0}]
[]
[null,"Kleidung und Schuhe",null,"Geldbetrag","Häufigkeit","Betrag pro Monat"]
[null,null,"Kleidung",null,"Bitte wählen",{"$f":"IF(AND(ISNUMBER(Tabelle6[[#This Row],[Spalte2]]),Tabelle6[[#This Row],[Spalte3]]<>\"Bitte wählen\"),\nIF(Tabelle6[[#This Row],[Spalte3]]=Listen!$A$13,Tabelle6[[#This Row],[Spalte2]]/Listen!$B$13,IF(Tabelle6[[#This Row],[Spalte3]]=Listen!$A$14,Tabelle6[[#This Row],[Spalte2]]/Listen!$B$14,IF(Tabelle6[[#This Row],[Spalte3]]=Listen!$A$15,Tabelle6[[#This Row],[Spalte2]]/Listen!$B$15,IF(Tabelle6[[#This Row],[Spalte3]]=Listen!$A$16,Tabelle6[[#This Row],[Spalte2]]/Listen!$B$16,IF(Tabelle6[[#This Row],[Spalte3]]=Listen!$A$17,Tabelle6[[#This Row],[Spalte2]]/Listen!$B$17,\"Nicht definiert\"))))),IF(AND(ISNUMBER(Tabelle6[[#This Row],[Spalte2]]),Tabelle6[[#This Row],[Spalte2]]<>0,Tabelle6[[#This Row],[Spalte3]]=\"Bitte wählen\"),\"Nicht definiert\",0))","v":0}]
[null,null,"Schuhe",null,"Bitte wählen",{"$f":"IF(AND(ISNUMBER(Tabelle6[[#This Row],[Spalte2]]),Tabelle6[[#This Row],[Spalte3]]<>\"Bitte wählen\"),\nIF(Tabelle6[[#This Row],[Spalte3]]=Listen!$A$13,Tabelle6[[#This Row],[Spalte2]]/Listen!$B$13,IF(Tabelle6[[#This Row],[Spalte3]]=Listen!$A$14,Tabelle6[[#This Row],[Spalte2]]/Listen!$B$14,IF(Tabelle6[[#This Row],[Spalte3]]=Listen!$A$15,Tabelle6[[#This Row],[Spalte2]]/Listen!$B$15,IF(Tabelle6[[#This Row],[Spalte3]]=Listen!$A$16,Tabelle6[[#This Row],[Spalte2]]/Listen!$B$16,IF(Tabelle6[[#This Row],[Spalte3]]=Listen!$A$17,Tabelle6[[#This Row],[Spalte2]]/Listen!$B$17,\"Nicht definiert\"))))),IF(AND(ISNUMBER(Tabelle6[[#This Row],[Spalte2]]),Tabelle6[[#This Row],[Spalte2]]<>0,Tabelle6[[#This Row],[Spalte3]]=\"Bitte wählen\"),\"Nicht definiert\",0))","v":0}]
[null,null,"Weiteres",null,"Bitte wählen",{"$f":"IF(AND(ISNUMBER(Tabelle6[[#This Row],[Spalte2]]),Tabelle6[[#This Row],[Spalte3]]<>\"Bitte wählen\"),\nIF(Tabelle6[[#This Row],[Spalte3]]=Listen!$A$13,Tabelle6[[#This Row],[Spalte2]]/Listen!$B$13,IF(Tabelle6[[#This Row],[Spalte3]]=Listen!$A$14,Tabelle6[[#This Row],[Spalte2]]/Listen!$B$14,IF(Tabelle6[[#This Row],[Spalte3]]=Listen!$A$15,Tabelle6[[#This Row],[Spalte2]]/Listen!$B$15,IF(Tabelle6[[#This Row],[Spalte3]]=Listen!$A$16,Tabelle6[[#This Row],[Spalte2]]/Listen!$B$16,IF(Tabelle6[[#This Row],[Spalte3]]=Listen!$A$17,Tabelle6[[#This Row],[Spalte2]]/Listen!$B$17,\"Nicht definiert\"))))),IF(AND(ISNUMBER(Tabelle6[[#This Row],[Spalte2]]),Tabelle6[[#This Row],[Spalte2]]<>0,Tabelle6[[#This Row],[Spalte3]]=\"Bitte wählen\"),\"Nicht definiert\",0))","v":0}]
[null,null,"Total",null,null,{"$f":"SUM(Tabelle6[[#All],[Spalte4]])","v":0}]
[]
[null,"Kommunikation und Unterhaltung",null,"Geldbetrag","Häufigkeit","Betrag pro Monat"]
[null,null,"Handy-Abo, Prepaid-Angebot",null,"Monatlich",{"$f":"IF(AND(ISNUMBER(Tabelle7[[#This Row],[Spalte2]]),Tabelle7[[#This Row],[Spalte3]]<>\"Bitte wählen\"),\nIF(Tabelle7[[#This Row],[Spalte3]]=Listen!$A$13,Tabelle7[[#This Row],[Spalte2]]/Listen!$B$13,IF(Tabelle7[[#This Row],[Spalte3]]=Listen!$A$14,Tabelle7[[#This Row],[Spalte2]]/Listen!$B$14,IF(Tabelle7[[#This Row],[Spalte3]]=Listen!$A$15,Tabelle7[[#This Row],[Spalte2]]/Listen!$B$15,IF(Tabelle7[[#This Row],[Spalte3]]=Listen!$A$16,Tabelle7[[#This Row],[Spalte2]]/Listen!$B$16,IF(Tabelle7[[#This Row],[Spalte3]]=Listen!$A$17,Tabelle7[[#This Row],[Spalte2]]/Listen!$B$17,\"Nicht definiert\"))))),IF(AND(ISNUMBER(Tabelle7[[#This Row],[Spalte2]]),Tabelle7[[#This Row],[Spalte2]]<>0,Tabelle7[[#This Row],[Spalte3]]=\"Bitte wählen\"),\"Nicht definiert\",0))","v":0}]
[null,null,"Internet-Abo",null,"Monatlich",{"$f":"IF(AND(ISNUMBER(Tabelle7[[#This Row],[Spalte2]]),Tabelle7[[#This Row],[Spalte3]]<>\"Bitte wählen\"),\nIF(Tabelle7[[#This Row],[Spalte3]]=Listen!$A$13,Tabelle7[[#This Row],[Spalte2]]/Listen!$B$13,IF(Tabelle7[[#This Row],[Spalte3]]=Listen!$A$14,Tabelle7[[#This Row],[Spalte2]]/Listen!$B$14,IF(Tabelle7[[#This Row],[Spalte3]]=Listen!$A$15,Tabelle7[[#This Row],[Spalte2]]/Listen!$B$15,IF(Tabelle7[[#This Row],[Spalte3]]=Listen!$A$16,Tabelle7[[#This Row],[Spalte2]]/Listen!$B$16,IF(Tabelle7[[#This Row],[Spalte3]]=Listen!$A$17,Tabelle7[[#This Row],[Spalte2]]/Listen!$B$17,\"Nicht definiert\"))))),IF(AND(ISNUMBER(Tabelle7[[#This Row],[Spalte2]]),Tabelle7[[#This Row],[Spalte2]]<>0,Tabelle7[[#This Row],[Spalte3]]=\"Bitte wählen\"),\"Nicht definiert\",0))","v":0}]
[null,null,"Streaming- und TV-Abos",null,"Monatlich",{"$f":"IF(AND(ISNUMBER(Tabelle7[[#This Row],[Spalte2]]),Tabelle7[[#This Row],[Spalte3]]<>\"Bitte wählen\"),\nIF(Tabelle7[[#This Row],[Spalte3]]=Listen!$A$13,Tabelle7[[#This Row],[Spalte2]]/Listen!$B$13,IF(Tabelle7[[#This Row],[Spalte3]]=Listen!$A$14,Tabelle7[[#This Row],[Spalte2]]/Listen!$B$14,IF(Tabelle7[[#This Row],[Spalte3]]=Listen!$A$15,Tabelle7[[#This Row],[Spalte2]]/Listen!$B$15,IF(Tabelle7[[#This Row],[Spalte3]]=Listen!$A$16,Tabelle7[[#This Row],[Spalte2]]/Listen!$B$16,IF(Tabelle7[[#This Row],[Spalte3]]=Listen!$A$17,Tabelle7[[#This Row],[Spalte2]]/Listen!$B$17,\"Nicht definiert\"))))),IF(AND(ISNUMBER(Tabelle7[[#This Row],[Spalte2]]),Tabelle7[[#This Row],[Spalte2]]<>0,Tabelle7[[#This Row],[Spalte3]]=\"Bitte wählen\"),\"Nicht definiert\",0))","v":0}]
[null,null,"Festnetz-Abo",null,"Monatlich",{"$f":"IF(AND(ISNUMBER(Tabelle7[[#This Row],[Spalte2]]),Tabelle7[[#This Row],[Spalte3]]<>\"Bitte wählen\"),\nIF(Tabelle7[[#This Row],[Spalte3]]=Listen!$A$13,Tabelle7[[#This Row],[Spalte2]]/Listen!$B$13,IF(Tabelle7[[#This Row],[Spalte3]]=Listen!$A$14,Tabelle7[[#This Row],[Spalte2]]/Listen!$B$14,IF(Tabelle7[[#This Row],[Spalte3]]=Listen!$A$15,Tabelle7[[#This Row],[Spalte2]]/Listen!$B$15,IF(Tabelle7[[#This Row],[Spalte3]]=Listen!$A$16,Tabelle7[[#This Row],[Spalte2]]/Listen!$B$16,IF(Tabelle7[[#This Row],[Spalte3]]=Listen!$A$17,Tabelle7[[#This Row],[Spalte2]]/Listen!$B$17,\"Nicht definiert\"))))),IF(AND(ISNUMBER(Tabelle7[[#This Row],[Spalte2]]),Tabelle7[[#This Row],[Spalte2]]<>0,Tabelle7[[#This Row],[Spalte3]]=\"Bitte wählen\"),\"Nicht definiert\",0))","v":0}]
[null,null,"Roaming-Kosten",null,"Jährlich",{"$f":"IF(AND(ISNUMBER(Tabelle7[[#This Row],[Spalte2]]),Tabelle7[[#This Row],[Spalte3]]<>\"Bitte wählen\"),\nIF(Tabelle7[[#This Row],[Spalte3]]=Listen!$A$13,Tabelle7[[#This Row],[Spalte2]]/Listen!$B$13,IF(Tabelle7[[#This Row],[Spalte3]]=Listen!$A$14,Tabelle7[[#This Row],[Spalte2]]/Listen!$B$14,IF(Tabelle7[[#This Row],[Spalte3]]=Listen!$A$15,Tabelle7[[#This Row],[Spalte2]]/Listen!$B$15,IF(Tabelle7[[#This Row],[Spalte3]]=Listen!$A$16,Tabelle7[[#This Row],[Spalte2]]/Listen!$B$16,IF(Tabelle7[[#This Row],[Spalte3]]=Listen!$A$17,Tabelle7[[#This Row],[Spalte2]]/Listen!$B$17,\"Nicht definiert\"))))),IF(AND(ISNUMBER(Tabelle7[[#This Row],[Spalte2]]),Tabelle7[[#This Row],[Spalte2]]<>0,Tabelle7[[#This Row],[Spalte3]]=\"Bitte wählen\"),\"Nicht definiert\",0))","v":0}]
[null,null,"Abos Medien",null,"Jährlich",{"$f":"IF(AND(ISNUMBER(Tabelle7[[#This Row],[Spalte2]]),Tabelle7[[#This Row],[Spalte3]]<>\"Bitte wählen\"),\nIF(Tabelle7[[#This Row],[Spalte3]]=Listen!$A$13,Tabelle7[[#This Row],[Spalte2]]/Listen!$B$13,IF(Tabelle7[[#This Row],[Spalte3]]=Listen!$A$14,Tabelle7[[#This Row],[Spalte2]]/Listen!$B$14,IF(Tabelle7[[#This Row],[Spalte3]]=Listen!$A$15,Tabelle7[[#This Row],[Spalte2]]/Listen!$B$15,IF(Tabelle7[[#This Row],[Spalte3]]=Listen!$A$16,Tabelle7[[#This Row],[Spalte2]]/Listen!$B$16,IF(Tabelle7[[#This Row],[Spalte3]]=Listen!$A$17,Tabelle7[[#This Row],[Spalte2]]/Listen!$B$17,\"Nicht definiert\"))))),IF(AND(ISNUMBER(Tabelle7[[#This Row],[Spalte2]]),Tabelle7[[#This Row],[Spalte2]]<>0,Tabelle7[[#This Row],[Spalte3]]=\"Bitte wählen\"),\"Nicht definiert\",0))","v":0}]
[null,null,"Serafe-Gebühr",null,"Jährlich",{"$f":"IF(AND(ISNUMBER(Tabelle7[[#This Row],[Spalte2]]),Tabelle7[[#This Row],[Spalte3]]<>\"Bitte wählen\"),\nIF(Tabelle7[[#This Row],[Spalte3]]=Listen!$A$13,Tabelle7[[#This Row],[Spalte2]]/Listen!$B$13,IF(Tabelle7[[#This Row],[Spalte3]]=Listen!$A$14,Tabelle7[[#This Row],[Spalte2]]/Listen!$B$14,IF(Tabelle7[[#This Row],[Spalte3]]=Listen!$A$15,Tabelle7[[#This Row],[Spalte2]]/Listen!$B$15,IF(Tabelle7[[#This Row],[Spalte3]]=Listen!$A$16,Tabelle7[[#This Row],[Spalte2]]/Listen!$B$16,IF(Tabelle7[[#This Row],[Spalte3]]=Listen!$A$17,Tabelle7[[#This Row],[Spalte2]]/Listen!$B$17,\"Nicht definiert\"))))),IF(AND(ISNUMBER(Tabelle7[[#This Row],[Spalte2]]),Tabelle7[[#This Row],[Spalte2]]<>0,Tabelle7[[#This Row],[Spalte3]]=\"Bitte wählen\"),\"Nicht definiert\",0))","v":0}]
[null,null,"Weiteres",null,"Bitte wählen",{"$f":"IF(AND(ISNUMBER(Tabelle7[[#This Row],[Spalte2]]),Tabelle7[[#This Row],[Spalte3]]<>\"Bitte wählen\"),\nIF(Tabelle7[[#This Row],[Spalte3]]=Listen!$A$13,Tabelle7[[#This Row],[Spalte2]]/Listen!$B$13,IF(Tabelle7[[#This Row],[Spalte3]]=Listen!$A$14,Tabelle7[[#This Row],[Spalte2]]/Listen!$B$14,IF(Tabelle7[[#This Row],[Spalte3]]=Listen!$A$15,Tabelle7[[#This Row],[Spalte2]]/Listen!$B$15,IF(Tabelle7[[#This Row],[Spalte3]]=Listen!$A$16,Tabelle7[[#This Row],[Spalte2]]/Listen!$B$16,IF(Tabelle7[[#This Row],[Spalte3]]=Listen!$A$17,Tabelle7[[#This Row],[Spalte2]]/Listen!$B$17,\"Nicht definiert\"))))),IF(AND(ISNUMBER(Tabelle7[[#This Row],[Spalte2]]),Tabelle7[[#This Row],[Spalte2]]<>0,Tabelle7[[#This Row],[Spalte3]]=\"Bitte wählen\"),\"Nicht definiert\",0))","v":0}]
[null,null,"Total",null,null,{"$f":"SUM(Tabelle7[[#All],[Spalte4]])","v":0}]
[]
[null,"Aus- und Weiterbildung",null,"Geldbetrag","Häufigkeit","Betrag pro Monat"]
[null,null,"Studiengebühren",null,"Halbjährlich",{"$f":"IF(AND(ISNUMBER(Tabelle8[[#This Row],[Spalte2]]),Tabelle8[[#This Row],[Spalte3]]<>\"Bitte wählen\"),\nIF(Tabelle8[[#This Row],[Spalte3]]=Listen!$A$13,Tabelle8[[#This Row],[Spalte2]]/Listen!$B$13,IF(Tabelle8[[#This Row],[Spalte3]]=Listen!$A$14,Tabelle8[[#This Row],[Spalte2]]/Listen!$B$14,IF(Tabelle8[[#This Row],[Spalte3]]=Listen!$A$15,Tabelle8[[#This Row],[Spalte2]]/Listen!$B$15,IF(Tabelle8[[#This Row],[Spalte3]]=Listen!$A$16,Tabelle8[[#This Row],[Spalte2]]/Listen!$B$16,IF(Tabelle8[[#This Row],[Spalte3]]=Listen!$A$17,Tabelle8[[#This Row],[Spalte2]]/Listen!$B$17,\"Nicht definiert\"))))),IF(AND(ISNUMBER(Tabelle8[[#This Row],[Spalte2]]),Tabelle8[[#This Row],[Spalte2]]<>0,Tabelle8[[#This Row],[Spalte3]]=\"Bitte wählen\"),\"Nicht definiert\",0))","v":0}]
[null,null,"Lernmaterial (Bücher, Software, …)",null,"Bitte wählen",{"$f":"IF(AND(ISNUMBER(Tabelle8[[#This Row],[Spalte2]]),Tabelle8[[#This Row],[Spalte3]]<>\"Bitte wählen\"),\nIF(Tabelle8[[#This Row],[Spalte3]]=Listen!$A$13,Tabelle8[[#This Row],[Spalte2]]/Listen!$B$13,IF(Tabelle8[[#This Row],[Spalte3]]=Listen!$A$14,Tabelle8[[#This Row],[Spalte2]]/Listen!$B$14,IF(Tabelle8[[#This Row],[Spalte3]]=Listen!$A$15,Tabelle8[[#This Row],[Spalte2]]/Listen!$B$15,IF(Tabelle8[[#This Row],[Spalte3]]=Listen!$A$16,Tabelle8[[#This Row],[Spalte2]]/Listen!$B$16,IF(Tabelle8[[#This Row],[Spalte3]]=Listen!$A$17,Tabelle8[[#This Row],[Spalte2]]/Listen!$B$17,\"Nicht definiert\"))))),IF(AND(ISNUMBER(Tabelle8[[#This Row],[Spalte2]]),Tabelle8[[#This Row],[Spalte2]]<>0,Tabelle8[[#This Row],[Spalte3]]=\"Bitte wählen\"),\"Nicht definiert\",0))","v":0}]
[null,null,"Weiteres",null,"Bitte wählen",{"$f":"IF(AND(ISNUMBER(Tabelle8[[#This Row],[Spalte2]]),Tabelle8[[#This Row],[Spalte3]]<>\"Bitte wählen\"),\nIF(Tabelle8[[#This Row],[Spalte3]]=Listen!$A$13,Tabelle8[[#This Row],[Spalte2]]/Listen!$B$13,IF(Tabelle8[[#This Row],[Spalte3]]=Listen!$A$14,Tabelle8[[#This Row],[Spalte2]]/Listen!$B$14,IF(Tabelle8[[#This Row],[Spalte3]]=Listen!$A$15,Tabelle8[[#This Row],[Spalte2]]/Listen!$B$15,IF(Tabelle8[[#This Row],[Spalte3]]=Listen!$A$16,Tabelle8[[#This Row],[Spalte2]]/Listen!$B$16,IF(Tabelle8[[#This Row],[Spalte3]]=Listen!$A$17,Tabelle8[[#This Row],[Spalte2]]/Listen!$B$17,\"Nicht definiert\"))))),IF(AND(ISNUMBER(Tabelle8[[#This Row],[Spalte2]]),Tabelle8[[#This Row],[Spalte2]]<>0,Tabelle8[[#This Row],[Spalte3]]=\"Bitte wählen\"),\"Nicht definiert\",0))","v":0}]
[null,null,"Total",null,null,{"$f":"SUM(Tabelle8[[#All],[Spalte4]])","v":0}]
[]
[null,"Freizeit und Ferien",null,"Geldbetrag","Häufigkeit","Betrag pro Monat"]
[null,null,"Events, Club, Bar, Kino",null,"Monatlich",{"$f":"IF(AND(ISNUMBER(Tabelle9[[#This Row],[Spalte2]]),Tabelle9[[#This Row],[Spalte3]]<>\"Bitte wählen\"),\nIF(Tabelle9[[#This Row],[Spalte3]]=Listen!$A$13,Tabelle9[[#This Row],[Spalte2]]/Listen!$B$13,IF(Tabelle9[[#This Row],[Spalte3]]=Listen!$A$14,Tabelle9[[#This Row],[Spalte2]]/Listen!$B$14,IF(Tabelle9[[#This Row],[Spalte3]]=Listen!$A$15,Tabelle9[[#This Row],[Spalte2]]/Listen!$B$15,IF(Tabelle9[[#This Row],[Spalte3]]=Listen!$A$16,Tabelle9[[#This Row],[Spalte2]]/Listen!$B$16,IF(Tabelle9[[#This Row],[Spalte3]]=Listen!$A$17,Tabelle9[[#This Row],[Spalte2]]/Listen!$B$17,\"Nicht definiert\"))))),IF(AND(ISNUMBER(Tabelle9[[#This Row],[Spalte2]]),Tabelle9[[#This Row],[Spalte2]]<>0,Tabelle9[[#This Row],[Spalte3]]=\"Bitte wählen\"),\"Nicht definiert\",0))","v":0}]
[null,null,"Sport",null,"Bitte wählen",{"$f":"IF(AND(ISNUMBER(Tabelle9[[#This Row],[Spalte2]]),Tabelle9[[#This Row],[Spalte3]]<>\"Bitte wählen\"),\nIF(Tabelle9[[#This Row],[Spalte3]]=Listen!$A$13,Tabelle9[[#This Row],[Spalte2]]/Listen!$B$13,IF(Tabelle9[[#This Row],[Spalte3]]=Listen!$A$14,Tabelle9[[#This Row],[Spalte2]]/Listen!$B$14,IF(Tabelle9[[#This Row],[Spalte3]]=Listen!$A$15,Tabelle9[[#This Row],[Spalte2]]/Listen!$B$15,IF(Tabelle9[[#This Row],[Spalte3]]=Listen!$A$16,Tabelle9[[#This Row],[Spalte2]]/Listen!$B$16,IF(Tabelle9[[#This Row],[Spalte3]]=Listen!$A$17,Tabelle9[[#This Row],[Spalte2]]/Listen!$B$17,\"Nicht definiert\"))))),IF(AND(ISNUMBER(Tabelle9[[#This Row],[Spalte2]]),Tabelle9[[#This Row],[Spalte2]]<>0,Tabelle9[[#This Row],[Spalte3]]=\"Bitte wählen\"),\"Nicht definiert\",0))","v":0}]
[null,null,"Hobbys",null,"Bitte wählen",{"$f":"IF(AND(ISNUMBER(Tabelle9[[#This Row],[Spalte2]]),Tabelle9[[#This Row],[Spalte3]]<>\"Bitte wählen\"),\nIF(Tabelle9[[#This Row],[Spalte3]]=Listen!$A$13,Tabelle9[[#This Row],[Spalte2]]/Listen!$B$13,IF(Tabelle9[[#This Row],[Spalte3]]=Listen!$A$14,Tabelle9[[#This Row],[Spalte2]]/Listen!$B$14,IF(Tabelle9[[#This Row],[Spalte3]]=Listen!$A$15,Tabelle9[[#This Row],[Spalte2]]/Listen!$B$15,IF(Tabelle9[[#This Row],[Spalte3]]=Listen!$A$16,Tabelle9[[#This Row],[Spalte2]]/Listen!$B$16,IF(Tabelle9[[#This Row],[Spalte3]]=Listen!$A$17,Tabelle9[[#This Row],[Spalte2]]/Listen!$B$17,\"Nicht definiert\"))))),IF(AND(ISNUMBER(Tabelle9[[#This Row],[Spalte2]]),Tabelle9[[#This Row],[Spalte2]]<>0,Tabelle9[[#This Row],[Spalte3]]=\"Bitte wählen\"),\"Nicht definiert\",0))","v":0}]
[null,null,"Ferien und Ausflüge",null,"Bitte wählen",{"$f":"IF(AND(ISNUMBER(Tabelle9[[#This Row],[Spalte2]]),Tabelle9[[#This Row],[Spalte3]]<>\"Bitte wählen\"),\nIF(Tabelle9[[#This Row],[Spalte3]]=Listen!$A$13,Tabelle9[[#This Row],[Spalte2]]/Listen!$B$13,IF(Tabelle9[[#This Row],[Spalte3]]=Listen!$A$14,Tabelle9[[#This Row],[Spalte2]]/Listen!$B$14,IF(Tabelle9[[#This Row],[Spalte3]]=Listen!$A$15,Tabelle9[[#This Row],[Spalte2]]/Listen!$B$15,IF(Tabelle9[[#This Row],[Spalte3]]=Listen!$A$16,Tabelle9[[#This Row],[Spalte2]]/Listen!$B$16,IF(Tabelle9[[#This Row],[Spalte3]]=Listen!$A$17,Tabelle9[[#This Row],[Spalte2]]/Listen!$B$17,\"Nicht definiert\"))))),IF(AND(ISNUMBER(Tabelle9[[#This Row],[Spalte2]]),Tabelle9[[#This Row],[Spalte2]]<>0,Tabelle9[[#This Row],[Spalte3]]=\"Bitte wählen\"),\"Nicht definiert\",0))","v":0}]
[null,null,"Weiteres",null,"Bitte wählen",{"$f":"IF(AND(ISNUMBER(Tabelle9[[#This Row],[Spalte2]]),Tabelle9[[#This Row],[Spalte3]]<>\"Bitte wählen\"),\nIF(Tabelle9[[#This Row],[Spalte3]]=Listen!$A$13,Tabelle9[[#This Row],[Spalte2]]/Listen!$B$13,IF(Tabelle9[[#This Row],[Spalte3]]=Listen!$A$14,Tabelle9[[#This Row],[Spalte2]]/Listen!$B$14,IF(Tabelle9[[#This Row],[Spalte3]]=Listen!$A$15,Tabelle9[[#This Row],[Spalte2]]/Listen!$B$15,IF(Tabelle9[[#This Row],[Spalte3]]=Listen!$A$16,Tabelle9[[#This Row],[Spalte2]]/Listen!$B$16,IF(Tabelle9[[#This Row],[Spalte3]]=Listen!$A$17,Tabelle9[[#This Row],[Spalte2]]/Listen!$B$17,\"Nicht definiert\"))))),IF(AND(ISNUMBER(Tabelle9[[#This Row],[Spalte2]]),Tabelle9[[#This Row],[Spalte2]]<>0,Tabelle9[[#This Row],[Spalte3]]=\"Bitte wählen\"),\"Nicht definiert\",0))","v":0}]
[null,null,"Total",null,null,{"$f":"SUM(Tabelle9[[#All],[Spalte4]])","v":0}]
[]
[null,"Haustiere",null,"Geldbetrag","Häufigkeit","Betrag pro Monat"]
[null,null,"Tierarzt",null,"Bitte wählen",{"$f":"IF(AND(ISNUMBER(Tabelle10[[#This Row],[Spalte2]]),Tabelle10[[#This Row],[Spalte3]]<>\"Bitte wählen\"),\nIF(Tabelle10[[#This Row],[Spalte3]]=Listen!$A$13,Tabelle10[[#This Row],[Spalte2]]/Listen!$B$13,IF(Tabelle10[[#This Row],[Spalte3]]=Listen!$A$14,Tabelle10[[#This Row],[Spalte2]]/Listen!$B$14,IF(Tabelle10[[#This Row],[Spalte3]]=Listen!$A$15,Tabelle10[[#This Row],[Spalte2]]/Listen!$B$15,IF(Tabelle10[[#This Row],[Spalte3]]=Listen!$A$16,Tabelle10[[#This Row],[Spalte2]]/Listen!$B$16,IF(Tabelle10[[#This Row],[Spalte3]]=Listen!$A$17,Tabelle10[[#This Row],[Spalte2]]/Listen!$B$17,\"Nicht definiert\"))))),IF(AND(ISNUMBER(Tabelle10[[#This Row],[Spalte2]]),Tabelle10[[#This Row],[Spalte2]]<>0,Tabelle10[[#This Row],[Spalte3]]=\"Bitte wählen\"),\"Nicht definiert\",0))","v":0}]
[null,null,"Tierversicherung",null,"Bitte wählen",{"$f":"IF(AND(ISNUMBER(Tabelle10[[#This Row],[Spalte2]]),Tabelle10[[#This Row],[Spalte3]]<>\"Bitte wählen\"),\nIF(Tabelle10[[#This Row],[Spalte3]]=Listen!$A$13,Tabelle10[[#This Row],[Spalte2]]/Listen!$B$13,IF(Tabelle10[[#This Row],[Spalte3]]=Listen!$A$14,Tabelle10[[#This Row],[Spalte2]]/Listen!$B$14,IF(Tabelle10[[#This Row],[Spalte3]]=Listen!$A$15,Tabelle10[[#This Row],[Spalte2]]/Listen!$B$15,IF(Tabelle10[[#This Row],[Spalte3]]=Listen!$A$16,Tabelle10[[#This Row],[Spalte2]]/Listen!$B$16,IF(Tabelle10[[#This Row],[Spalte3]]=Listen!$A$17,Tabelle10[[#This Row],[Spalte2]]/Listen!$B$17,\"Nicht definiert\"))))),IF(AND(ISNUMBER(Tabelle10[[#This Row],[Spalte2]]),Tabelle10[[#This Row],[Spalte2]]<>0,Tabelle10[[#This Row],[Spalte3]]=\"Bitte wählen\"),\"Nicht definiert\",0))","v":0}]
[null,null,"Futter",null,"Bitte wählen",{"$f":"IF(AND(ISNUMBER(Tabelle10[[#This Row],[Spalte2]]),Tabelle10[[#This Row],[Spalte3]]<>\"Bitte wählen\"),\nIF(Tabelle10[[#This Row],[Spalte3]]=Listen!$A$13,Tabelle10[[#This Row],[Spalte2]]/Listen!$B$13,IF(Tabelle10[[#This Row],[Spalte3]]=Listen!$A$14,Tabelle10[[#This Row],[Spalte2]]/Listen!$B$14,IF(Tabelle10[[#This Row],[Spalte3]]=Listen!$A$15,Tabelle10[[#This Row],[Spalte2]]/Listen!$B$15,IF(Tabelle10[[#This Row],[Spalte3]]=Listen!$A$16,Tabelle10[[#This Row],[Spalte2]]/Listen!$B$16,IF(Tabelle10[[#This Row],[Spalte3]]=Listen!$A$17,Tabelle10[[#This Row],[Spalte2]]/Listen!$B$17,\"Nicht definiert\"))))),IF(AND(ISNUMBER(Tabelle10[[#This Row],[Spalte2]]),Tabelle10[[#This Row],[Spalte2]]<>0,Tabelle10[[#This Row],[Spalte3]]=\"Bitte wählen\"),\"Nicht definiert\",0))","v":0}]
[null,null,"Weiteres",null,"Bitte wählen",{"$f":"IF(AND(ISNUMBER(Tabelle10[[#This Row],[Spalte2]]),Tabelle10[[#This Row],[Spalte3]]<>\"Bitte wählen\"),\nIF(Tabelle10[[#This Row],[Spalte3]]=Listen!$A$13,Tabelle10[[#This Row],[Spalte2]]/Listen!$B$13,IF(Tabelle10[[#This Row],[Spalte3]]=Listen!$A$14,Tabelle10[[#This Row],[Spalte2]]/Listen!$B$14,IF(Tabelle10[[#This Row],[Spalte3]]=Listen!$A$15,Tabelle10[[#This Row],[Spalte2]]/Listen!$B$15,IF(Tabelle10[[#This Row],[Spalte3]]=Listen!$A$16,Tabelle10[[#This Row],[Spalte2]]/Listen!$B$16,IF(Tabelle10[[#This Row],[Spalte3]]=Listen!$A$17,Tabelle10[[#This Row],[Spalte2]]/Listen!$B$17,\"Nicht definiert\"))))),IF(AND(ISNUMBER(Tabelle10[[#This Row],[Spalte2]]),Tabelle10[[#This Row],[Spalte2]]<>0,Tabelle10[[#This Row],[Spalte3]]=\"Bitte wählen\"),\"Nicht definiert\",0))","v":0}]
[null,null,"Total",null,null,{"$f":"SUM(Tabelle10[[#All],[Spalte4]])","v":0}]
[]
[null,"Versicherungen",null,"Geldbetrag","Häufigkeit","Betrag pro Monat"]
[null,null,"Privathaftpflicht",null,"Jährlich",{"$f":"IF(AND(ISNUMBER(Tabelle11[[#This Row],[Spalte2]]),Tabelle11[[#This Row],[Spalte3]]<>\"Bitte wählen\"),\nIF(Tabelle11[[#This Row],[Spalte3]]=Listen!$A$13,Tabelle11[[#This Row],[Spalte2]]/Listen!$B$13,IF(Tabelle11[[#This Row],[Spalte3]]=Listen!$A$14,Tabelle11[[#This Row],[Spalte2]]/Listen!$B$14,IF(Tabelle11[[#This Row],[Spalte3]]=Listen!$A$15,Tabelle11[[#This Row],[Spalte2]]/Listen!$B$15,IF(Tabelle11[[#This Row],[Spalte3]]=Listen!$A$16,Tabelle11[[#This Row],[Spalte2]]/Listen!$B$16,IF(Tabelle11[[#This Row],[Spalte3]]=Listen!$A$17,Tabelle11[[#This Row],[Spalte2]]/Listen!$B$17,\"Nicht definiert\"))))),IF(AND(ISNUMBER(Tabelle11[[#This Row],[Spalte2]]),Tabelle11[[#This Row],[Spalte2]]<>0,Tabelle11[[#This Row],[Spalte3]]=\"Bitte wählen\"),\"Nicht definiert\",0))","v":0}]
[null,null,"Rechtsschutz",null,"Jährlich",{"$f":"IF(AND(ISNUMBER(Tabelle11[[#This Row],[Spalte2]]),Tabelle11[[#This Row],[Spalte3]]<>\"Bitte wählen\"),\nIF(Tabelle11[[#This Row],[Spalte3]]=Listen!$A$13,Tabelle11[[#This Row],[Spalte2]]/Listen!$B$13,IF(Tabelle11[[#This Row],[Spalte3]]=Listen!$A$14,Tabelle11[[#This Row],[Spalte2]]/Listen!$B$14,IF(Tabelle11[[#This Row],[Spalte3]]=Listen!$A$15,Tabelle11[[#This Row],[Spalte2]]/Listen!$B$15,IF(Tabelle11[[#This Row],[Spalte3]]=Listen!$A$16,Tabelle11[[#This Row],[Spalte2]]/Listen!$B$16,IF(Tabelle11[[#This Row],[Spalte3]]=Listen!$A$17,Tabelle11[[#This Row],[Spalte2]]/Listen!$B$17,\"Nicht definiert\"))))),IF(AND(ISNUMBER(Tabelle11[[#This Row],[Spalte2]]),Tabelle11[[#This Row],[Spalte2]]<>0,Tabelle11[[#This Row],[Spalte3]]=\"Bitte wählen\"),\"Nicht definiert\",0))","v":0}]
[null,null,"Reiseversicherung",null,"Jährlich",{"$f":"IF(AND(ISNUMBER(Tabelle11[[#This Row],[Spalte2]]),Tabelle11[[#This Row],[Spalte3]]<>\"Bitte wählen\"),\nIF(Tabelle11[[#This Row],[Spalte3]]=Listen!$A$13,Tabelle11[[#This Row],[Spalte2]]/Listen!$B$13,IF(Tabelle11[[#This Row],[Spalte3]]=Listen!$A$14,Tabelle11[[#This Row],[Spalte2]]/Listen!$B$14,IF(Tabelle11[[#This Row],[Spalte3]]=Listen!$A$15,Tabelle11[[#This Row],[Spalte2]]/Listen!$B$15,IF(Tabelle11[[#This Row],[Spalte3]]=Listen!$A$16,Tabelle11[[#This Row],[Spalte2]]/Listen!$B$16,IF(Tabelle11[[#This Row],[Spalte3]]=Listen!$A$17,Tabelle11[[#This Row],[Spalte2]]/Listen!$B$17,\"Nicht definiert\"))))),IF(AND(ISNUMBER(Tabelle11[[#This Row],[Spalte2]]),Tabelle11[[#This Row],[Spalte2]]<>0,Tabelle11[[#This Row],[Spalte3]]=\"Bitte wählen\"),\"Nicht definiert\",0))","v":0}]
[null,null,"Lebensversicherung",null,"Jährlich",{"$f":"IF(AND(ISNUMBER(Tabelle11[[#This Row],[Spalte2]]),Tabelle11[[#This Row],[Spalte3]]<>\"Bitte wählen\"),\nIF(Tabelle11[[#This Row],[Spalte3]]=Listen!$A$13,Tabelle11[[#This Row],[Spalte2]]/Listen!$B$13,IF(Tabelle11[[#This Row],[Spalte3]]=Listen!$A$14,Tabelle11[[#This Row],[Spalte2]]/Listen!$B$14,IF(Tabelle11[[#This Row],[Spalte3]]=Listen!$A$15,Tabelle11[[#This Row],[Spalte2]]/Listen!$B$15,IF(Tabelle11[[#This Row],[Spalte3]]=Listen!$A$16,Tabelle11[[#This Row],[Spalte2]]/Listen!$B$16,IF(Tabelle11[[#This Row],[Spalte3]]=Listen!$A$17,Tabelle11[[#This Row],[Spalte2]]/Listen!$B$17,\"Nicht definiert\"))))),IF(AND(ISNUMBER(Tabelle11[[#This Row],[Spalte2]]),Tabelle11[[#This Row],[Spalte2]]<>0,Tabelle11[[#This Row],[Spalte3]]=\"Bitte wählen\"),\"Nicht definiert\",0))","v":0}]
[null,null,"Weitere Versicherungen",null,"Bitte wählen",{"$f":"IF(AND(ISNUMBER(Tabelle11[[#This Row],[Spalte2]]),Tabelle11[[#This Row],[Spalte3]]<>\"Bitte wählen\"),\nIF(Tabelle11[[#This Row],[Spalte3]]=Listen!$A$13,Tabelle11[[#This Row],[Spalte2]]/Listen!$B$13,IF(Tabelle11[[#This Row],[Spalte3]]=Listen!$A$14,Tabelle11[[#This Row],[Spalte2]]/Listen!$B$14,IF(Tabelle11[[#This Row],[Spalte3]]=Listen!$A$15,Tabelle11[[#This Row],[Spalte2]]/Listen!$B$15,IF(Tabelle11[[#This Row],[Spalte3]]=Listen!$A$16,Tabelle11[[#This Row],[Spalte2]]/Listen!$B$16,IF(Tabelle11[[#This Row],[Spalte3]]=Listen!$A$17,Tabelle11[[#This Row],[Spalte2]]/Listen!$B$17,\"Nicht definiert\"))))),IF(AND(ISNUMBER(Tabelle11[[#This Row],[Spalte2]]),Tabelle11[[#This Row],[Spalte2]]<>0,Tabelle11[[#This Row],[Spalte3]]=\"Bitte wählen\"),\"Nicht definiert\",0))","v":0}]
[null,null,"Total",null,null,{"$f":"SUM(Tabelle11[[#All],[Spalte4]])","v":0}]
[]
[null,"Steuern",null,"Geldbetrag","Häufigkeit","Betrag pro Monat"]
[null,null,"Direkte Bundessteuer",null,"Jährlich",{"$f":"IF(AND(ISNUMBER(Tabelle13[[#This Row],[Spalte2]]),Tabelle13[[#This Row],[Spalte3]]<>\"Bitte wählen\"),\nIF(Tabelle13[[#This Row],[Spalte3]]=Listen!$A$13,Tabelle13[[#This Row],[Spalte2]]/Listen!$B$13,IF(Tabelle13[[#This Row],[Spalte3]]=Listen!$A$14,Tabelle13[[#This Row],[Spalte2]]/Listen!$B$14,IF(Tabelle13[[#This Row],[Spalte3]]=Listen!$A$15,Tabelle13[[#This Row],[Spalte2]]/Listen!$B$15,IF(Tabelle13[[#This Row],[Spalte3]]=Listen!$A$16,Tabelle13[[#This Row],[Spalte2]]/Listen!$B$16,IF(Tabelle13[[#This Row],[Spalte3]]=Listen!$A$17,Tabelle13[[#This Row],[Spalte2]]/Listen!$B$17,\"Nicht definiert\"))))),IF(AND(ISNUMBER(Tabelle13[[#This Row],[Spalte2]]),Tabelle13[[#This Row],[Spalte2]]<>0,Tabelle13[[#This Row],[Spalte3]]=\"Bitte wählen\"),\"Nicht definiert\",0))","v":0}]
[null,null,"Kantons- und Gemeindesteuer",null,"Jährlich",{"$f":"IF(AND(ISNUMBER(Tabelle13[[#This Row],[Spalte2]]),Tabelle13[[#This Row],[Spalte3]]<>\"Bitte wählen\"),\nIF(Tabelle13[[#This Row],[Spalte3]]=Listen!$A$13,Tabelle13[[#This Row],[Spalte2]]/Listen!$B$13,IF(Tabelle13[[#This Row],[Spalte3]]=Listen!$A$14,Tabelle13[[#This Row],[Spalte2]]/Listen!$B$14,IF(Tabelle13[[#This Row],[Spalte3]]=Listen!$A$15,Tabelle13[[#This Row],[Spalte2]]/Listen!$B$15,IF(Tabelle13[[#This Row],[Spalte3]]=Listen!$A$16,Tabelle13[[#This Row],[Spalte2]]/Listen!$B$16,IF(Tabelle13[[#This Row],[Spalte3]]=Listen!$A$17,Tabelle13[[#This Row],[Spalte2]]/Listen!$B$17,\"Nicht definiert\"))))),IF(AND(ISNUMBER(Tabelle13[[#This Row],[Spalte2]]),Tabelle13[[#This Row],[Spalte2]]<>0,Tabelle13[[#This Row],[Spalte3]]=\"Bitte wählen\"),\"Nicht definiert\",0))","v":0}]
[null,null,"Wehrpflichtersatzabgabe",null,"Jährlich",{"$f":"IF(AND(ISNUMBER(Tabelle13[[#This Row],[Spalte2]]),Tabelle13[[#This Row],[Spalte3]]<>\"Bitte wählen\"),\nIF(Tabelle13[[#This Row],[Spalte3]]=Listen!$A$13,Tabelle13[[#This Row],[Spalte2]]/Listen!$B$13,IF(Tabelle13[[#This Row],[Spalte3]]=Listen!$A$14,Tabelle13[[#This Row],[Spalte2]]/Listen!$B$14,IF(Tabelle13[[#This Row],[Spalte3]]=Listen!$A$15,Tabelle13[[#This Row],[Spalte2]]/Listen!$B$15,IF(Tabelle13[[#This Row],[Spalte3]]=Listen!$A$16,Tabelle13[[#This Row],[Spalte2]]/Listen!$B$16,IF(Tabelle13[[#This Row],[Spalte3]]=Listen!$A$17,Tabelle13[[#This Row],[Spalte2]]/Listen!$B$17,\"Nicht definiert\"))))),IF(AND(ISNUMBER(Tabelle13[[#This Row],[Spalte2]]),Tabelle13[[#This Row],[Spalte2]]<>0,Tabelle13[[#This Row],[Spalte3]]=\"Bitte wählen\"),\"Nicht definiert\",0))","v":0}]
[null,null,"Weiteres",null,"Bitte wählen",{"$f":"IF(AND(ISNUMBER(Tabelle13[[#This Row],[Spalte2]]),Tabelle13[[#This Row],[Spalte3]]<>\"Bitte wählen\"),\nIF(Tabelle13[[#This Row],[Spalte3]]=Listen!$A$13,Tabelle13[[#This Row],[Spalte2]]/Listen!$B$13,IF(Tabelle13[[#This Row],[Spalte3]]=Listen!$A$14,Tabelle13[[#This Row],[Spalte2]]/Listen!$B$14,IF(Tabelle13[[#This Row],[Spalte3]]=Listen!$A$15,Tabelle13[[#This Row],[Spalte2]]/Listen!$B$15,IF(Tabelle13[[#This Row],[Spalte3]]=Listen!$A$16,Tabelle13[[#This Row],[Spalte2]]/Listen!$B$16,IF(Tabelle13[[#This Row],[Spalte3]]=Listen!$A$17,Tabelle13[[#This Row],[Spalte2]]/Listen!$B$17,\"Nicht definiert\"))))),IF(AND(ISNUMBER(Tabelle13[[#This Row],[Spalte2]]),Tabelle13[[#This Row],[Spalte2]]<>0,Tabelle13[[#This Row],[Spalte3]]=\"Bitte wählen\"),\"Nicht definiert\",0))","v":0}]
[null,null,"Total",null,null,{"$f":"SUM(Tabelle13[[#All],[Spalte4]])","v":0}]
[]
[null,"Schulden",null,"Geldbetrag","Häufigkeit","Betrag pro Monat"]
[null,null,"Ausstehende Raten Privatkredite",null,"Monatlich",{"$f":"IF(AND(ISNUMBER(Tabelle14[[#This Row],[Spalte2]]),Tabelle14[[#This Row],[Spalte3]]<>\"Bitte wählen\"),\nIF(Tabelle14[[#This Row],[Spalte3]]=Listen!$A$13,Tabelle14[[#This Row],[Spalte2]]/Listen!$B$13,IF(Tabelle14[[#This Row],[Spalte3]]=Listen!$A$14,Tabelle14[[#This Row],[Spalte2]]/Listen!$B$14,IF(Tabelle14[[#This Row],[Spalte3]]=Listen!$A$15,Tabelle14[[#This Row],[Spalte2]]/Listen!$B$15,IF(Tabelle14[[#This Row],[Spalte3]]=Listen!$A$16,Tabelle14[[#This Row],[Spalte2]]/Listen!$B$16,IF(Tabelle14[[#This Row],[Spalte3]]=Listen!$A$17,Tabelle14[[#This Row],[Spalte2]]/Listen!$B$17,\"Nicht definiert\"))))),IF(AND(ISNUMBER(Tabelle14[[#This Row],[Spalte2]]),Tabelle14[[#This Row],[Spalte2]]<>0,Tabelle14[[#This Row],[Spalte3]]=\"Bitte wählen\"),\"Nicht definiert\",0))","v":0}]
[null,null,"Ausstehende Kreditkartenschulden",null,"Bitte wählen",{"$f":"IF(AND(ISNUMBER(Tabelle14[[#This Row],[Spalte2]]),Tabelle14[[#This Row],[Spalte3]]<>\"Bitte wählen\"),\nIF(Tabelle14[[#This Row],[Spalte3]]=Listen!$A$13,Tabelle14[[#This Row],[Spalte2]]/Listen!$B$13,IF(Tabelle14[[#This Row],[Spalte3]]=Listen!$A$14,Tabelle14[[#This Row],[Spalte2]]/Listen!$B$14,IF(Tabelle14[[#This Row],[Spalte3]]=Listen!$A$15,Tabelle14[[#This Row],[Spalte2]]/Listen!$B$15,IF(Tabelle14[[#This Row],[Spalte3]]=Listen!$A$16,Tabelle14[[#This Row],[Spalte2]]/Listen!$B$16,IF(Tabelle14[[#This Row],[Spalte3]]=Listen!$A$17,Tabelle14[[#This Row],[Spalte2]]/Listen!$B$17,\"Nicht definiert\"))))),IF(AND(ISNUMBER(Tabelle14[[#This Row],[Spalte2]]),Tabelle14[[#This Row],[Spalte2]]<>0,Tabelle14[[#This Row],[Spalte3]]=\"Bitte wählen\"),\"Nicht definiert\",0))","v":0}]
[null,null,"Weitere Schulden",null,"Bitte wählen",{"$f":"IF(AND(ISNUMBER(Tabelle14[[#This Row],[Spalte2]]),Tabelle14[[#This Row],[Spalte3]]<>\"Bitte wählen\"),\nIF(Tabelle14[[#This Row],[Spalte3]]=Listen!$A$13,Tabelle14[[#This Row],[Spalte2]]/Listen!$B$13,IF(Tabelle14[[#This Row],[Spalte3]]=Listen!$A$14,Tabelle14[[#This Row],[Spalte2]]/Listen!$B$14,IF(Tabelle14[[#This Row],[Spalte3]]=Listen!$A$15,Tabelle14[[#This Row],[Spalte2]]/Listen!$B$15,IF(Tabelle14[[#This Row],[Spalte3]]=Listen!$A$16,Tabelle14[[#This Row],[Spalte2]]/Listen!$B$16,IF(Tabelle14[[#This Row],[Spalte3]]=Listen!$A$17,Tabelle14[[#This Row],[Spalte2]]/Listen!$B$17,\"Nicht definiert\"))))),IF(AND(ISNUMBER(Tabelle14[[#This Row],[Spalte2]]),Tabelle14[[#This Row],[Spalte2]]<>0,Tabelle14[[#This Row],[Spalte3]]=\"Bitte wählen\"),\"Nicht definiert\",0))","v":0}]
[null,null,"Total",null,null,{"$f":"SUM(Tabelle14[[#All],[Spalte4]])","v":0}]
[]
[null,"Rückstellungen",null,"Geldbetrag","Häufigkeit","Betrag pro Monat"]
[null,null,"Auto, Motorrad, Mofa, E-Bike, Velo",null,"Bitte wählen",{"$f":"IF(AND(ISNUMBER(Tabelle16[[#This Row],[Spalte2]]),Tabelle16[[#This Row],[Spalte3]]<>\"Bitte wählen\"),\nIF(Tabelle16[[#This Row],[Spalte3]]=Listen!$A$13,Tabelle16[[#This Row],[Spalte2]]/Listen!$B$13,IF(Tabelle16[[#This Row],[Spalte3]]=Listen!$A$14,Tabelle16[[#This Row],[Spalte2]]/Listen!$B$14,IF(Tabelle16[[#This Row],[Spalte3]]=Listen!$A$15,Tabelle16[[#This Row],[Spalte2]]/Listen!$B$15,IF(Tabelle16[[#This Row],[Spalte3]]=Listen!$A$16,Tabelle16[[#This Row],[Spalte2]]/Listen!$B$16,IF(Tabelle16[[#This Row],[Spalte3]]=Listen!$A$17,Tabelle16[[#This Row],[Spalte2]]/Listen!$B$17,\"Nicht definiert\"))))),IF(AND(ISNUMBER(Tabelle16[[#This Row],[Spalte2]]),Tabelle16[[#This Row],[Spalte2]]<>0,Tabelle16[[#This Row],[Spalte3]]=\"Bitte wählen\"),\"Nicht definiert\",0))","v":0}]
[null,null,"Wohneigentum",null,"Bitte wählen",{"$f":"IF(AND(ISNUMBER(Tabelle16[[#This Row],[Spalte2]]),Tabelle16[[#This Row],[Spalte3]]<>\"Bitte wählen\"),\nIF(Tabelle16[[#This Row],[Spalte3]]=Listen!$A$13,Tabelle16[[#This Row],[Spalte2]]/Listen!$B$13,IF(Tabelle16[[#This Row],[Spalte3]]=Listen!$A$14,Tabelle16[[#This Row],[Spalte2]]/Listen!$B$14,IF(Tabelle16[[#This Row],[Spalte3]]=Listen!$A$15,Tabelle16[[#This Row],[Spalte2]]/Listen!$B$15,IF(Tabelle16[[#This Row],[Spalte3]]=Listen!$A$16,Tabelle16[[#This Row],[Spalte2]]/Listen!$B$16,IF(Tabelle16[[#This Row],[Spalte3]]=Listen!$A$17,Tabelle16[[#This Row],[Spalte2]]/Listen!$B$17,\"Nicht definiert\"))))),IF(AND(ISNUMBER(Tabelle16[[#This Row],[Spalte2]]),Tabelle16[[#This Row],[Spalte2]]<>0,Tabelle16[[#This Row],[Spalte3]]=\"Bitte wählen\"),\"Nicht definiert\",0))","v":0}]
[null,null,"Gesundheitskosten ",null,"Bitte wählen",{"$f":"IF(AND(ISNUMBER(Tabelle16[[#This Row],[Spalte2]]),Tabelle16[[#This Row],[Spalte3]]<>\"Bitte wählen\"),\nIF(Tabelle16[[#This Row],[Spalte3]]=Listen!$A$13,Tabelle16[[#This Row],[Spalte2]]/Listen!$B$13,IF(Tabelle16[[#This Row],[Spalte3]]=Listen!$A$14,Tabelle16[[#This Row],[Spalte2]]/Listen!$B$14,IF(Tabelle16[[#This Row],[Spalte3]]=Listen!$A$15,Tabelle16[[#This Row],[Spalte2]]/Listen!$B$15,IF(Tabelle16[[#This Row],[Spalte3]]=Listen!$A$16,Tabelle16[[#This Row],[Spalte2]]/Listen!$B$16,IF(Tabelle16[[#This Row],[Spalte3]]=Listen!$A$17,Tabelle16[[#This Row],[Spalte2]]/Listen!$B$17,\"Nicht definiert\"))))),IF(AND(ISNUMBER(Tabelle16[[#This Row],[Spalte2]]),Tabelle16[[#This Row],[Spalte2]]<>0,Tabelle16[[#This Row],[Spalte3]]=\"Bitte wählen\"),\"Nicht definiert\",0))","v":0}]
[null,null,"Haushaltsgeräte und Möbel",null,"Bitte wählen",{"$f":"IF(AND(ISNUMBER(Tabelle16[[#This Row],[Spalte2]]),Tabelle16[[#This Row],[Spalte3]]<>\"Bitte wählen\"),\nIF(Tabelle16[[#This Row],[Spalte3]]=Listen!$A$13,Tabelle16[[#This Row],[Spalte2]]/Listen!$B$13,IF(Tabelle16[[#This Row],[Spalte3]]=Listen!$A$14,Tabelle16[[#This Row],[Spalte2]]/Listen!$B$14,IF(Tabelle16[[#This Row],[Spalte3]]=Listen!$A$15,Tabelle16[[#This Row],[Spalte2]]/Listen!$B$15,IF(Tabelle16[[#This Row],[Spalte3]]=Listen!$A$16,Tabelle16[[#This Row],[Spalte2]]/Listen!$B$16,IF(Tabelle16[[#This Row],[Spalte3]]=Listen!$A$17,Tabelle16[[#This Row],[Spalte2]]/Listen!$B$17,\"Nicht definiert\"))))),IF(AND(ISNUMBER(Tabelle16[[#This Row],[Spalte2]]),Tabelle16[[#This Row],[Spalte2]]<>0,Tabelle16[[#This Row],[Spalte3]]=\"Bitte wählen\"),\"Nicht definiert\",0))","v":0}]
[null,null,"Aus- und Weiterbildungen",null,"Bitte wählen",{"$f":"IF(AND(ISNUMBER(Tabelle16[[#This Row],[Spalte2]]),Tabelle16[[#This Row],[Spalte3]]<>\"Bitte wählen\"),\nIF(Tabelle16[[#This Row],[Spalte3]]=Listen!$A$13,Tabelle16[[#This Row],[Spalte2]]/Listen!$B$13,IF(Tabelle16[[#This Row],[Spalte3]]=Listen!$A$14,Tabelle16[[#This Row],[Spalte2]]/Listen!$B$14,IF(Tabelle16[[#This Row],[Spalte3]]=Listen!$A$15,Tabelle16[[#This Row],[Spalte2]]/Listen!$B$15,IF(Tabelle16[[#This Row],[Spalte3]]=Listen!$A$16,Tabelle16[[#This Row],[Spalte2]]/Listen!$B$16,IF(Tabelle16[[#This Row],[Spalte3]]=Listen!$A$17,Tabelle16[[#This Row],[Spalte2]]/Listen!$B$17,\"Nicht definiert\"))))),IF(AND(ISNUMBER(Tabelle16[[#This Row],[Spalte2]]),Tabelle16[[#This Row],[Spalte2]]<>0,Tabelle16[[#This Row],[Spalte3]]=\"Bitte wählen\"),\"Nicht definiert\",0))","v":0}]
[null,null,"PC, Handy, …",null,"Bitte wählen",{"$f":"IF(AND(ISNUMBER(Tabelle16[[#This Row],[Spalte2]]),Tabelle16[[#This Row],[Spalte3]]<>\"Bitte wählen\"),\nIF(Tabelle16[[#This Row],[Spalte3]]=Listen!$A$13,Tabelle16[[#This Row],[Spalte2]]/Listen!$B$13,IF(Tabelle16[[#This Row],[Spalte3]]=Listen!$A$14,Tabelle16[[#This Row],[Spalte2]]/Listen!$B$14,IF(Tabelle16[[#This Row],[Spalte3]]=Listen!$A$15,Tabelle16[[#This Row],[Spalte2]]/Listen!$B$15,IF(Tabelle16[[#This Row],[Spalte3]]=Listen!$A$16,Tabelle16[[#This Row],[Spalte2]]/Listen!$B$16,IF(Tabelle16[[#This Row],[Spalte3]]=Listen!$A$17,Tabelle16[[#This Row],[Spalte2]]/Listen!$B$17,\"Nicht definiert\"))))),IF(AND(ISNUMBER(Tabelle16[[#This Row],[Spalte2]]),Tabelle16[[#This Row],[Spalte2]]<>0,Tabelle16[[#This Row],[Spalte3]]=\"Bitte wählen\"),\"Nicht definiert\",0))","v":0}]
[null,null,"Weitere Rückstellungen",null,"Bitte wählen",{"$f":"IF(AND(ISNUMBER(Tabelle16[[#This Row],[Spalte2]]),Tabelle16[[#This Row],[Spalte3]]<>\"Bitte wählen\"),\nIF(Tabelle16[[#This Row],[Spalte3]]=Listen!$A$13,Tabelle16[[#This Row],[Spalte2]]/Listen!$B$13,IF(Tabelle16[[#This Row],[Spalte3]]=Listen!$A$14,Tabelle16[[#This Row],[Spalte2]]/Listen!$B$14,IF(Tabelle16[[#This Row],[Spalte3]]=Listen!$A$15,Tabelle16[[#This Row],[Spalte2]]/Listen!$B$15,IF(Tabelle16[[#This Row],[Spalte3]]=Listen!$A$16,Tabelle16[[#This Row],[Spalte2]]/Listen!$B$16,IF(Tabelle16[[#This Row],[Spalte3]]=Listen!$A$17,Tabelle16[[#This Row],[Spalte2]]/Listen!$B$17,\"Nicht definiert\"))))),IF(AND(ISNUMBER(Tabelle16[[#This Row],[Spalte2]]),Tabelle16[[#This Row],[Spalte2]]<>0,Tabelle16[[#This Row],[Spalte3]]=\"Bitte wählen\"),\"Nicht definiert\",0))","v":0}]
[null,null,"Total",null,null,{"$f":"SUM(Tabelle16[[#All],[Spalte4]])","v":0}]
[]
[null,"Übriges",null,"Geldbetrag","Häufigkeit","Betrag pro Monat"]
[null,null,"Verbrauchsgüter",null,"Monatlich",{"$f":"IF(AND(ISNUMBER(Tabelle17[[#This Row],[Spalte2]]),Tabelle17[[#This Row],[Spalte3]]<>\"Bitte wählen\"),\nIF(Tabelle17[[#This Row],[Spalte3]]=Listen!$A$13,Tabelle17[[#This Row],[Spalte2]]/Listen!$B$13,IF(Tabelle17[[#This Row],[Spalte3]]=Listen!$A$14,Tabelle17[[#This Row],[Spalte2]]/Listen!$B$14,IF(Tabelle17[[#This Row],[Spalte3]]=Listen!$A$15,Tabelle17[[#This Row],[Spalte2]]/Listen!$B$15,IF(Tabelle17[[#This Row],[Spalte3]]=Listen!$A$16,Tabelle17[[#This Row],[Spalte2]]/Listen!$B$16,IF(Tabelle17[[#This Row],[Spalte3]]=Listen!$A$17,Tabelle17[[#This Row],[Spalte2]]/Listen!$B$17,\"Nicht definiert\"))))),IF(AND(ISNUMBER(Tabelle17[[#This Row],[Spalte2]]),Tabelle17[[#This Row],[Spalte2]]<>0,Tabelle17[[#This Row],[Spalte3]]=\"Bitte wählen\"),\"Nicht definiert\",0))","v":0}]
[null,null,"Bankgebühren",null,"Bitte wählen",{"$f":"IF(AND(ISNUMBER(Tabelle17[[#This Row],[Spalte2]]),Tabelle17[[#This Row],[Spalte3]]<>\"Bitte wählen\"),\nIF(Tabelle17[[#This Row],[Spalte3]]=Listen!$A$13,Tabelle17[[#This Row],[Spalte2]]/Listen!$B$13,IF(Tabelle17[[#This Row],[Spalte3]]=Listen!$A$14,Tabelle17[[#This Row],[Spalte2]]/Listen!$B$14,IF(Tabelle17[[#This Row],[Spalte3]]=Listen!$A$15,Tabelle17[[#This Row],[Spalte2]]/Listen!$B$15,IF(Tabelle17[[#This Row],[Spalte3]]=Listen!$A$16,Tabelle17[[#This Row],[Spalte2]]/Listen!$B$16,IF(Tabelle17[[#This Row],[Spalte3]]=Listen!$A$17,Tabelle17[[#This Row],[Spalte2]]/Listen!$B$17,\"Nicht definiert\"))))),IF(AND(ISNUMBER(Tabelle17[[#This Row],[Spalte2]]),Tabelle17[[#This Row],[Spalte2]]<>0,Tabelle17[[#This Row],[Spalte3]]=\"Bitte wählen\"),\"Nicht definiert\",0))","v":0}]
[null,null,"Unterhaltsbeiträge (Alimente)",null,"Monatlich",{"$f":"IF(AND(ISNUMBER(Tabelle17[[#This Row],[Spalte2]]),Tabelle17[[#This Row],[Spalte3]]<>\"Bitte wählen\"),\nIF(Tabelle17[[#This Row],[Spalte3]]=Listen!$A$13,Tabelle17[[#This Row],[Spalte2]]/Listen!$B$13,IF(Tabelle17[[#This Row],[Spalte3]]=Listen!$A$14,Tabelle17[[#This Row],[Spalte2]]/Listen!$B$14,IF(Tabelle17[[#This Row],[Spalte3]]=Listen!$A$15,Tabelle17[[#This Row],[Spalte2]]/Listen!$B$15,IF(Tabelle17[[#This Row],[Spalte3]]=Listen!$A$16,Tabelle17[[#This Row],[Spalte2]]/Listen!$B$16,IF(Tabelle17[[#This Row],[Spalte3]]=Listen!$A$17,Tabelle17[[#This Row],[Spalte2]]/Listen!$B$17,\"Nicht definiert\"))))),IF(AND(ISNUMBER(Tabelle17[[#This Row],[Spalte2]]),Tabelle17[[#This Row],[Spalte2]]<>0,Tabelle17[[#This Row],[Spalte3]]=\"Bitte wählen\"),\"Nicht definiert\",0))","v":0}]
[null,null,"Software zum privaten Gebrauch",null,"Jährlich",{"$f":"IF(AND(ISNUMBER(Tabelle17[[#This Row],[Spalte2]]),Tabelle17[[#This Row],[Spalte3]]<>\"Bitte wählen\"),\nIF(Tabelle17[[#This Row],[Spalte3]]=Listen!$A$13,Tabelle17[[#This Row],[Spalte2]]/Listen!$B$13,IF(Tabelle17[[#This Row],[Spalte3]]=Listen!$A$14,Tabelle17[[#This Row],[Spalte2]]/Listen!$B$14,IF(Tabelle17[[#This Row],[Spalte3]]=Listen!$A$15,Tabelle17[[#This Row],[Spalte2]]/Listen!$B$15,IF(Tabelle17[[#This Row],[Spalte3]]=Listen!$A$16,Tabelle17[[#This Row],[Spalte2]]/Listen!$B$16,IF(Tabelle17[[#This Row],[Spalte3]]=Listen!$A$17,Tabelle17[[#This Row],[Spalte2]]/Listen!$B$17,\"Nicht definiert\"))))),IF(AND(ISNUMBER(Tabelle17[[#This Row],[Spalte2]]),Tabelle17[[#This Row],[Spalte2]]<>0,Tabelle17[[#This Row],[Spalte3]]=\"Bitte wählen\"),\"Nicht definiert\",0))","v":0}]
[null,null,"Zigaretten",null,"Monatlich",{"$f":"IF(AND(ISNUMBER(Tabelle17[[#This Row],[Spalte2]]),Tabelle17[[#This Row],[Spalte3]]<>\"Bitte wählen\"),\nIF(Tabelle17[[#This Row],[Spalte3]]=Listen!$A$13,Tabelle17[[#This Row],[Spalte2]]/Listen!$B$13,IF(Tabelle17[[#This Row],[Spalte3]]=Listen!$A$14,Tabelle17[[#This Row],[Spalte2]]/Listen!$B$14,IF(Tabelle17[[#This Row],[Spalte3]]=Listen!$A$15,Tabelle17[[#This Row],[Spalte2]]/Listen!$B$15,IF(Tabelle17[[#This Row],[Spalte3]]=Listen!$A$16,Tabelle17[[#This Row],[Spalte2]]/Listen!$B$16,IF(Tabelle17[[#This Row],[Spalte3]]=Listen!$A$17,Tabelle17[[#This Row],[Spalte2]]/Listen!$B$17,\"Nicht definiert\"))))),IF(AND(ISNUMBER(Tabelle17[[#This Row],[Spalte2]]),Tabelle17[[#This Row],[Spalte2]]<>0,Tabelle17[[#This Row],[Spalte3]]=\"Bitte wählen\"),\"Nicht definiert\",0))","v":0}]
[null,null,"Geschenke",null,"Bitte wählen",{"$f":"IF(AND(ISNUMBER(Tabelle17[[#This Row],[Spalte2]]),Tabelle17[[#This Row],[Spalte3]]<>\"Bitte wählen\"),\nIF(Tabelle17[[#This Row],[Spalte3]]=Listen!$A$13,Tabelle17[[#This Row],[Spalte2]]/Listen!$B$13,IF(Tabelle17[[#This Row],[Spalte3]]=Listen!$A$14,Tabelle17[[#This Row],[Spalte2]]/Listen!$B$14,IF(Tabelle17[[#This Row],[Spalte3]]=Listen!$A$15,Tabelle17[[#This Row],[Spalte2]]/Listen!$B$15,IF(Tabelle17[[#This Row],[Spalte3]]=Listen!$A$16,Tabelle17[[#This Row],[Spalte2]]/Listen!$B$16,IF(Tabelle17[[#This Row],[Spalte3]]=Listen!$A$17,Tabelle17[[#This Row],[Spalte2]]/Listen!$B$17,\"Nicht definiert\"))))),IF(AND(ISNUMBER(Tabelle17[[#This Row],[Spalte2]]),Tabelle17[[#This Row],[Spalte2]]<>0,Tabelle17[[#This Row],[Spalte3]]=\"Bitte wählen\"),\"Nicht definiert\",0))","v":0}]
[null,null,"Gemeinnütziges (Spenden)",null,"Jährlich",{"$f":"IF(AND(ISNUMBER(Tabelle17[[#This Row],[Spalte2]]),Tabelle17[[#This Row],[Spalte3]]<>\"Bitte wählen\"),\nIF(Tabelle17[[#This Row],[Spalte3]]=Listen!$A$13,Tabelle17[[#This Row],[Spalte2]]/Listen!$B$13,IF(Tabelle17[[#This Row],[Spalte3]]=Listen!$A$14,Tabelle17[[#This Row],[Spalte2]]/Listen!$B$14,IF(Tabelle17[[#This Row],[Spalte3]]=Listen!$A$15,Tabelle17[[#This Row],[Spalte2]]/Listen!$B$15,IF(Tabelle17[[#This Row],[Spalte3]]=Listen!$A$16,Tabelle17[[#This Row],[Spalte2]]/Listen!$B$16,IF(Tabelle17[[#This Row],[Spalte3]]=Listen!$A$17,Tabelle17[[#This Row],[Spalte2]]/Listen!$B$17,\"Nicht definiert\"))))),IF(AND(ISNUMBER(Tabelle17[[#This Row],[Spalte2]]),Tabelle17[[#This Row],[Spalte2]]<>0,Tabelle17[[#This Row],[Spalte3]]=\"Bitte wählen\"),\"Nicht definiert\",0))","v":0}]
[null,null,"Mitgliedschaften",null,"Bitte wählen",{"$f":"IF(AND(ISNUMBER(Tabelle17[[#This Row],[Spalte2]]),Tabelle17[[#This Row],[Spalte3]]<>\"Bitte wählen\"),\nIF(Tabelle17[[#This Row],[Spalte3]]=Listen!$A$13,Tabelle17[[#This Row],[Spalte2]]/Listen!$B$13,IF(Tabelle17[[#This Row],[Spalte3]]=Listen!$A$14,Tabelle17[[#This Row],[Spalte2]]/Listen!$B$14,IF(Tabelle17[[#This Row],[Spalte3]]=Listen!$A$15,Tabelle17[[#This Row],[Spalte2]]/Listen!$B$15,IF(Tabelle17[[#This Row],[Spalte3]]=Listen!$A$16,Tabelle17[[#This Row],[Spalte2]]/Listen!$B$16,IF(Tabelle17[[#This Row],[Spalte3]]=Listen!$A$17,Tabelle17[[#This Row],[Spalte2]]/Listen!$B$17,\"Nicht definiert\"))))),IF(AND(ISNUMBER(Tabelle17[[#This Row],[Spalte2]]),Tabelle17[[#This Row],[Spalte2]]<>0,Tabelle17[[#This Row],[Spalte3]]=\"Bitte wählen\"),\"Nicht definiert\",0))","v":0}]
[null,null,"Sparen / Anlegen / Vorsorgen",null,"Bitte wählen",{"$f":"IF(AND(ISNUMBER(Tabelle17[[#This Row],[Spalte2]]),Tabelle17[[#This Row],[Spalte3]]<>\"Bitte wählen\"),\nIF(Tabelle17[[#This Row],[Spalte3]]=Listen!$A$13,Tabelle17[[#This Row],[Spalte2]]/Listen!$B$13,IF(Tabelle17[[#This Row],[Spalte3]]=Listen!$A$14,Tabelle17[[#This Row],[Spalte2]]/Listen!$B$14,IF(Tabelle17[[#This Row],[Spalte3]]=Listen!$A$15,Tabelle17[[#This Row],[Spalte2]]/Listen!$B$15,IF(Tabelle17[[#This Row],[Spalte3]]=Listen!$A$16,Tabelle17[[#This Row],[Spalte2]]/Listen!$B$16,IF(Tabelle17[[#This Row],[Spalte3]]=Listen!$A$17,Tabelle17[[#This Row],[Spalte2]]/Listen!$B$17,\"Nicht definiert\"))))),IF(AND(ISNUMBER(Tabelle17[[#This Row],[Spalte2]]),Tabelle17[[#This Row],[Spalte2]]<>0,Tabelle17[[#This Row],[Spalte3]]=\"Bitte wählen\"),\"Nicht definiert\",0))","v":0}]
[null,null,"Weiteres",null,"Bitte wählen",{"$f":"IF(AND(ISNUMBER(Tabelle17[[#This Row],[Spalte2]]),Tabelle17[[#This Row],[Spalte3]]<>\"Bitte wählen\"),\nIF(Tabelle17[[#This Row],[Spalte3]]=Listen!$A$13,Tabelle17[[#This Row],[Spalte2]]/Listen!$B$13,IF(Tabelle17[[#This Row],[Spalte3]]=Listen!$A$14,Tabelle17[[#This Row],[Spalte2]]/Listen!$B$14,IF(Tabelle17[[#This Row],[Spalte3]]=Listen!$A$15,Tabelle17[[#This Row],[Spalte2]]/Listen!$B$15,IF(Tabelle17[[#This Row],[Spalte3]]=Listen!$A$16,Tabelle17[[#This Row],[Spalte2]]/Listen!$B$16,IF(Tabelle17[[#This Row],[Spalte3]]=Listen!$A$17,Tabelle17[[#This Row],[Spalte2]]/Listen!$B$17,\"Nicht definiert\"))))),IF(AND(ISNUMBER(Tabelle17[[#This Row],[Spalte2]]),Tabelle17[[#This Row],[Spalte2]]<>0,Tabelle17[[#This Row],[Spalte3]]=\"Bitte wählen\"),\"Nicht definiert\",0))","v":0}]
[null,null,"Total",null,null,{"$f":"SUM(Tabelle17[[#All],[Spalte4]])","v":0}]

{"sheet":"Einnahmen","index":2,"n_rows":29,"n_cols":6,"rows_kept":29,"cut":false,"hidden":false,"merged":[]}
["Einnahmen"]
[]
[null,"Erwerbseinkommen",null,"Geldbetrag","Häufigkeit","Betrag pro Monat"]
[null,null,"Nettolohn",null,"Jährlich",{"$f":"IF(AND(ISNUMBER(Tabelle100[[#This Row],[Spalte2]]),Tabelle100[[#This Row],[Spalte3]]<>\"Bitte wählen\"),\nIF(Tabelle100[[#This Row],[Spalte3]]=Listen!$A$13,Tabelle100[[#This Row],[Spalte2]]/Listen!$B$13,IF(Tabelle100[[#This Row],[Spalte3]]=Listen!$A$14,Tabelle100[[#This Row],[Spalte2]]/Listen!$B$14,IF(Tabelle100[[#This Row],[Spalte3]]=Listen!$A$15,Tabelle100[[#This Row],[Spalte2]]/Listen!$B$15,IF(Tabelle100[[#This Row],[Spalte3]]=Listen!$A$16,Tabelle100[[#This Row],[Spalte2]]/Listen!$B$16,IF(Tabelle100[[#This Row],[Spalte3]]=Listen!$A$17,Tabelle100[[#This Row],[Spalte2]]/Listen!$B$17,\"Nicht definiert\"))))),IF(AND(ISNUMBER(Tabelle100[[#This Row],[Spalte2]]),Tabelle100[[#This Row],[Spalte2]]<>0,Tabelle100[[#This Row],[Spalte3]]=\"Bitte wählen\"),\"Nicht definiert\",0))","v":0}]
[null,null,"13. Monatslohn (netto)",null,"Jährlich",{"$f":"IF(AND(ISNUMBER(Tabelle100[[#This Row],[Spalte2]]),Tabelle100[[#This Row],[Spalte3]]<>\"Bitte wählen\"),\nIF(Tabelle100[[#This Row],[Spalte3]]=Listen!$A$13,Tabelle100[[#This Row],[Spalte2]]/Listen!$B$13,IF(Tabelle100[[#This Row],[Spalte3]]=Listen!$A$14,Tabelle100[[#This Row],[Spalte2]]/Listen!$B$14,IF(Tabelle100[[#This Row],[Spalte3]]=Listen!$A$15,Tabelle100[[#This Row],[Spalte2]]/Listen!$B$15,IF(Tabelle100[[#This Row],[Spalte3]]=Listen!$A$16,Tabelle100[[#This Row],[Spalte2]]/Listen!$B$16,IF(Tabelle100[[#This Row],[Spalte3]]=Listen!$A$17,Tabelle100[[#This Row],[Spalte2]]/Listen!$B$17,\"Nicht definiert\"))))),IF(AND(ISNUMBER(Tabelle100[[#This Row],[Spalte2]]),Tabelle100[[#This Row],[Spalte2]]<>0,Tabelle100[[#This Row],[Spalte3]]=\"Bitte wählen\"),\"Nicht definiert\",0))","v":0}]
[null,null,"Nebeneinkommen (netto)",null,"Bitte wählen",{"$f":"IF(AND(ISNUMBER(Tabelle100[[#This Row],[Spalte2]]),Tabelle100[[#This Row],[Spalte3]]<>\"Bitte wählen\"),\nIF(Tabelle100[[#This Row],[Spalte3]]=Listen!$A$13,Tabelle100[[#This Row],[Spalte2]]/Listen!$B$13,IF(Tabelle100[[#This Row],[Spalte3]]=Listen!$A$14,Tabelle100[[#This Row],[Spalte2]]/Listen!$B$14,IF(Tabelle100[[#This Row],[Spalte3]]=Listen!$A$15,Tabelle100[[#This Row],[Spalte2]]/Listen!$B$15,IF(Tabelle100[[#This Row],[Spalte3]]=Listen!$A$16,Tabelle100[[#This Row],[Spalte2]]/Listen!$B$16,IF(Tabelle100[[#This Row],[Spalte3]]=Listen!$A$17,Tabelle100[[#This Row],[Spalte2]]/Listen!$B$17,\"Nicht definiert\"))))),IF(AND(ISNUMBER(Tabelle100[[#This Row],[Spalte2]]),Tabelle100[[#This Row],[Spalte2]]<>0,Tabelle100[[#This Row],[Spalte3]]=\"Bitte wählen\"),\"Nicht definiert\",0))","v":0}]
[null,null,"Weiteres",null,"Bitte wählen",{"$f":"IF(AND(ISNUMBER(Tabelle100[[#This Row],[Spalte2]]),Tabelle100[[#This Row],[Spalte3]]<>\"Bitte wählen\"),\nIF(Tabelle100[[#This Row],[Spalte3]]=Listen!$A$13,Tabelle100[[#This Row],[Spalte2]]/Listen!$B$13,IF(Tabelle100[[#This Row],[Spalte3]]=Listen!$A$14,Tabelle100[[#This Row],[Spalte2]]/Listen!$B$14,IF(Tabelle100[[#This Row],[Spalte3]]=Listen!$A$15,Tabelle100[[#This Row],[Spalte2]]/Listen!$B$15,IF(Tabelle100[[#This Row],[Spalte3]]=Listen!$A$16,Tabelle100[[#This Row],[Spalte2]]/Listen!$B$16,IF(Tabelle100[[#This Row],[Spalte3]]=Listen!$A$17,Tabelle100[[#This Row],[Spalte2]]/Listen!$B$17,\"Nicht definiert\"))))),IF(AND(ISNUMBER(Tabelle100[[#This Row],[Spalte2]]),Tabelle100[[#This Row],[Spalte2]]<>0,Tabelle100[[#This Row],[Spalte3]]=\"Bitte wählen\"),\"Nicht definiert\",0))","v":0}]
[null,null,"Total",null,null,{"$f":"SUM(Tabelle100[[#All],[Spalte4]])","v":0}]
[]
[null,"Sozialversicherungen",null,"Geldbetrag","Häufigkeit","Betrag pro Monat"]
[null,null,"AHV- oder IV-Rente",null,"Monatlich",{"$f":"IF(AND(ISNUMBER(Tabelle101[[#This Row],[Spalte2]]),Tabelle101[[#This Row],[Spalte3]]<>\"Bitte wählen\"),\nIF(Tabelle101[[#This Row],[Spalte3]]=Listen!$A$13,Tabelle101[[#This Row],[Spalte2]]/Listen!$B$13,IF(Tabelle101[[#This Row],[Spalte3]]=Listen!$A$14,Tabelle101[[#This Row],[Spalte2]]/Listen!$B$14,IF(Tabelle101[[#This Row],[Spalte3]]=Listen!$A$15,Tabelle101[[#This Row],[Spalte2]]/Listen!$B$15,IF(Tabelle101[[#This Row],[Spalte3]]=Listen!$A$16,Tabelle101[[#This Row],[Spalte2]]/Listen!$B$16,IF(Tabelle101[[#This Row],[Spalte3]]=Listen!$A$17,Tabelle101[[#This Row],[Spalte2]]/Listen!$B$17,\"Nicht definiert\"))))),IF(AND(ISNUMBER(Tabelle101[[#This Row],[Spalte2]]),Tabelle101[[#This Row],[Spalte2]]<>0,Tabelle101[[#This Row],[Spalte3]]=\"Bitte wählen\"),\"Nicht definiert\",0))","v":0}]
[null,null,"Pensionskassen-Rente",null,"Monatlich",{"$f":"IF(AND(ISNUMBER(Tabelle101[[#This Row],[Spalte2]]),Tabelle101[[#This Row],[Spalte3]]<>\"Bitte wählen\"),\nIF(Tabelle101[[#This Row],[Spalte3]]=Listen!$A$13,Tabelle101[[#This Row],[Spalte2]]/Listen!$B$13,IF(Tabelle101[[#This Row],[Spalte3]]=Listen!$A$14,Tabelle101[[#This Row],[Spalte2]]/Listen!$B$14,IF(Tabelle101[[#This Row],[Spalte3]]=Listen!$A$15,Tabelle101[[#This Row],[Spalte2]]/Listen!$B$15,IF(Tabelle101[[#This Row],[Spalte3]]=Listen!$A$16,Tabelle101[[#This Row],[Spalte2]]/Listen!$B$16,IF(Tabelle101[[#This Row],[Spalte3]]=Listen!$A$17,Tabelle101[[#This Row],[Spalte2]]/Listen!$B$17,\"Nicht definiert\"))))),IF(AND(ISNUMBER(Tabelle101[[#This Row],[Spalte2]]),Tabelle101[[#This Row],[Spalte2]]<>0,Tabelle101[[#This Row],[Spalte3]]=\"Bitte wählen\"),\"Nicht definiert\",0))","v":0}]
[null,null,"Auszahlung aus der Säule 3a und 3b",null,"Monatlich",{"$f":"IF(AND(ISNUMBER(Tabelle101[[#This Row],[Spalte2]]),Tabelle101[[#This Row],[Spalte3]]<>\"Bitte wählen\"),\nIF(Tabelle101[[#This Row],[Spalte3]]=Listen!$A$13,Tabelle101[[#This Row],[Spalte2]]/Listen!$B$13,IF(Tabelle101[[#This Row],[Spalte3]]=Listen!$A$14,Tabelle101[[#This Row],[Spalte2]]/Listen!$B$14,IF(Tabelle101[[#This Row],[Spalte3]]=Listen!$A$15,Tabelle101[[#This Row],[Spalte2]]/Listen!$B$15,IF(Tabelle101[[#This Row],[Spalte3]]=Listen!$A$16,Tabelle101[[#This Row],[Spalte2]]/Listen!$B$16,IF(Tabelle101[[#This Row],[Spalte3]]=Listen!$A$17,Tabelle101[[#This Row],[Spalte2]]/Listen!$B$17,\"Nicht definiert\"))))),IF(AND(ISNUMBER(Tabelle101[[#This Row],[Spalte2]]),Tabelle101[[#This Row],[Spalte2]]<>0,Tabelle101[[#This Row],[Spalte3]]=\"Bitte wählen\"),\"Nicht definiert\",0))","v":0}]
[null,null,"Leistungen der ALV",null,"Monatlich",{"$f":"IF(AND(ISNUMBER(Tabelle101[[#This Row],[Spalte2]]),Tabelle101[[#This Row],[Spalte3]]<>\"Bitte wählen\"),\nIF(Tabelle101[[#This Row],[Spalte3]]=Listen!$A$13,Tabelle101[[#This Row],[Spalte2]]/Listen!$B$13,IF(Tabelle101[[#This Row],[Spalte3]]=Listen!$A$14,Tabelle101[[#This Row],[Spalte2]]/Listen!$B$14,IF(Tabelle101[[#This Row],[Spalte3]]=Listen!$A$15,Tabelle101[[#This Row],[Spalte2]]/Listen!$B$15,IF(Tabelle101[[#This Row],[Spalte3]]=Listen!$A$16,Tabelle101[[#This Row],[Spalte2]]/Listen!$B$16,IF(Tabelle101[[#This Row],[Spalte3]]=Listen!$A$17,Tabelle101[[#This Row],[Spalte2]]/Listen!$B$17,\"Nicht definiert\"))))),IF(AND(ISNUMBER(Tabelle101[[#This Row],[Spalte2]]),Tabelle101[[#This Row],[Spalte2]]<>0,Tabelle101[[#This Row],[Spalte3]]=\"Bitte wählen\"),\"Nicht definiert\",0))","v":0}]
[null,null,"Leistungen der EO",null,"Monatlich",{"$f":"IF(AND(ISNUMBER(Tabelle101[[#This Row],[Spalte2]]),Tabelle101[[#This Row],[Spalte3]]<>\"Bitte wählen\"),\nIF(Tabelle101[[#This Row],[Spalte3]]=Listen!$A$13,Tabelle101[[#This Row],[Spalte2]]/Listen!$B$13,IF(Tabelle101[[#This Row],[Spalte3]]=Listen!$A$14,Tabelle101[[#This Row],[Spalte2]]/Listen!$B$14,IF(Tabelle101[[#This Row],[Spalte3]]=Listen!$A$15,Tabelle101[[#This Row],[Spalte2]]/Listen!$B$15,IF(Tabelle101[[#This Row],[Spalte3]]=Listen!$A$16,Tabelle101[[#This Row],[Spalte2]]/Listen!$B$16,IF(Tabelle101[[#This Row],[Spalte3]]=Listen!$A$17,Tabelle101[[#This Row],[Spalte2]]/Listen!$B$17,\"Nicht definiert\"))))),IF(AND(ISNUMBER(Tabelle101[[#This Row],[Spalte2]]),Tabelle101[[#This Row],[Spalte2]]<>0,Tabelle101[[#This Row],[Spalte3]]=\"Bitte wählen\"),\"Nicht definiert\",0))","v":0}]
[null,null,"Weiteres",null,"Monatlich",{"$f":"IF(AND(ISNUMBER(Tabelle101[[#This Row],[Spalte2]]),Tabelle101[[#This Row],[Spalte3]]<>\"Bitte wählen\"),\nIF(Tabelle101[[#This Row],[Spalte3]]=Listen!$A$13,Tabelle101[[#This Row],[Spalte2]]/Listen!$B$13,IF(Tabelle101[[#This Row],[Spalte3]]=Listen!$A$14,Tabelle101[[#This Row],[Spalte2]]/Listen!$B$14,IF(Tabelle101[[#This Row],[Spalte3]]=Listen!$A$15,Tabelle101[[#This Row],[Spalte2]]/Listen!$B$15,IF(Tabelle101[[#This Row],[Spalte3]]=Listen!$A$16,Tabelle101[[#This Row],[Spalte2]]/Listen!$B$16,IF(Tabelle101[[#This Row],[Spalte3]]=Listen!$A$17,Tabelle101[[#This Row],[Spalte2]]/Listen!$B$17,\"Nicht definiert\"))))),IF(AND(ISNUMBER(Tabelle101[[#This Row],[Spalte2]]),Tabelle101[[#This Row],[Spalte2]]<>0,Tabelle101[[#This Row],[Spalte3]]=\"Bitte wählen\"),\"Nicht definiert\",0))","v":0}]
[null,null,"Total",null,null,{"$f":"SUM(Tabelle101[[#All],[Spalte4]])","v":0}]
[]
[null,"Kapitalanlagen",null,"Geldbetrag","Häufigkeit","Betrag pro Monat"]
[null,null,"Zinsen",null,"Jährlich",{"$f":"IF(AND(ISNUMBER(Tabelle102[[#This Row],[Spalte2]]),Tabelle102[[#This Row],[Spalte3]]<>\"Bitte wählen\"),\nIF(Tabelle102[[#This Row],[Spalte3]]=Listen!$A$13,Tabelle102[[#This Row],[Spalte2]]/Listen!$B$13,IF(Tabelle102[[#This Row],[Spalte3]]=Listen!$A$14,Tabelle102[[#This Row],[Spalte2]]/Listen!$B$14,IF(Tabelle102[[#This Row],[Spalte3]]=Listen!$A$15,Tabelle102[[#This Row],[Spalte2]]/Listen!$B$15,IF(Tabelle102[[#This Row],[Spalte3]]=Listen!$A$16,Tabelle102[[#This Row],[Spalte2]]/Listen!$B$16,IF(Tabelle102[[#This Row],[Spalte3]]=Listen!$A$17,Tabelle102[[#This Row],[Spalte2]]/Listen!$B$17,\"Nicht definiert\"))))),IF(AND(ISNUMBER(Tabelle102[[#This Row],[Spalte2]]),Tabelle102[[#This Row],[Spalte2]]<>0,Tabelle102[[#This Row],[Spalte3]]=\"Bitte wählen\"),\"Nicht definiert\",0))","v":0}]
[null,null,"Dividenden",null,"Jährlich",{"$f":"IF(AND(ISNUMBER(Tabelle102[[#This Row],[Spalte2]]),Tabelle102[[#This Row],[Spalte3]]<>\"Bitte wählen\"),\nIF(Tabelle102[[#This Row],[Spalte3]]=Listen!$A$13,Tabelle102[[#This Row],[Spalte2]]/Listen!$B$13,IF(Tabelle102[[#This Row],[Spalte3]]=Listen!$A$14,Tabelle102[[#This Row],[Spalte2]]/Listen!$B$14,IF(Tabelle102[[#This Row],[Spalte3]]=Listen!$A$15,Tabelle102[[#This Row],[Spalte2]]/Listen!$B$15,IF(Tabelle102[[#This Row],[Spalte3]]=Listen!$A$16,Tabelle102[[#This Row],[Spalte2]]/Listen!$B$16,IF(Tabelle102[[#This Row],[Spalte3]]=Listen!$A$17,Tabelle102[[#This Row],[Spalte2]]/Listen!$B$17,\"Nicht definiert\"))))),IF(AND(ISNUMBER(Tabelle102[[#This Row],[Spalte2]]),Tabelle102[[#This Row],[Spalte2]]<>0,Tabelle102[[#This Row],[Spalte3]]=\"Bitte wählen\"),\"Nicht definiert\",0))","v":0}]
[null,null,"Mietzinsen",null,"Monatlich",{"$f":"IF(AND(ISNUMBER(Tabelle102[[#This Row],[Spalte2]]),Tabelle102[[#This Row],[Spalte3]]<>\"Bitte wählen\"),\nIF(Tabelle102[[#This Row],[Spalte3]]=Listen!$A$13,Tabelle102[[#This Row],[Spalte2]]/Listen!$B$13,IF(Tabelle102[[#This Row],[Spalte3]]=Listen!$A$14,Tabelle102[[#This Row],[Spalte2]]/Listen!$B$14,IF(Tabelle102[[#This Row],[Spalte3]]=Listen!$A$15,Tabelle102[[#This Row],[Spalte2]]/Listen!$B$15,IF(Tabelle102[[#This Row],[Spalte3]]=Listen!$A$16,Tabelle102[[#This Row],[Spalte2]]/Listen!$B$16,IF(Tabelle102[[#This Row],[Spalte3]]=Listen!$A$17,Tabelle102[[#This Row],[Spalte2]]/Listen!$B$17,\"Nicht definiert\"))))),IF(AND(ISNUMBER(Tabelle102[[#This Row],[Spalte2]]),Tabelle102[[#This Row],[Spalte2]]<>0,Tabelle102[[#This Row],[Spalte3]]=\"Bitte wählen\"),\"Nicht definiert\",0))","v":0}]
[null,null,"Weitere Erträge",null,"Bitte wählen",{"$f":"IF(AND(ISNUMBER(Tabelle102[[#This Row],[Spalte2]]),Tabelle102[[#This Row],[Spalte3]]<>\"Bitte wählen\"),\nIF(Tabelle102[[#This Row],[Spalte3]]=Listen!$A$13,Tabelle102[[#This Row],[Spalte2]]/Listen!$B$13,IF(Tabelle102[[#This Row],[Spalte3]]=Listen!$A$14,Tabelle102[[#This Row],[Spalte2]]/Listen!$B$14,IF(Tabelle102[[#This Row],[Spalte3]]=Listen!$A$15,Tabelle102[[#This Row],[Spalte2]]/Listen!$B$15,IF(Tabelle102[[#This Row],[Spalte3]]=Listen!$A$16,Tabelle102[[#This Row],[Spalte2]]/Listen!$B$16,IF(Tabelle102[[#This Row],[Spalte3]]=Listen!$A$17,Tabelle102[[#This Row],[Spalte2]]/Listen!$B$17,\"Nicht definiert\"))))),IF(AND(ISNUMBER(Tabelle102[[#This Row],[Spalte2]]),Tabelle102[[#This Row],[Spalte2]]<>0,Tabelle102[[#This Row],[Spalte3]]=\"Bitte wählen\"),\"Nicht definiert\",0))","v":0}]
[null,null,"Total",null,null,{"$f":"SUM(Tabelle102[[#All],[Spalte4]])","v":0}]
[]
[null,"Übriges",null,"Geldbetrag","Häufigkeit","Betrag pro Monat"]
[null,null,"Unterhaltsbeiträge (Alimente)",null,"Monatlich",{"$f":"IF(AND(ISNUMBER(Tabelle103[[#This Row],[Spalte2]]),Tabelle103[[#This Row],[Spalte3]]<>\"Bitte wählen\"),\nIF(Tabelle103[[#This Row],[Spalte3]]=Listen!$A$13,Tabelle103[[#This Row],[Spalte2]]/Listen!$B$13,IF(Tabelle103[[#This Row],[Spalte3]]=Listen!$A$14,Tabelle103[[#This Row],[Spalte2]]/Listen!$B$14,IF(Tabelle103[[#This Row],[Spalte3]]=Listen!$A$15,Tabelle103[[#This Row],[Spalte2]]/Listen!$B$15,IF(Tabelle103[[#This Row],[Spalte3]]=Listen!$A$16,Tabelle103[[#This Row],[Spalte2]]/Listen!$B$16,IF(Tabelle103[[#This Row],[Spalte3]]=Listen!$A$17,Tabelle103[[#This Row],[Spalte2]]/Listen!$B$17,\"Nicht definiert\"))))),IF(AND(ISNUMBER(Tabelle103[[#This Row],[Spalte2]]),Tabelle103[[#This Row],[Spalte2]]<>0,Tabelle103[[#This Row],[Spalte3]]=\"Bitte wählen\"),\"Nicht definiert\",0))","v":0}]
[null,null,"Weiteres",null,"Bitte wählen",{"$f":"IF(AND(ISNUMBER(Tabelle103[[#This Row],[Spalte2]]),Tabelle103[[#This Row],[Spalte3]]<>\"Bitte wählen\"),\nIF(Tabelle103[[#This Row],[Spalte3]]=Listen!$A$13,Tabelle103[[#This Row],[Spalte2]]/Listen!$B$13,IF(Tabelle103[[#This Row],[Spalte3]]=Listen!$A$14,Tabelle103[[#This Row],[Spalte2]]/Listen!$B$14,IF(Tabelle103[[#This Row],[Spalte3]]=Listen!$A$15,Tabelle103[[#This Row],[Spalte2]]/Listen!$B$15,IF(Tabelle103[[#This Row],[Spalte3]]=Listen!$A$16,Tabelle103[[#This Row],[Spalte2]]/Listen!$B$16,IF(Tabelle103[[#This Row],[Spalte3]]=Listen!$A$17,Tabelle103[[#This Row],[Spalte2]]/Listen!$B$17,\"Nicht definiert\"))))),IF(AND(ISNUMBER(Tabelle103[[#This Row],[Spalte2]]),Tabelle103[[#This Row],[Spalte2]]<>0,Tabelle103[[#This Row],[Spalte3]]=\"Bitte wählen\"),\"Nicht definiert\",0))","v":0}]
[null,null,"Total",null,null,{"$f":"SUM(Tabelle103[[#All],[Spalte4]])","v":0}]

{"sheet":"Auswertung","index":3,"n_rows":138,"n_cols":8,"rows_kept":138,"cut":false,"hidden":false,"merged":[[8,1,8,2],[2,1,2,2],[3,4,5,4],[6,2,6,4]]}
["Auswertung"]
[]
[null,"Total",null,"Geldbetrag","Zeitspanne"]
[null,null,"Ausgaben",{"$f":"IF($E$4=Listen!$A$12,\"Nicht definiert\",IF($E$4=Listen!$A$13,Listen!$B$13,IF($E$4=Listen!$A$14,Listen!$B$14,IF($E$4=Listen!$A$15,Listen!$B$15,IF($E$4=Listen!$A$16,Listen!$B$16,IF($E$4=Listen!$A$17,Listen!$B$17)))))*(Ausgaben!F21+Ausgaben!F32+Ausgaben!F41+Ausgaben!F50+Ausgaben!F58+Ausgaben!F64+Ausgaben!F75+Ausgaben!F81+Ausgaben!F89+Ausgaben!F96+Ausgaben!F104+Ausgaben!F111+Ausgaben!F117+Ausgaben!F127+Ausgaben!F140))","v":"Nicht definiert"},"Bitte wählen"]
[null,null,"Einnahmen",{"$f":"IF($E$4=Listen!$A$12,\"Nicht definiert\",IF($E$4=Listen!$A$13,Listen!$B$13,IF($E$4=Listen!$A$14,Listen!$B$14,IF($E$4=Listen!$A$15,Listen!$B$15,IF($E$4=Listen!$A$16,Listen!$B$16,IF($E$4=Listen!$A$17,Listen!$B$17,\"Nicht definiert\")))))*(Einnahmen!F8+Einnahmen!F17+Einnahmen!F24+Einnahmen!F29))","v":"Nicht definiert"}]
[null,null,{"$f":"IF(AND(ISNUMBER(D4),ISNUMBER(D5),D4>D5),\"Defizit\",\"Überschuss\")","v":"Überschuss"},{"$f":"IF(AND(ISNUMBER(D4),ISNUMBER(D5)),ABS(D5-D4),\"Nicht definiert\")","v":"Nicht definiert"}]
[null,null,{"$f":"IF(AND(C6=\"Überschuss\",ISNUMBER(D6)),\nIF($E$4=Listen!$A$13,\"Sie haben monatlich noch einen Betrag von CHF \"&ROUND(D6,2)&\" übrig.\",\nIF($E$4=Listen!$A$14,\"Sie haben jährlich noch einen Betrag von CHF \"&ROUND(D6,2)&\" übrig.\",\nIF($E$4=Listen!$A$15,\"Sie haben wöchentlich noch einen Betrag von CHF \"&ROUND(D6,2)&\" übrig.\",\nIF($E$4=Listen!$A$16,\"Sie haben halbjährlich noch einen Betrag von CHF \"&ROUND(D6,2)&\" übrig.\",\nIF($E$4=Listen!$A$17,\"Sie haben vierteljährlich noch einen Betrag von CHF \"&ROUND(D6,2)&\" übrig.\"))))),\nIF(AND(C6=\"Defizit\",ISNUMBER(D6)),\nIF($E$4=Listen!$A$13,\"Sie machen monatlich ein Defizit von CHF \"&ROUND(D6,2)&\".\",\nIF($E$4=Listen!$A$14,\"Sie machen jährlich ein Defizit von CHF \"&ROUND(D6,2)&\".\",\nIF($E$4=Listen!$A$15,\"Sie machen wöchentlich ein Defizit von CHF \"&ROUND(D6,2)&\".\",\nIF($E$4=Listen!$A$16,\"Sie machen halbjährlich ein Defizit von CHF \"&ROUND(D6,2)&\".\",\nIF($E$4=Listen!$A$17,\"Sie machen vierteljährlich ein Defizit von CHF \"&ROUND(D6,2)&\".\"\n))))),\"\"))","v":""}]
[]
[null,"Ausgaben"]
[]
[]
[]
[]
[]
[]
[]
[]
[]
[]
[]
[]
[]
[]
[]
[]
[]
[]
[]
[]
[]
[null,null,"Monatlicher Betrag","All"]
[]
[null,null,null,"Monatlicher Betrag","Jährlicher Betrag","Wöchentlicher Betrag","Halbjährlicher Betrag","Vierteljährlicher Betrag"]
[null,null,"Aus- und Weiterbildung",0,0,0,0,0]
[null,null,"Lernmaterial (Bücher, Software, …)",0,0,0,0,0]
[null,null,"Studiengebühren",0,0,0,0,0]
[null,null,"Weiteres",0,0,0,0,0]
[null,null,"Auto und Motorrad",0,0,0,0,0]
[null,null,"Auto-Versicherungen",0,0,0,0,0]
[null,null,"Leasingrate",0,0,0,0,0]
[null,null,"Motorfahrzeugsteuer",0,0,0,0,0]
[null,null,"Parkplatz",0,0,0,0,0]
[null,null,"Service",0,0,0,0,0]
[null,null,"Weiteres",0,0,0,0,0]
[null,null,"Freizeit und Ferien",0,0,0,0,0]
[null,null,"Events, Club, Bar, Kino",0,0,0,0,0]
[null,null,"Ferien und Ausflüge",0,0,0,0,0]
[null,null,"Hobbys",0,0,0,0,0]
[null,null,"Sport",0,0,0,0,0]
[null,null,"Weiteres",0,0,0,0,0]
[null,null,"Gesundheit und Körperpflege",0,0,0,0,0]
[null,null,"Dentalhygiene",0,0,0,0,0]
[null,null,"Friseur",0,0,0,0,0]
[null,null,"Hygieneartikel",0,0,0,0,0]
[null,null,"Kontaktlinsen",0,0,0,0,0]
[null,null,"Kosmetik, Maniküre, Pediküre, …",0,0,0,0,0]
[null,null,"Krankenkasse Grundversicherung",0,0,0,0,0]
[null,null,"Krankenkassen Zusatzversicherungen",0,0,0,0,0]
[null,null,"Weiteres",0,0,0,0,0]
[null,null,"Haustiere",0,0,0,0,0]
[null,null,"Futter",0,0,0,0,0]
[null,null,"Tierarzt",0,0,0,0,0]
[null,null,"Tierversicherung",0,0,0,0,0]
[null,null,"Weiteres",0,0,0,0,0]
[null,null,"Kleidung und Schuhe",0,0,0,0,0]
[null,null,"Kleidung",0,0,0,0,0]
[null,null,"Schuhe",0,0,0,0,0]
[null,null,"Weiteres",0,0,0,0,0]
[null,null,"Kommunikation und Unterhaltung",0,0,0,0,0]
[null,null,"Abos Medien",0,0,0,0,0]
[null,null,"Festnetz-Abo",0,0,0,0,0]
[null,null,"Handy-Abo, Prepaid-Angebot",0,0,0,0,0]
[null,null,"Internet-Abo",0,0,0,0,0]
[null,null,"Roaming-Kosten",0,0,0,0,0]
[null,null,"Serafe-Gebühr",0,0,0,0,0]
[null,null,"Streaming- und TV-Abos",0,0,0,0,0]
[null,null,"Weiteres",0,0,0,0,0]
[null,null,"Lebensmittel",0,0,0,0,0]
[null,null,"Alkohol",0,0,0,0,0]
[null,null,"Lebensmittel und Getränke",0,0,0,0,0]
[null,null,"Lieferservice",0,0,0,0,0]
[null,null,"Restaurant (Kantine, Mensa, ...)",0,0,0,0,0]
[null,null,"Weiteres",0,0,0,0,0]
[null,null,"Mobilität",0,0,0,0,0]
[null,null,"Mofa, E-Bike, Velo",0,0,0,0,0]
[null,null,"ÖV Einzelbillete",0,0,0,0,0]
[null,null,"ÖV Halbtax-Abo",0,0,0,0,0]
[null,null,"ÖV-Abos",0,0,0,0,0]
[null,null,"Taxi, Uber",0,0,0,0,0]
[null,null,"Weiteres",0,0,0,0,0]
[null,null,"Rückstellungen",0,0,0,0,0]
[null,null,"Aus- und Weiterbildungen",0,0,0,0,0]
[null,null,"Auto, Motorrad, Mofa, E-Bike, Velo",0,0,0,0,0]
[null,null,"Gesundheitskosten",0,0,0,0,0]
[null,null,"Haushaltsgeräte und Möbel",0,0,0,0,0]
[null,null,"PC, Handy, …",0,0,0,0,0]
[null,null,"Weitere Rückstellungen",0,0,0,0,0]
[null,null,"Wohneigentum",0,0,0,0,0]
[null,null,"Schulden",0,0,0,0,0]
[null,null,"Ausstehende Kreditkartenschulden",0,0,0,0,0]
[null,null,"Ausstehende Raten Privatkredite",0,0,0,0,0]
[null,null,"Weitere Schulden",0,0,0,0,0]
[null,null,"Steuern",0,0,0,0,0]
[null,null,"Direkte Bundessteuer",0,0,0,0,0]
[null,null,"Kantons- und Gemeindesteuer",0,0,0,0,0]
[null,null,"Wehrpflichtersatzabgabe",0,0,0,0,0]
[null,null,"Weiteres",0,0,0,0,0]
[null,null,"Übriges",0,0,0,0,0]
[null,null,"Bankgebühren",0,0,0,0,0]
[null,null,"Gemeinnütziges (Spenden)",0,0,0,0,0]
[null,null,"Geschenke",0,0,0,0,0]
[null,null,"Mitgliedschaften",0,0,0,0,0]
[null,null,"Software zum privaten Gebrauch",0,0,0,0,0]
[null,null,"Sparen / Anlegen / Vorsorgen",0,0,0,0,0]
[null,null,"Unterhaltsbeiträge (Alimente)",0,0,0,0,0]
[null,null,"Verbrauchsgüter",0,0,0,0,0]
[null,null,"Weiteres",0,0,0,0,0]
[null,null,"Zigaretten",0,0,0,0,0]
[null,null,"Versicherungen",0,0,0,0,0]
[null,null,"Lebensversicherung",0,0,0,0,0]
[null,null,"Privathaftpflicht",0,0,0,0,0]
[null,null,"Rechtsschutz",0,0,0,0,0]
[null,null,"Reiseversicherung",0,0,0,0,0]
[null,null,"Weitere Versicherungen",0,0,0,0,0]
[null,null,"Wohnen",0,0,0,0,0]
[null,null,"Amortisation",0,0,0,0,0]
[null,null,"Gebäudeversicherung",0,0,0,0,0]
[null,null,"Hausratversicherung",0,0,0,0,0]
[null,null,"Hypothekarzins",0,0,0,0,0]
[null,null,"Miete",0,0,0,0,0]
[null,null,"Mietkautionsversicherung",0,0,0,0,0]
[null,null,"Nebenkosten / Betriebskosten",0,0,0,0,0]
[null,null,"Nebenkosten Akonto",0,0,0,0,0]
[null,null,"Nebenkosten-Schlussabrechnung",0,0,0,0,0]
[null,null,"Strom",0,0,0,0,0]
[null,null,"Unterhalt und kleinere Reparaturen",0,0,0,0,0]
[null,null,"Weiteres",0,0,0,0,0]
[null,null,"Gesamtergebnis",0,0,0,0,0]

{"sheet":"Listen","index":4,"n_rows":17,"n_cols":2,"rows_kept":17,"cut":false,"hidden":true,"merged":[]}
["Wie wohnen Sie?"]
["Bitte wählen"]
["Als Mieter"]
["Als Wohneigentümer"]
[]
["Haben Sie ein Auto oder ein Motorrad?"]
["Bitte wählen"]
["Nein"]
["Ja"]
[]
["Zeithorizont","Divisor"]
["Bitte wählen"]
["Monatlich",1]
["Jährlich",12]
["Wöchentlich",{"$f":"1/(365/12/7)","v":0.23013698630136983}]
["Halbjährlich",6]
["Vierteljährlich",3]

{"sheet":"Hilfstabelle","index":5,"n_rows":109,"n_cols":8,"rows_kept":109,"cut":false,"hidden":true,"merged":[]}
["Oberkategorie","Kategorie","Unterkategorie","Monatlicher Betrag","Jährlicher Betrag","Wöchentlicher Betrag","Halbjährlicher Betrag","Vierteljährlicher Betrag"]
["Ausgaben","Wohnen",{"$f":"Ausgaben!C8","v":"Miete"},{"$f":"IF(ISNUMBER(Ausgaben!F8),Ausgaben!F8,0)","v":0},{"$f":"$D2*Listen!$B$14","v":0},{"$f":"$D2*Listen!$B$15","v":0},{"$f":"$D2*Listen!$B$16","v":0},{"$f":"$D2*Listen!$B$17","v":0}]
["Ausgaben","Wohnen",{"$f":"Ausgaben!C9","v":"Nebenkosten Akonto"},{"$f":"IF(ISNUMBER(Ausgaben!F9),Ausgaben!F9,0)","v":0},{"$f":"$D3*Listen!$B$14","v":0},{"$f":"$D3*Listen!$B$15","v":0},{"$f":"$D3*Listen!$B$16","v":0},{"$f":"$D3*Listen!$B$17","v":0}]
["Ausgaben","Wohnen",{"$f":"Ausgaben!C10","v":"Nebenkosten-Schlussabrechnung"},{"$f":"IF(ISNUMBER(Ausgaben!F10),Ausgaben!F10,0)","v":0},{"$f":"$D4*Listen!$B$14","v":0},{"$f":"$D4*Listen!$B$15","v":0},{"$f":"$D4*Listen!$B$16","v":0},{"$f":"$D4*Listen!$B$17","v":0}]
["Ausgaben","Wohnen",{"$f":"Ausgaben!C11","v":"Strom"},{"$f":"IF(ISNUMBER(Ausgaben!F11),Ausgaben!F11,0)","v":0},{"$f":"$D5*Listen!$B$14","v":0},{"$f":"$D5*Listen!$B$15","v":0},{"$f":"$D5*Listen!$B$16","v":0},{"$f":"$D5*Listen!$B$17","v":0}]
["Ausgaben","Wohnen",{"$f":"Ausgaben!C12","v":"Hausratversicherung"},{"$f":"IF(ISNUMBER(Ausgaben!F12),Ausgaben!F12,0)","v":0},{"$f":"$D6*Listen!$B$14","v":0},{"$f":"$D6*Listen!$B$15","v":0},{"$f":"$D6*Listen!$B$16","v":0},{"$f":"$D6*Listen!$B$17","v":0}]
["Ausgaben","Wohnen",{"$f":"Ausgaben!C13","v":"Mietkautionsversicherung"},{"$f":"IF(ISNUMBER(Ausgaben!F13),Ausgaben!F13,0)","v":0},{"$f":"$D7*Listen!$B$14","v":0},{"$f":"$D7*Listen!$B$15","v":0},{"$f":"$D7*Listen!$B$16","v":0},{"$f":"$D7*Listen!$B$17","v":0}]
["Ausgaben","Wohnen",{"$f":"Ausgaben!C14","v":"Weiteres"},{"$f":"IF(ISNUMBER(Ausgaben!F14),Ausgaben!F14,0)","v":0},{"$f":"$D8*Listen!$B$14","v":0},{"$f":"$D8*Listen!$B$15","v":0},{"$f":"$D8*Listen!$B$16","v":0},{"$f":"$D8*Listen!$B$17","v":0}]
["Ausgaben","Wohnen",{"$f":"Ausgaben!C15","v":"Hypothekarzins"},{"$f":"IF(ISNUMBER(Ausgaben!F15),Ausgaben!F15,0)","v":0},{"$f":"$D9*Listen!$B$14","v":0},{"$f":"$D9*Listen!$B$15","v":0},{"$f":"$D9*Listen!$B$16","v":0},{"$f":"$D9*Listen!$B$17","v":0}]
["Ausgaben","Wohnen",{"$f":"Ausgaben!C16","v":"Nebenkosten / Betriebskosten"},{"$f":"IF(ISNUMBER(Ausgaben!F16),Ausgaben!F16,0)","v":0},{"$f":"$D10*Listen!$B$14","v":0},{"$f":"$D10*Listen!$B$15","v":0},{"$f":"$D10*Listen!$B$16","v":0},{"$f":"$D10*Listen!$B$17","v":0}]
["Ausgaben","Wohnen",{"$f":"Ausgaben!C17","v":"Unterhalt und kleinere Reparaturen"},{"$f":"IF(ISNUMBER(Ausgaben!F17),Ausgaben!F17,0)","v":0},{"$f":"$D11*Listen!$B$14","v":0},{"$f":"$D11*Listen!$B$15","v":0},{"$f":"$D11*Listen!$B$16","v":0},{"$f":"$D11*Listen!$B$17","v":0}]
["Ausgaben","Wohnen",{"$f":"Ausgaben!C18","v":"Gebäudeversicherung"},{"$f":"IF(ISNUMBER(Ausgaben!F18),Ausgaben!F18,0)","v":0},{"$f":"$D12*Listen!$B$14","v":0},{"$f":"$D12*Listen!$B$15","v":0},{"$f":"$D12*Listen!$B$16","v":0},{"$f":"$D12*Listen!$B$17","v":0}]
["Ausgaben","Wohnen",{"$f":"Ausgaben!C19","v":"Amortisation"},{"$f":"IF(ISNUMBER(Ausgaben!F19),Ausgaben!F19,0)","v":0},{"$f":"$D13*Listen!$B$14","v":0},{"$f":"$D13*Listen!$B$15","v":0},{"$f":"$D13*Listen!$B$16","v":0},{"$f":"$D13*Listen!$B$17","v":0}]
["Ausgaben","Wohnen",{"$f":"Ausgaben!C20","v":"Weiteres"},{"$f":"IF(ISNUMBER(Ausgaben!F20),Ausgaben!F20,0)","v":0},{"$f":"$D14*Listen!$B$14","v":0},{"$f":"$D14*Listen!$B$15","v":0},{"$f":"$D14*Listen!$B$16","v":0},{"$f":"$D14*Listen!$B$17","v":0}]
["Ausgaben","Gesundheit und Körperpflege",{"$f":"Ausgaben!C24","v":"Krankenkasse Grundversicherung"},{"$f":"IF(ISNUMBER(Ausgaben!F24),Ausgaben!F24,0)","v":0},{"$f":"$D15*Listen!$B$14","v":0},{"$f":"$D15*Listen!$B$15","v":0},{"$f":"$D15*Listen!$B$16","v":0},{"$f":"$D15*Listen!$B$17","v":0}]
["Ausgaben","Gesundheit und Körperpflege",{"$f":"Ausgaben!C25","v":"Krankenkassen Zusatzversicherungen"},{"$f":"IF(ISNUMBER(Ausgaben!F25),Ausgaben!F25,0)","v":0},{"$f":"$D16*Listen!$B$14","v":0},{"$f":"$D16*Listen!$B$15","v":0},{"$f":"$D16*Listen!$B$16","v":0},{"$f":"$D16*Listen!$B$17","v":0}]
["Ausgaben","Gesundheit und Körperpflege",{"$f":"Ausgaben!C26","v":"Dentalhygiene"},{"$f":"IF(ISNUMBER(Ausgaben!F26),Ausgaben!F26,0)","v":0},{"$f":"$D17*Listen!$B$14","v":0},{"$f":"$D17*Listen!$B$15","v":0},{"$f":"$D17*Listen!$B$16","v":0},{"$f":"$D17*Listen!$B$17","v":0}]
["Ausgaben","Gesundheit und Körperpflege",{"$f":"Ausgaben!C27","v":"Hygieneartikel"},{"$f":"IF(ISNUMBER(Ausgaben!F27),Ausgaben!F27,0)","v":0},{"$f":"$D18*Listen!$B$14","v":0},{"$f":"$D18*Listen!$B$15","v":0},{"$f":"$D18*Listen!$B$16","v":0},{"$f":"$D18*Listen!$B$17","v":0}]
["Ausgaben","Gesundheit und Körperpflege",{"$f":"Ausgaben!C28","v":"Friseur"},{"$f":"IF(ISNUMBER(Ausgaben!F28),Ausgaben!F28,0)","v":0},{"$f":"$D19*Listen!$B$14","v":0},{"$f":"$D19*Listen!$B$15","v":0},{"$f":"$D19*Listen!$B$16","v":0},{"$f":"$D19*Listen!$B$17","v":0}]
["Ausgaben","Gesundheit und Körperpflege",{"$f":"Ausgaben!C29","v":"Kontaktlinsen"},{"$f":"IF(ISNUMBER(Ausgaben!F29),Ausgaben!F29,0)","v":0},{"$f":"$D20*Listen!$B$14","v":0},{"$f":"$D20*Listen!$B$15","v":0},{"$f":"$D20*Listen!$B$16","v":0},{"$f":"$D20*Listen!$B$17","v":0}]
["Ausgaben","Gesundheit und Körperpflege",{"$f":"Ausgaben!C30","v":"Kosmetik, Maniküre, Pediküre, …"},{"$f":"IF(ISNUMBER(Ausgaben!F30),Ausgaben!F30,0)","v":0},{"$f":"$D21*Listen!$B$14","v":0},{"$f":"$D21*Listen!$B$15","v":0},{"$f":"$D21*Listen!$B$16","v":0},{"$f":"$D21*Listen!$B$17","v":0}]
["Ausgaben","Gesundheit und Körperpflege",{"$f":"Ausgaben!C31","v":"Weiteres"},{"$f":"IF(ISNUMBER(Ausgaben!F31),Ausgaben!F31,0)","v":0},{"$f":"$D22*Listen!$B$14","v":0},{"$f":"$D22*Listen!$B$15","v":0},{"$f":"$D22*Listen!$B$16","v":0},{"$f":"$D22*Listen!$B$17","v":0}]
["Ausgaben","Mobilität",{"$f":"Ausgaben!C35","v":"ÖV-Abos"},{"$f":"IF(ISNUMBER(Ausgaben!F35),Ausgaben!F35,0)","v":0},{"$f":"$D23*Listen!$B$14","v":0},{"$f":"$D23*Listen!$B$15","v":0},{"$f":"$D23*Listen!$B$16","v":0},{"$f":"$D23*Listen!$B$17","v":0}]
["Ausgaben","Mobilität",{"$f":"Ausgaben!C36","v":"ÖV Halbtax-Abo"},{"$f":"IF(ISNUMBER(Ausgaben!F36),Ausgaben!F36,0)","v":0},{"$f":"$D24*Listen!$B$14","v":0},{"$f":"$D24*Listen!$B$15","v":0},{"$f":"$D24*Listen!$B$16","v":0},{"$f":"$D24*Listen!$B$17","v":0}]
["Ausgaben","Mobilität",{"$f":"Ausgaben!C37","v":"ÖV Einzelbillete"},{"$f":"IF(ISNUMBER(Ausgaben!F37),Ausgaben!F37,0)","v":0},{"$f":"$D25*Listen!$B$14","v":0},{"$f":"$D25*Listen!$B$15","v":0},{"$f":"$D25*Listen!$B$16","v":0},{"$f":"$D25*Listen!$B$17","v":0}]
["Ausgaben","Mobilität",{"$f":"Ausgaben!C38","v":"Taxi, Uber"},{"$f":"IF(ISNUMBER(Ausgaben!F38),Ausgaben!F38,0)","v":0},{"$f":"$D26*Listen!$B$14","v":0},{"$f":"$D26*Listen!$B$15","v":0},{"$f":"$D26*Listen!$B$16","v":0},{"$f":"$D26*Listen!$B$17","v":0}]
["Ausgaben","Mobilität",{"$f":"Ausgaben!C39","v":"Mofa, E-Bike, Velo"},{"$f":"IF(ISNUMBER(Ausgaben!F39),Ausgaben!F39,0)","v":0},{"$f":"$D27*Listen!$B$14","v":0},{"$f":"$D27*Listen!$B$15","v":0},{"$f":"$D27*Listen!$B$16","v":0},{"$f":"$D27*Listen!$B$17","v":0}]
["Ausgaben","Mobilität",{"$f":"Ausgaben!C40","v":"Weiteres"},{"$f":"IF(ISNUMBER(Ausgaben!F40),Ausgaben!F40,0)","v":0},{"$f":"$D28*Listen!$B$14","v":0},{"$f":"$D28*Listen!$B$15","v":0},{"$f":"$D28*Listen!$B$16","v":0},{"$f":"$D28*Listen!$B$17","v":0}]
["Ausgaben","Auto und Motorrad",{"$f":"Ausgaben!C44","v":"Service"},{"$f":"IF(ISNUMBER(Ausgaben!F44),Ausgaben!F44,0)","v":0},{"$f":"$D29*Listen!$B$14","v":0},{"$f":"$D29*Listen!$B$15","v":0},{"$f":"$D29*Listen!$B$16","v":0},{"$f":"$D29*Listen!$B$17","v":0}]
["Ausgaben","Auto und Motorrad",{"$f":"Ausgaben!C45","v":"Auto-Versicherungen"},{"$f":"IF(ISNUMBER(Ausgaben!F45),Ausgaben!F45,0)","v":0},{"$f":"$D30*Listen!$B$14","v":0},{"$f":"$D30*Listen!$B$15","v":0},{"$f":"$D30*Listen!$B$16","v":0},{"$f":"$D30*Listen!$B$17","v":0}]
["Ausgaben","Auto und Motorrad",{"$f":"Ausgaben!C46","v":"Leasingrate"},{"$f":"IF(ISNUMBER(Ausgaben!F46),Ausgaben!F46,0)","v":0},{"$f":"$D31*Listen!$B$14","v":0},{"$f":"$D31*Listen!$B$15","v":0},{"$f":"$D31*Listen!$B$16","v":0},{"$f":"$D31*Listen!$B$17","v":0}]
["Ausgaben","Auto und Motorrad",{"$f":"Ausgaben!C47","v":"Parkplatz"},{"$f":"IF(ISNUMBER(Ausgaben!F47),Ausgaben!F47,0)","v":0},{"$f":"$D32*Listen!$B$14","v":0},{"$f":"$D32*Listen!$B$15","v":0},{"$f":"$D32*Listen!$B$16","v":0},{"$f":"$D32*Listen!$B$17","v":0}]
["Ausgaben","Auto und Motorrad",{"$f":"Ausgaben!C48","v":"Motorfahrzeugsteuer"},{"$f":"IF(ISNUMBER(Ausgaben!F48),Ausgaben!F48,0)","v":0},{"$f":"$D33*Listen!$B$14","v":0},{"$f":"$D33*Listen!$B$15","v":0},{"$f":"$D33*Listen!$B$16","v":0},{"$f":"$D33*Listen!$B$17","v":0}]
["Ausgaben","Auto und Motorrad",{"$f":"Ausgaben!C49","v":"Weiteres"},{"$f":"IF(ISNUMBER(Ausgaben!F49),Ausgaben!F49,0)","v":0},{"$f":"$D34*Listen!$B$14","v":0},{"$f":"$D34*Listen!$B$15","v":0},{"$f":"$D34*Listen!$B$16","v":0},{"$f":"$D34*Listen!$B$17","v":0}]
["Ausgaben","Lebensmittel",{"$f":"Ausgaben!C53","v":"Lebensmittel und Getränke"},{"$f":"IF(ISNUMBER(Ausgaben!F53),Ausgaben!F53,0)","v":0},{"$f":"$D35*Listen!$B$14","v":0},{"$f":"$D35*Listen!$B$15","v":0},{"$f":"$D35*Listen!$B$16","v":0},{"$f":"$D35*Listen!$B$17","v":0}]
["Ausgaben","Lebensmittel",{"$f":"Ausgaben!C54","v":"Restaurant (Kantine, Mensa, ...)"},{"$f":"IF(ISNUMBER(Ausgaben!F54),Ausgaben!F54,0)","v":0},{"$f":"$D36*Listen!$B$14","v":0},{"$f":"$D36*Listen!$B$15","v":0},{"$f":"$D36*Listen!$B$16","v":0},{"$f":"$D36*Listen!$B$17","v":0}]
["Ausgaben","Lebensmittel",{"$f":"Ausgaben!C55","v":"Lieferservice"},{"$f":"IF(ISNUMBER(Ausgaben!F55),Ausgaben!F55,0)","v":0},{"$f":"$D37*Listen!$B$14","v":0},{"$f":"$D37*Listen!$B$15","v":0},{"$f":"$D37*Listen!$B$16","v":0},{"$f":"$D37*Listen!$B$17","v":0}]
["Ausgaben","Lebensmittel",{"$f":"Ausgaben!C56","v":"Alkohol"},{"$f":"IF(ISNUMBER(Ausgaben!F56),Ausgaben!F56,0)","v":0},{"$f":"$D38*Listen!$B$14","v":0},{"$f":"$D38*Listen!$B$15","v":0},{"$f":"$D38*Listen!$B$16","v":0},{"$f":"$D38*Listen!$B$17","v":0}]
["Ausgaben","Lebensmittel",{"$f":"Ausgaben!C57","v":"Weiteres"},{"$f":"IF(ISNUMBER(Ausgaben!F57),Ausgaben!F57,0)","v":0},{"$f":"$D39*Listen!$B$14","v":0},{"$f":"$D39*Listen!$B$15","v":0},{"$f":"$D39*Listen!$B$16","v":0},{"$f":"$D39*Listen!$B$17","v":0}]
["Ausgaben","Kleidung und Schuhe",{"$f":"Ausgaben!C61","v":"Kleidung"},{"$f":"IF(ISNUMBER(Ausgaben!F61),Ausgaben!F61,0)","v":0},{"$f":"$D40*Listen!$B$14","v":0},{"$f":"$D40*Listen!$B$15","v":0},{"$f":"$D40*Listen!$B$16","v":0},{"$f":"$D40*Listen!$B$17","v":0}]
["Ausgaben","Kleidung und Schuhe",{"$f":"Ausgaben!C62","v":"Schuhe"},{"$f":"IF(ISNUMBER(Ausgaben!F62),Ausgaben!F62,0)","v":0},{"$f":"$D41*Listen!$B$14","v":0},{"$f":"$D41*Listen!$B$15","v":0},{"$f":"$D41*Listen!$B$16","v":0},{"$f":"$D41*Listen!$B$17","v":0}]
["Ausgaben","Kleidung und Schuhe",{"$f":"Ausgaben!C63","v":"Weiteres"},{"$f":"IF(ISNUMBER(Ausgaben!F63),Ausgaben!F63,0)","v":0},{"$f":"$D42*Listen!$B$14","v":0},{"$f":"$D42*Listen!$B$15","v":0},{"$f":"$D42*Listen!$B$16","v":0},{"$f":"$D42*Listen!$B$17","v":0}]
["Ausgaben","Kommunikation und Unterhaltung",{"$f":"Ausgaben!C67","v":"Handy-Abo, Prepaid-Angebot"},{"$f":"IF(ISNUMBER(Ausgaben!F67),Ausgaben!F67,0)","v":0},{"$f":"$D43*Listen!$B$14","v":0},{"$f":"$D43*Listen!$B$15","v":0},{"$f":"$D43*Listen!$B$16","v":0},{"$f":"$D43*Listen!$B$17","v":0}]
["Ausgaben","Kommunikation und Unterhaltung",{"$f":"Ausgaben!C68","v":"Internet-Abo"},{"$f":"IF(ISNUMBER(Ausgaben!F68),Ausgaben!F68,0)","v":0},{"$f":"$D44*Listen!$B$14","v":0},{"$f":"$D44*Listen!$B$15","v":0},{"$f":"$D44*Listen!$B$16","v":0},{"$f":"$D44*Listen!$B$17","v":0}]
["Ausgaben","Kommunikation und Unterhaltung",{"$f":"Ausgaben!C69","v":"Streaming- und TV-Abos"},{"$f":"IF(ISNUMBER(Ausgaben!F69),Ausgaben!F69,0)","v":0},{"$f":"$D45*Listen!$B$14","v":0},{"$f":"$D45*Listen!$B$15","v":0},{"$f":"$D45*Listen!$B$16","v":0},{"$f":"$D45*Listen!$B$17","v":0}]
["Ausgaben","Kommunikation und Unterhaltung",{"$f":"Ausgaben!C70","v":"Festnetz-Abo"},{"$f":"IF(ISNUMBER(Ausgaben!F70),Ausgaben!F70,0)","v":0},{"$f":"$D46*Listen!$B$14","v":0},{"$f":"$D46*Listen!$B$15","v":0},{"$f":"$D46*Listen!$B$16","v":0},{"$f":"$D46*Listen!$B$17","v":0}]
["Ausgaben","Kommunikation und Unterhaltung",{"$f":"Ausgaben!C71","v":"Roaming-Kosten"},{"$f":"IF(ISNUMBER(Ausgaben!F71),Ausgaben!F71,0)","v":0},{"$f":"$D47*Listen!$B$14","v":0},{"$f":"$D47*Listen!$B$15","v":0},{"$f":"$D47*Listen!$B$16","v":0},{"$f":"$D47*Listen!$B$17","v":0}]
["Ausgaben","Kommunikation und Unterhaltung",{"$f":"Ausgaben!C72","v":"Abos Medien"},{"$f":"IF(ISNUMBER(Ausgaben!F72),Ausgaben!F72,0)","v":0},{"$f":"$D48*Listen!$B$14","v":0},{"$f":"$D48*Listen!$B$15","v":0},{"$f":"$D48*Listen!$B$16","v":0},{"$f":"$D48*Listen!$B$17","v":0}]
["Ausgaben","Kommunikation und Unterhaltung",{"$f":"Ausgaben!C73","v":"Serafe-Gebühr"},{"$f":"IF(ISNUMBER(Ausgaben!F73),Ausgaben!F73,0)","v":0},{"$f":"$D49*Listen!$B$14","v":0},{"$f":"$D49*Listen!$B$15","v":0},{"$f":"$D49*Listen!$B$16","v":0},{"$f":"$D49*Listen!$B$17","v":0}]
["Ausgaben","Kommunikation und Unterhaltung",{"$f":"Ausgaben!C74","v":"Weiteres"},{"$f":"IF(ISNUMBER(Ausgaben!F74),Ausgaben!F74,0)","v":0},{"$f":"$D50*Listen!$B$14","v":0},{"$f":"$D50*Listen!$B$15","v":0},{"$f":"$D50*Listen!$B$16","v":0},{"$f":"$D50*Listen!$B$17","v":0}]
["Ausgaben","Aus- und Weiterbildung",{"$f":"Ausgaben!C78","v":"Studiengebühren"},{"$f":"IF(ISNUMBER(Ausgaben!F78),Ausgaben!F78,0)","v":0},{"$f":"$D51*Listen!$B$14","v":0},{"$f":"$D51*Listen!$B$15","v":0},{"$f":"$D51*Listen!$B$16","v":0},{"$f":"$D51*Listen!$B$17","v":0}]
["Ausgaben","Aus- und Weiterbildung",{"$f":"Ausgaben!C79","v":"Lernmaterial (Bücher, Software, …)"},{"$f":"IF(ISNUMBER(Ausgaben!F79),Ausgaben!F79,0)","v":0},{"$f":"$D52*Listen!$B$14","v":0},{"$f":"$D52*Listen!$B$15","v":0},{"$f":"$D52*Listen!$B$16","v":0},{"$f":"$D52*Listen!$B$17","v":0}]
["Ausgaben","Aus- und Weiterbildung",{"$f":"Ausgaben!C80","v":"Weiteres"},{"$f":"IF(ISNUMBER(Ausgaben!F80),Ausgaben!F80,0)","v":0},{"$f":"$D53*Listen!$B$14","v":0},{"$f":"$D53*Listen!$B$15","v":0},{"$f":"$D53*Listen!$B$16","v":0},{"$f":"$D53*Listen!$B$17","v":0}]
["Ausgaben","Freizeit und Ferien",{"$f":"Ausgaben!C84","v":"Events, Club, Bar, Kino"},{"$f":"IF(ISNUMBER(Ausgaben!F84),Ausgaben!F84,0)","v":0},{"$f":"$D54*Listen!$B$14","v":0},{"$f":"$D54*Listen!$B$15","v":0},{"$f":"$D54*Listen!$B$16","v":0},{"$f":"$D54*Listen!$B$17","v":0}]
["Ausgaben","Freizeit und Ferien",{"$f":"Ausgaben!C85","v":"Sport"},{"$f":"IF(ISNUMBER(Ausgaben!F85),Ausgaben!F85,0)","v":0},{"$f":"$D55*Listen!$B$14","v":0},{"$f":"$D55*Listen!$B$15","v":0},{"$f":"$D55*Listen!$B$16","v":0},{"$f":"$D55*Listen!$B$17","v":0}]
["Ausgaben","Freizeit und Ferien",{"$f":"Ausgaben!C86","v":"Hobbys"},{"$f":"IF(ISNUMBER(Ausgaben!F86),Ausgaben!F86,0)","v":0},{"$f":"$D56*Listen!$B$14","v":0},{"$f":"$D56*Listen!$B$15","v":0},{"$f":"$D56*Listen!$B$16","v":0},{"$f":"$D56*Listen!$B$17","v":0}]
["Ausgaben","Freizeit und Ferien",{"$f":"Ausgaben!C87","v":"Ferien und Ausflüge"},{"$f":"IF(ISNUMBER(Ausgaben!F87),Ausgaben!F87,0)","v":0},{"$f":"$D57*Listen!$B$14","v":0},{"$f":"$D57*Listen!$B$15","v":0},{"$f":"$D57*Listen!$B$16","v":0},{"$f":"$D57*Listen!$B$17","v":0}]
["Ausgaben","Freizeit und Ferien",{"$f":"Ausgaben!C88","v":"Weiteres"},{"$f":"IF(ISNUMBER(Ausgaben!F88),Ausgaben!F88,0)","v":0},{"$f":"$D58*Listen!$B$14","v":0},{"$f":"$D58*Listen!$B$15","v":0},{"$f":"$D58*Listen!$B$16","v":0},{"$f":"$D58*Listen!$B$17","v":0}]
["Ausgaben","Haustiere",{"$f":"Ausgaben!C92","v":"Tierarzt"},{"$f":"IF(ISNUMBER(Ausgaben!F92),Ausgaben!F92,0)","v":0},{"$f":"$D59*Listen!$B$14","v":0},{"$f":"$D59*Listen!$B$15","v":0},{"$f":"$D59*Listen!$B$16","v":0},{"$f":"$D59*Listen!$B$17","v":0}]
["Ausgaben","Haustiere",{"$f":"Ausgaben!C93","v":"Tierversicherung"},{"$f":"IF(ISNUMBER(Ausgaben!F93),Ausgaben!F93,0)","v":0},{"$f":"$D60*Listen!$B$14","v":0},{"$f":"$D60*Listen!$B$15","v":0},{"$f":"$D60*Listen!$B$16","v":0},{"$f":"$D60*Listen!$B$17","v":0}]
["Ausgaben","Haustiere",{"$f":"Ausgaben!C94","v":"Futter"},{"$f":"IF(ISNUMBER(Ausgaben!F94),Ausgaben!F94,0)","v":0},{"$f":"$D61*Listen!$B$14","v":0},{"$f":"$D61*Listen!$B$15","v":0},{"$f":"$D61*Listen!$B$16","v":0},{"$f":"$D61*Listen!$B$17","v":0}]
["Ausgaben","Haustiere",{"$f":"Ausgaben!C95","v":"Weiteres"},{"$f":"IF(ISNUMBER(Ausgaben!F95),Ausgaben!F95,0)","v":0},{"$f":"$D62*Listen!$B$14","v":0},{"$f":"$D62*Listen!$B$15","v":0},{"$f":"$D62*Listen!$B$16","v":0},{"$f":"$D62*Listen!$B$17","v":0}]
["Ausgaben","Versicherungen",{"$f":"Ausgaben!C99","v":"Privathaftpflicht"},{"$f":"IF(ISNUMBER(Ausgaben!F99),Ausgaben!F99,0)","v":0},{"$f":"$D63*Listen!$B$14","v":0},{"$f":"$D63*Listen!$B$15","v":0},{"$f":"$D63*Listen!$B$16","v":0},{"$f":"$D63*Listen!$B$17","v":0}]
["Ausgaben","Versicherungen",{"$f":"Ausgaben!C100","v":"Rechtsschutz"},{"$f":"IF(ISNUMBER(Ausgaben!F100),Ausgaben!F100,0)","v":0},{"$f":"$D64*Listen!$B$14","v":0},{"$f":"$D64*Listen!$B$15","v":0},{"$f":"$D64*Listen!$B$16","v":0},{"$f":"$D64*Listen!$B$17","v":0}]
["Ausgaben","Versicherungen",{"$f":"Ausgaben!C101","v":"Reiseversicherung"},{"$f":"IF(ISNUMBER(Ausgaben!F101),Ausgaben!F101,0)","v":0},{"$f":"$D65*Listen!$B$14","v":0},{"$f":"$D65*Listen!$B$15","v":0},{"$f":"$D65*Listen!$B$16","v":0},{"$f":"$D65*Listen!$B$17","v":0}]
["Ausgaben","Versicherungen",{"$f":"Ausgaben!C102","v":"Lebensversicherung"},{"$f":"IF(ISNUMBER(Ausgaben!F102),Ausgaben!F102,0)","v":0},{"$f":"$D66*Listen!$B$14","v":0},{"$f":"$D66*Listen!$B$15","v":0},{"$f":"$D66*Listen!$B$16","v":0},{"$f":"$D66*Listen!$B$17","v":0}]
["Ausgaben","Versicherungen",{"$f":"Ausgaben!C103","v":"Weitere Versicherungen"},{"$f":"IF(ISNUMBER(Ausgaben!F103),Ausgaben!F103,0)","v":0},{"$f":"$D67*Listen!$B$14","v":0},{"$f":"$D67*Listen!$B$15","v":0},{"$f":"$D67*Listen!$B$16","v":0},{"$f":"$D67*Listen!$B$17","v":0}]
["Ausgaben","Steuern",{"$f":"Ausgaben!C107","v":"Direkte Bundessteuer"},{"$f":"IF(ISNUMBER(Ausgaben!F107),Ausgaben!F107,0)","v":0},{"$f":"$D68*Listen!$B$14","v":0},{"$f":"$D68*Listen!$B$15","v":0},{"$f":"$D68*Listen!$B$16","v":0},{"$f":"$D68*Listen!$B$17","v":0}]
["Ausgaben","Steuern",{"$f":"Ausgaben!C108","v":"Kantons- und Gemeindesteuer"},{"$f":"IF(ISNUMBER(Ausgaben!F108),Ausgaben!F108,0)","v":0},{"$f":"$D69*Listen!$B$14","v":0},{"$f":"$D69*Listen!$B$15","v":0},{"$f":"$D69*Listen!$B$16","v":0},{"$f":"$D69*Listen!$B$17","v":0}]
["Ausgaben","Steuern",{"$f":"Ausgaben!C109","v":"Wehrpflichtersatzabgabe"},{"$f":"IF(ISNUMBER(Ausgaben!F109),Ausgaben!F109,0)","v":0},{"$f":"$D70*Listen!$B$14","v":0},{"$f":"$D70*Listen!$B$15","v":0},{"$f":"$D70*Listen!$B$16","v":0},{"$f":"$D70*Listen!$B$17","v":0}]
["Ausgaben","Steuern",{"$f":"Ausgaben!C110","v":"Weiteres"},{"$f":"IF(ISNUMBER(Ausgaben!F110),Ausgaben!F110,0)","v":0},{"$f":"$D71*Listen!$B$14","v":0},{"$f":"$D71*Listen!$B$15","v":0},{"$f":"$D71*Listen!$B$16","v":0},{"$f":"$D71*Listen!$B$17","v":0}]
["Ausgaben","Schulden",{"$f":"Ausgaben!C114","v":"Ausstehende Raten Privatkredite"},{"$f":"IF(ISNUMBER(Ausgaben!F114),Ausgaben!F114,0)","v":0},{"$f":"$D72*Listen!$B$14","v":0},{"$f":"$D72*Listen!$B$15","v":0},{"$f":"$D72*Listen!$B$16","v":0},{"$f":"$D72*Listen!$B$17","v":0}]
["Ausgaben","Schulden",{"$f":"Ausgaben!C115","v":"Ausstehende Kreditkartenschulden"},{"$f":"IF(ISNUMBER(Ausgaben!F115),Ausgaben!F115,0)","v":0},{"$f":"$D73*Listen!$B$14","v":0},{"$f":"$D73*Listen!$B$15","v":0},{"$f":"$D73*Listen!$B$16","v":0},{"$f":"$D73*Listen!$B$17","v":0}]
["Ausgaben","Schulden",{"$f":"Ausgaben!C116","v":"Weitere Schulden"},{"$f":"IF(ISNUMBER(Ausgaben!F116),Ausgaben!F116,0)","v":0},{"$f":"$D74*Listen!$B$14","v":0},{"$f":"$D74*Listen!$B$15","v":0},{"$f":"$D74*Listen!$B$16","v":0},{"$f":"$D74*Listen!$B$17","v":0}]
["Ausgaben","Rückstellungen",{"$f":"Ausgaben!C120","v":"Auto, Motorrad, Mofa, E-Bike, Velo"},{"$f":"IF(ISNUMBER(Ausgaben!F120),Ausgaben!F120,0)","v":0},{"$f":"$D75*Listen!$B$14","v":0},{"$f":"$D75*Listen!$B$15","v":0},{"$f":"$D75*Listen!$B$16","v":0},{"$f":"$D75*Listen!$B$17","v":0}]
["Ausgaben","Rückstellungen",{"$f":"Ausgaben!C121","v":"Wohneigentum"},{"$f":"IF(ISNUMBER(Ausgaben!F121),Ausgaben!F121,0)","v":0},{"$f":"$D76*Listen!$B$14","v":0},{"$f":"$D76*Listen!$B$15","v":0},{"$f":"$D76*Listen!$B$16","v":0},{"$f":"$D76*Listen!$B$17","v":0}]
["Ausgaben","Rückstellungen",{"$f":"Ausgaben!C122","v":"Gesundheitskosten "},{"$f":"IF(ISNUMBER(Ausgaben!F122),Ausgaben!F122,0)","v":0},{"$f":"$D77*Listen!$B$14","v":0},{"$f":"$D77*Listen!$B$15","v":0},{"$f":"$D77*Listen!$B$16","v":0},{"$f":"$D77*Listen!$B$17","v":0}]
["Ausgaben","Rückstellungen",{"$f":"Ausgaben!C123","v":"Haushaltsgeräte und Möbel"},{"$f":"IF(ISNUMBER(Ausgaben!F123),Ausgaben!F123,0)","v":0},{"$f":"$D78*Listen!$B$14","v":0},{"$f":"$D78*Listen!$B$15","v":0},{"$f":"$D78*Listen!$B$16","v":0},{"$f":"$D78*Listen!$B$17","v":0}]
["Ausgaben","Rückstellungen",{"$f":"Ausgaben!C124","v":"Aus- und Weiterbildungen"},{"$f":"IF(ISNUMBER(Ausgaben!F124),Ausgaben!F124,0)","v":0},{"$f":"$D79*Listen!$B$14","v":0},{"$f":"$D79*Listen!$B$15","v":0},{"$f":"$D79*Listen!$B$16","v":0},{"$f":"$D79*Listen!$B$17","v":0}]
["Ausgaben","Rückstellungen",{"$f":"Ausgaben!C125","v":"PC, Handy, …"},{"$f":"IF(ISNUMBER(Ausgaben!F125),Ausgaben!F125,0)","v":0},{"$f":"$D80*Listen!$B$14","v":0},{"$f":"$D80*Listen!$B$15","v":0},{"$f":"$D80*Listen!$B$16","v":0},{"$f":"$D80*Listen!$B$17","v":0}]
["Ausgaben","Rückstellungen",{"$f":"Ausgaben!C126","v":"Weitere Rückstellungen"},{"$f":"IF(ISNUMBER(Ausgaben!F126),Ausgaben!F126,0)","v":0},{"$f":"$D81*Listen!$B$14","v":0},{"$f":"$D81*Listen!$B$15","v":0},{"$f":"$D81*Listen!$B$16","v":0},{"$f":"$D81*Listen!$B$17","v":0}]
["Ausgaben","Übriges",{"$f":"Ausgaben!C130","v":"Verbrauchsgüter"},{"$f":"IF(ISNUMBER(Ausgaben!F130),Ausgaben!F130,0)","v":0},{"$f":"$D82*Listen!$B$14","v":0},{"$f":"$D82*Listen!$B$15","v":0},{"$f":"$D82*Listen!$B$16","v":0},{"$f":"$D82*Listen!$B$17","v":0}]
["Ausgaben","Übriges",{"$f":"Ausgaben!C131","v":"Bankgebühren"},{"$f":"IF(ISNUMBER(Ausgaben!F131),Ausgaben!F131,0)","v":0},{"$f":"$D83*Listen!$B$14","v":0},{"$f":"$D83*Listen!$B$15","v":0},{"$f":"$D83*Listen!$B$16","v":0},{"$f":"$D83*Listen!$B$17","v":0}]
["Ausgaben","Übriges",{"$f":"Ausgaben!C132","v":"Unterhaltsbeiträge (Alimente)"},{"$f":"IF(ISNUMBER(Ausgaben!F132),Ausgaben!F132,0)","v":0},{"$f":"$D84*Listen!$B$14","v":0},{"$f":"$D84*Listen!$B$15","v":0},{"$f":"$D84*Listen!$B$16","v":0},{"$f":"$D84*Listen!$B$17","v":0}]
["Ausgaben","Übriges",{"$f":"Ausgaben!C133","v":"Software zum privaten Gebrauch"},{"$f":"IF(ISNUMBER(Ausgaben!F133),Ausgaben!F133,0)","v":0},{"$f":"$D85*Listen!$B$14","v":0},{"$f":"$D85*Listen!$B$15","v":0},{"$f":"$D85*Listen!$B$16","v":0},{"$f":"$D85*Listen!$B$17","v":0}]
["Ausgaben","Übriges",{"$f":"Ausgaben!C134","v":"Zigaretten"},{"$f":"IF(ISNUMBER(Ausgaben!F134),Ausgaben!F134,0)","v":0},{"$f":"$D86*Listen!$B$14","v":0},{"$f":"$D86*Listen!$B$15","v":0},{"$f":"$D86*Listen!$B$16","v":0},{"$f":"$D86*Listen!$B$17","v":0}]
["Ausgaben","Übriges",{"$f":"Ausgaben!C135","v":"Geschenke"},{"$f":"IF(ISNUMBER(Ausgaben!F135),Ausgaben!F135,0)","v":0},{"$f":"$D87*Listen!$B$14","v":0},{"$f":"$D87*Listen!$B$15","v":0},{"$f":"$D87*Listen!$B$16","v":0},{"$f":"$D87*Listen!$B$17","v":0}]
["Ausgaben","Übriges",{"$f":"Ausgaben!C136","v":"Gemeinnütziges (Spenden)"},{"$f":"IF(ISNUMBER(Ausgaben!F136),Ausgaben!F136,0)","v":0},{"$f":"$D88*Listen!$B$14","v":0},{"$f":"$D88*Listen!$B$15","v":0},{"$f":"$D88*Listen!$B$16","v":0},{"$f":"$D88*Listen!$B$17","v":0}]
["Ausgaben","Übriges",{"$f":"Ausgaben!C137","v":"Mitgliedschaften"},{"$f":"IF(ISNUMBER(Ausgaben!F137),Ausgaben!F137,0)","v":0},{"$f":"$D89*Listen!$B$14","v":0},{"$f":"$D89*Listen!$B$15","v":0},{"$f":"$D89*Listen!$B$16","v":0},{"$f":"$D89*Listen!$B$17","v":0}]
["Ausgaben","Übriges",{"$f":"Ausgaben!C138","v":"Sparen / Anlegen / Vorsorgen"},{"$f":"IF(ISNUMBER(Ausgaben!F138),Ausgaben!F138,0)","v":0},{"$f":"$D90*Listen!$B$14","v":0},{"$f":"$D90*Listen!$B$15","v":0},{"$f":"$D90*Listen!$B$16","v":0},{"$f":"$D90*Listen!$B$17","v":0}]
["Ausgaben","Übriges",{"$f":"Ausgaben!C139","v":"Weiteres"},{"$f":"IF(ISNUMBER(Ausgaben!F139),Ausgaben!F139,0)","v":0},{"$f":"$D91*Listen!$B$14","v":0},{"$f":"$D91*Listen!$B$15","v":0},{"$f":"$D91*Listen!$B$16","v":0},{"$f":"$D91*Listen!$B$17","v":0}]
[]
["Oberkategorie","Kategorie","Unterkategorie","Monatlicher Betrag","Jährlicher Betrag","Wöchentlicher Betrag","Halbjährlicher Betrag","Vierteljährlicher Betrag"]
["Einnahmen","Erwerbseinkommen",{"$f":"Einnahmen!C4","v":"Nettolohn"},{"$f":"IF(ISNUMBER(Einnahmen!F4),Einnahmen!F4,0)","v":0},{"$f":"$D94*Listen!$B$14","v":0},{"$f":"$D94*Listen!$B$15","v":0},{"$f":"$D94*Listen!$B$16","v":0},{"$f":"$D94*Listen!$B$17","v":0}]
["Einnahmen","Erwerbseinkommen",{"$f":"Einnahmen!C5","v":"13. Monatslohn (netto)"},{"$f":"IF(ISNUMBER(Einnahmen!F5),Einnahmen!F5,0)","v":0},{"$f":"$D95*Listen!$B$14","v":0},{"$f":"$D95*Listen!$B$15","v":0},{"$f":"$D95*Listen!$B$16","v":0},{"$f":"$D95*Listen!$B$17","v":0}]
["Einnahmen","Erwerbseinkommen",{"$f":"Einnahmen!C6","v":"Nebeneinkommen (netto)"},{"$f":"IF(ISNUMBER(Einnahmen!F6),Einnahmen!F6,0)","v":0},{"$f":"$D96*Listen!$B$14","v":0},{"$f":"$D96*Listen!$B$15","v":0},{"$f":"$D96*Listen!$B$16","v":0},{"$f":"$D96*Listen!$B$17","v":0}]
["Einnahmen","Erwerbseinkommen",{"$f":"Einnahmen!C7","v":"Weiteres"},{"$f":"IF(ISNUMBER(Einnahmen!F7),Einnahmen!F7,0)","v":0},{"$f":"$D97*Listen!$B$14","v":0},{"$f":"$D97*Listen!$B$15","v":0},{"$f":"$D97*Listen!$B$16","v":0},{"$f":"$D97*Listen!$B$17","v":0}]
["Einnahmen","Sozialversicherungen",{"$f":"Einnahmen!C11","v":"AHV- oder IV-Rente"},{"$f":"IF(ISNUMBER(Einnahmen!F11),Einnahmen!F11,0)","v":0},{"$f":"$D98*Listen!$B$14","v":0},{"$f":"$D98*Listen!$B$15","v":0},{"$f":"$D98*Listen!$B$16","v":0},{"$f":"$D98*Listen!$B$17","v":0}]
["Einnahmen","Sozialversicherungen",{"$f":"Einnahmen!C12","v":"Pensionskassen-Rente"},{"$f":"IF(ISNUMBER(Einnahmen!F12),Einnahmen!F12,0)","v":0},{"$f":"$D99*Listen!$B$14","v":0},{"$f":"$D99*Listen!$B$15","v":0},{"$f":"$D99*Listen!$B$16","v":0},{"$f":"$D99*Listen!$B$17","v":0}]
["Einnahmen","Sozialversicherungen",{"$f":"Einnahmen!C13","v":"Auszahlung aus der Säule 3a und 3b"},{"$f":"IF(ISNUMBER(Einnahmen!F13),Einnahmen!F13,0)","v":0},{"$f":"$D100*Listen!$B$14","v":0},{"$f":"$D100*Listen!$B$15","v":0},{"$f":"$D100*Listen!$B$16","v":0},{"$f":"$D100*Listen!$B$17","v":0}]
["Einnahmen","Sozialversicherungen",{"$f":"Einnahmen!C14","v":"Leistungen der ALV"},{"$f":"IF(ISNUMBER(Einnahmen!F14),Einnahmen!F14,0)","v":0},{"$f":"$D101*Listen!$B$14","v":0},{"$f":"$D101*Listen!$B$15","v":0},{"$f":"$D101*Listen!$B$16","v":0},{"$f":"$D101*Listen!$B$17","v":0}]
["Einnahmen","Sozialversicherungen",{"$f":"Einnahmen!C15","v":"Leistungen der EO"},{"$f":"IF(ISNUMBER(Einnahmen!F15),Einnahmen!F15,0)","v":0},{"$f":"$D102*Listen!$B$14","v":0},{"$f":"$D102*Listen!$B$15","v":0},{"$f":"$D102*Listen!$B$16","v":0},{"$f":"$D102*Listen!$B$17","v":0}]
["Einnahmen","Sozialversicherungen",{"$f":"Einnahmen!C16","v":"Weiteres"},{"$f":"IF(ISNUMBER(Einnahmen!F16),Einnahmen!F16,0)","v":0},{"$f":"$D103*Listen!$B$14","v":0},{"$f":"$D103*Listen!$B$15","v":0},{"$f":"$D103*Listen!$B$16","v":0},{"$f":"$D103*Listen!$B$17","v":0}]
["Einnahmen","Kapitalanlagen",{"$f":"Einnahmen!C20","v":"Zinsen"},{"$f":"IF(ISNUMBER(Einnahmen!F20),Einnahmen!F20,0)","v":0},{"$f":"$D104*Listen!$B$14","v":0},{"$f":"$D104*Listen!$B$15","v":0},{"$f":"$D104*Listen!$B$16","v":0},{"$f":"$D104*Listen!$B$17","v":0}]
["Einnahmen","Kapitalanlagen",{"$f":"Einnahmen!C21","v":"Dividenden"},{"$f":"IF(ISNUMBER(Einnahmen!F21),Einnahmen!F21,0)","v":0},{"$f":"$D105*Listen!$B$14","v":0},{"$f":"$D105*Listen!$B$15","v":0},{"$f":"$D105*Listen!$B$16","v":0},{"$f":"$D105*Listen!$B$17","v":0}]
["Einnahmen","Kapitalanlagen",{"$f":"Einnahmen!C22","v":"Mietzinsen"},{"$f":"IF(ISNUMBER(Einnahmen!F22),Einnahmen!F22,0)","v":0},{"$f":"$D106*Listen!$B$14","v":0},{"$f":"$D106*Listen!$B$15","v":0},{"$f":"$D106*Listen!$B$16","v":0},{"$f":"$D106*Listen!$B$17","v":0}]
["Einnahmen","Kapitalanlagen",{"$f":"Einnahmen!C23","v":"Weitere Erträge"},{"$f":"IF(ISNUMBER(Einnahmen!F23),Einnahmen!F23,0)","v":0},{"$f":"$D107*Listen!$B$14","v":0},{"$f":"$D107*Listen!$B$15","v":0},{"$f":"$D107*Listen!$B$16","v":0},{"$f":"$D107*Listen!$B$17","v":0}]
["Einnahmen","Übriges",{"$f":"Einnahmen!C27","v":"Unterhaltsbeiträge (Alimente)"},{"$f":"IF(ISNUMBER(Einnahmen!F27),Einnahmen!F27,0)","v":0},{"$f":"$D108*Listen!$B$14","v":0},{"$f":"$D108*Listen!$B$15","v":0},{"$f":"$D108*Listen!$B$16","v":0},{"$f":"$D108*Listen!$B$17","v":0}]
["Einnahmen","Übriges",{"$f":"Einnahmen!C28","v":"Weiteres"},{"$f":"IF(ISNUMBER(Einnahmen!F28),Einnahmen!F28,0)","v":0},{"$f":"$D109*Listen!$B$14","v":0},{"$f":"$D109*Listen!$B$15","v":0},{"$f":"$D109*Listen!$B$16","v":0},{"$f":"$D109*Listen!$B$17","v":0}]